Workbook

Sheet Read me
A1: Carbon Price Pathway Tool
A2: Version | B2: 1.7
A3: Date | B3: 2022-01-26
A5: This Tool is part of a Transition Risk Analysis Support Toolkit developed by the South Africa-UK PACT supported project: Aligning South Africa's Climate-related Financial Disclosure with Global Best Practice
A7: To learn about the project or the Toolkit, or to access other project outputs, please visit www.dnaeconomics.com/pages/sa_climate_disclosure
A9: Sheet colour codes: | F9: Sheet where values should be inputted | I9: Assumptions sheet | L9: Select 'UK PACT' from the Scenario Manager (click on button next to redo button in the top ribbon (Quick Access Toolbar) and click 'Show'. Please note - this only works if you are in the 'Assumptions' sheet.
A10: Cell colour codes | B10: Input values into yellow cells only
B11: Choose from dropdown, do not enter values | I11: Increase sheet | L11: Select 'UK PACT' from dropdown in cell B1
B12: Green cells contain calculations or results - do not input data | I12: Allowances sheet | L12: Select 'UK PACT' from dropdown in cell B1
B13: Fixed cells. Please do not change | I13: International carbon prices sheet | L13: Select 'UK PACT' from dropdown in cell B1
A16: Assumptions sheet
A20: Allowances sheet
L21: Live Carbon Tax Results - Predefined scenarios (with/without updates)
L22: ('Carbon tax values sheet' - do not change values in sheet)
L23: Fixed scenario carbon tax values for comparison - not linked to model
A24: Assumptions sheet | L24: (do not change values in sheet)
A25: Increase sheet | L25: Live Carbon Tax Results - all new input values
L26: ('Carbon tax values' sheet - do not change values in sheet)
A28: International carbon prices sheet
I32: Assumptions sheet | L32: Select 'User input' from Scenario Manager (click on button next to redo button in the top ribbon (Quick Access Toolbar) and click 'Show'. Please note - this only works if you are in the 'Assumptions' sheet.
I34: Increase sheet | L34: Select 'User input' from dropdown in cell B1
I35: International carbon prices sheet | L35: Select 'User input' from dropdown in cell B1
I36: Allowances sheet | L36: Select 'User input' from dropdown in cell B1

Sheet Exercise
A1: Exercise 1 | B1: The South African government has announced that to do our fair share to contain climate change by 1.50C degrees by 2050, the South African carbon tax will have to increase by 20% per year from 2031 to 2050. The expected increase from now to 2030 to meet this goal is consistent with the assumptions used in the UK PACT scenario exercise.
A2: Activity | B2: Calculate what the carbon tax value in South Africa is going to be by 2050.
A3: Guide | B3: Go to 'Increase' sheet. Cell B2 should be set to 'UK PACT' initially. Copy the values for 'Immediate 1.5 oC' scenario from 2022 to 2030 (B19 to J19) and paste below the table. Use the 'Paste Special - Values' function to paste the actual values. Choose 'User input' from the dropdown in cell B2. Yellow cells should become visible. Copy values you pasted below the table into the table in cells B19 to J19 (values for 'Immediate 1.5 oC' scenario for 2022 to 2030). Use 'Paste Special - Values' function again. Insert 20% in cells K19 to AD19. Go to 'Assumptions' sheet. Select value 'Increase' from the dropdown in cell G15 (forecasting method linked to the 'Immediate 1.5 oC' scenario). Go to 'Carbon tax values' sheet and find the 2050 carbon tax value in cell AG15. The value should be R26,836.32.
A5: Exercise 2 | B5: Your policy analyst has looked at this announcement and decided it is unlike to happen in practice. She feels that the carbon tax is much more likely to converge with international carbon prices over time (and in particular eventually align with the carbon price path implicit in the NGFS (2020)’s Immediate 1.5ᵒC with CDR scenario. You decide that this is a better assumption.
A6: Activity | B6: Calculate what the carbon tax value in South Africa is going to be by 2050.
A7: Guide | B7: This is the assumption used in the UK PACT scenario exercise and thus the baseline assumption in this Tool. Go to 'Increase' sheet and select 'UK PACT' option from dropdown in cell B2. Go to 'Assumptions' sheet and select 'UK PACT' from the Scenario Selection button at the top of the screen (circle/button on the same level as the file name). Make sure to select 'No' if asked if you want to 'redefine' values. Values in 'Carbon tax values' should now change back to match those in 'Carbon tax values' FIXED sheet. Value in cell AG15 should be R5004.94. If this is not the case, go back to 'Assumptions' sheet and select 'Dummy' the Scenario Selection button. (Make sure to select 'No' if asked if you want to 'redefine' values) Now select 'UK PACT' from the Scenario Selection button. Values in 'Carbon tax values' should now change back to match those in 'Carbon tax values' FIXED sheet. Value in cell AG15 should be R5004.94.

Sheet Carbon tax values
D2: Phase_1 | E2: Phase_1 | F2: Phase_2 | G2: Phase_2 | H2: Phase_2 | I2: Phase_2 | J2: Phase_2 | K2: Phase_2a | L2: Phase_2a | M2: Phase_2a | N2: Beyond | O2: Beyond | P2: Beyond | Q2: Beyond | R2: Beyond | S2: Beyond | T2: Beyond | U2: Beyond | V2: Beyond | W2: Beyond | X2: Beyond | Y2: Beyond | Z2: Beyond | AA2: Beyond | AB2: Beyond | AC2: Beyond | AD2: Beyond | AE2: Beyond | AF2: Beyond | AG2: Beyond
C3: Carbon Price (ZAR) | D3: 2021 | E3: 2022 | F3: 2023 | G3: 2024 | H3: 2025 | I3: 2026 | J3: 2027 | K3: 2028 | L3: 2029 | M3: 2030 | N3: 2031 | O3: 2032 | P3: 2033 | Q3: 2034 | R3: 2035 | S3: 2036 | T3: 2037 | U3: 2038 | V3: 2039 | W3: 2040 | X3: 2041 | Y3: 2042 | Z3: 2043 | AA3: 2044 | AB3: 2045 | AC3: 2046 | AD3: 2047 | AE3: 2048 | AF3: 2049 | AG3: 2050
C4: =Assumptions!B5 -> Current Policies
C5: Carbon price | D5: =Assumptions!$B$10 -> 134 | E5: =D5*(1+INDEX(Increase!$A$3:$AD$7,MATCH('Carbon tax values'!$C4,Increase!$A$3:$A$7,0),MATCH('Carbon tax values'!E$3,Increase!$A$3:$AD$3,0))) -> 136.68 | F5: =E5*(1+INDEX(Increase!$A$3:$AD$7,MATCH('Carbon tax values'!$C4,Increase!$A$3:$A$7,0),MATCH('Carbon tax values'!F$3,Increase!$A$3:$AD$3,0))) -> 136.68 | G5: =F5*(1+INDEX(Increase!$A$3:$AD$7,MATCH('Carbon tax values'!$C4,Increase!$A$3:$A$7,0),MATCH('Carbon tax values'!G$3,Increase!$A$3:$AD$3,0))) -> 136.68 | H5: =G5*(1+INDEX(Increase!$A$3:$AD$7,MATCH('Carbon tax values'!$C4,Increase!$A$3:$A$7,0),MATCH('Carbon tax values'!H$3,Increase!$A$3:$AD$3,0))) -> 136.68 | I5: =H5*(1+INDEX(Increase!$A$3:$AD$7,MATCH('Carbon tax values'!$C4,Increase!$A$3:$A$7,0),MATCH('Carbon tax values'!I$3,Increase!$A$3:$AD$3,0))) -> 136.68 | J5: =I5*(1+INDEX(Increase!$A$3:$AD$7,MATCH('Carbon tax values'!$C4,Increase!$A$3:$A$7,0),MATCH('Carbon tax values'!J$3,Increase!$A$3:$AD$3,0))) -> 136.68 | K5: =IF(Assumptions!$B$13="Combination",J5+($M$5-$J$5)/COUNT($K$3:$M$3),J5*(1+INDEX(Increase!$A$3:$AD$7,MATCH('Carbon tax values'!$C4,Increase!$A$3:$A$7,0),MATCH('Carbon tax values'!K$3,Increase!$A$3:$AD$3,0)))) -> 136.68 | L5: =IF(Assumptions!$B$13="Combination",K5+($M$5-$J$5)/COUNT($K$3:$M$3),K5*(1+INDEX(Increase!$A$3:$AD$7,MATCH('Carbon tax values'!$C4,Increase!$A$3:$A$7,0),MATCH('Carbon tax values'!L$3,Increase!$A$3:$AD$3,0)))) -> 136.68 | M5: =IF(Assumptions!B13="Combination",Assumptions!C22,L5*(1+INDEX(Increase!$A$3:$AD$7,MATCH('Carbon tax values'!$C4,Increase!$A$3:$A$7,0),MATCH('Carbon tax values'!M$3,Increase!$A$3:$AD$3,0)))) -> 136.68 | N5: =IF(Assumptions!$G$13="Target rate",M5+($AG$5-$M$5)/COUNT($N$3:$AG$3),M5*(1+INDEX(Increase!$A$3:$AD$7,MATCH('Carbon tax values'!$C4,Increase!$A$3:$A$7,0),MATCH('Carbon tax values'!N$3,Increase!$A$3:$AD$3,0)))) -> 136.68 | O5: =IF(Assumptions!$G$13="Target rate",N5+($AG$5-$M$5)/COUNT($N$3:$AG$3),N5*(1+INDEX(Increase!$A$3:$AD$7,MATCH('Carbon tax values'!$C4,Increase!$A$3:$A$7,0),MATCH('Carbon tax values'!O$3,Increase!$A$3:$AD$3,0)))) -> 136.68 | P5: =IF(Assumptions!$G$13="Target rate",O5+($AG$5-$M$5)/COUNT($N$3:$AG$3),O5*(1+INDEX(Increase!$A$3:$AD$7,MATCH('Carbon tax values'!$C4,Increase!$A$3:$A$7,0),MATCH('Carbon tax values'!P$3,Increase!$A$3:$AD$3,0)))) -> 136.68 | Q5: =IF(Assumptions!$G$13="Target rate",P5+($AG$5-$M$5)/COUNT($N$3:$AG$3),P5*(1+INDEX(Increase!$A$3:$AD$7,MATCH('Carbon tax values'!$C4,Increase!$A$3:$A$7,0),MATCH('Carbon tax values'!Q$3,Increase!$A$3:$AD$3,0)))) -> 136.68 | R5: =IF(Assumptions!$G$13="Target rate",Q5+($AG$5-$M$5)/COUNT($N$3:$AG$3),Q5*(1+INDEX(Increase!$A$3:$AD$7,MATCH('Carbon tax values'!$C4,Increase!$A$3:$A$7,0),MATCH('Carbon tax values'!R$3,Increase!$A$3:$AD$3,0)))) -> 136.68 | S5: =IF(Assumptions!$G$13="Target rate",R5+($AG$5-$M$5)/COUNT($N$3:$AG$3),R5*(1+INDEX(Increase!$A$3:$AD$7,MATCH('Carbon tax values'!$C4,Increase!$A$3:$A$7,0),MATCH('Carbon tax values'!S$3,Increase!$A$3:$AD$3,0)))) -> 136.68 | T5: =IF(Assumptions!$G$13="Target rate",S5+($AG$5-$M$5)/COUNT($N$3:$AG$3),S5*(1+INDEX(Increase!$A$3:$AD$7,MATCH('Carbon tax values'!$C4,Increase!$A$3:$A$7,0),MATCH('Carbon tax values'!T$3,Increase!$A$3:$AD$3,0)))) -> 136.68 | U5: =IF(Assumptions!$G$13="Target rate",T5+($AG$5-$M$5)/COUNT($N$3:$AG$3),T5*(1+INDEX(Increase!$A$3:$AD$7,MATCH('Carbon tax values'!$C4,Increase!$A$3:$A$7,0),MATCH('Carbon tax values'!U$3,Increase!$A$3:$AD$3,0)))) -> 136.68 | V5: =IF(Assumptions!$G$13="Target rate",U5+($AG$5-$M$5)/COUNT($N$3:$AG$3),U5*(1+INDEX(Increase!$A$3:$AD$7,MATCH('Carbon tax values'!$C4,Increase!$A$3:$A$7,0),MATCH('Carbon tax values'!V$3,Increase!$A$3:$AD$3,0)))) -> 136.68 | W5: =IF(Assumptions!$G$13="Target rate",V5+($AG$5-$M$5)/COUNT($N$3:$AG$3),V5*(1+INDEX(Increase!$A$3:$AD$7,MATCH('Carbon tax values'!$C4,Increase!$A$3:$A$7,0),MATCH('Carbon tax values'!W$3,Increase!$A$3:$AD$3,0)))) -> 136.68 | X5: =IF(Assumptions!$G$13="Target rate",W5+($AG$5-$M$5)/COUNT($N$3:$AG$3),W5*(1+INDEX(Increase!$A$3:$AD$7,MATCH('Carbon tax values'!$C4,Increase!$A$3:$A$7,0),MATCH('Carbon tax values'!X$3,Increase!$A$3:$AD$3,0)))) -> 136.68 | Y5: =IF(Assumptions!$G$13="Target rate",X5+($AG$5-$M$5)/COUNT($N$3:$AG$3),X5*(1+INDEX(Increase!$A$3:$AD$7,MATCH('Carbon tax values'!$C4,Increase!$A$3:$A$7,0),MATCH('Carbon tax values'!Y$3,Increase!$A$3:$AD$3,0)))) -> 136.68 | Z5: =IF(Assumptions!$G$13="Target rate",Y5+($AG$5-$M$5)/COUNT($N$3:$AG$3),Y5*(1+INDEX(Increase!$A$3:$AD$7,MATCH('Carbon tax values'!$C4,Increase!$A$3:$A$7,0),MATCH('Carbon tax values'!Z$3,Increase!$A$3:$AD$3,0)))) -> 136.68 | AA5: =IF(Assumptions!$G$13="Target rate",Z5+($AG$5-$M$5)/COUNT($N$3:$AG$3),Z5*(1+INDEX(Increase!$A$3:$AD$7,MATCH('Carbon tax values'!$C4,Increase!$A$3:$A$7,0),MATCH('Carbon tax values'!AA$3,Increase!$A$3:$AD$3,0)))) -> 136.68 | AB5: =IF(Assumptions!$G$13="Target rate",AA5+($AG$5-$M$5)/COUNT($N$3:$AG$3),AA5*(1+INDEX(Increase!$A$3:$AD$7,MATCH('Carbon tax values'!$C4,Increase!$A$3:$A$7,0),MATCH('Carbon tax values'!AB$3,Increase!$A$3:$AD$3,0)))) -> 136.68 | AC5: =IF(Assumptions!$G$13="Target rate",AB5+($AG$5-$M$5)/COUNT($N$3:$AG$3),AB5*(1+INDEX(Increase!$A$3:$AD$7,MATCH('Carbon tax values'!$C4,Increase!$A$3:$A$7,0),MATCH('Carbon tax values'!AC$3,Increase!$A$3:$AD$3,0)))) -> 136.68 | AD5: =IF(Assumptions!$G$13="Target rate",AC5+($AG$5-$M$5)/COUNT($N$3:$AG$3),AC5*(1+INDEX(Increase!$A$3:$AD$7,MATCH('Carbon tax values'!$C4,Increase!$A$3:$A$7,0),MATCH('Carbon tax values'!AD$3,Increase!$A$3:$AD$3,0)))) -> 136.68 | AE5: =IF(Assumptions!$G$13="Target rate",AD5+($AG$5-$M$5)/COUNT($N$3:$AG$3),AD5*(1+INDEX(Increase!$A$3:$AD$7,MATCH('Carbon tax values'!$C4,Increase!$A$3:$A$7,0),MATCH('Carbon tax values'!AE$3,Increase!$A$3:$AD$3,0)))) -> 136.68 | AF5: =IF(Assumptions!$G$13="Target rate",AE5+($AG$5-$M$5)/COUNT($N$3:$AG$3),AE5*(1+INDEX(Increase!$A$3:$AD$7,MATCH('Carbon tax values'!$C4,Increase!$A$3:$A$7,0),MATCH('Carbon tax values'!AF$3,Increase!$A$3:$AD$3,0)))) -> 136.68 | AG5: =IF(Assumptions!$G$13="Target rate",AF5+($AG$5-$M$5)/COUNT($N$3:$AG$3),AF5*(1+INDEX(Increase!$A$3:$AD$7,MATCH('Carbon tax values'!$C4,Increase!$A$3:$A$7,0),MATCH('Carbon tax values'!AG$3,Increase!$A$3:$AD$3,0)))) -> 136.68
B6: =$C$4&"-"&C6 -> Current Policies-Energy - Power | C6: Energy - Power | D6: =D$5*(1-INDEX(Allowances!$AA$2:$AE$15,MATCH('Carbon tax values'!$B6,Allowances!$AE$2:$AE$15,0),MATCH('Carbon tax values'!D$2,Allowances!$AA$2:$AE$2,0))) -> 36.3542 | E6: =E$5*(1-INDEX(Allowances!$AA$2:$AE$15,MATCH('Carbon tax values'!$B6,Allowances!$AE$2:$AE$15,0),MATCH('Carbon tax values'!E$2,Allowances!$AA$2:$AE$2,0))) -> 37.081284 | F6: =F$5*(1-INDEX(Allowances!$AA$2:$AE$15,MATCH('Carbon tax values'!$B6,Allowances!$AE$2:$AE$15,0),MATCH('Carbon tax values'!F$2,Allowances!$AA$2:$AE$2,0))) -> 42.548484 | G6: =G$5*(1-INDEX(Allowances!$AA$2:$AE$15,MATCH('Carbon tax values'!$B6,Allowances!$AE$2:$AE$15,0),MATCH('Carbon tax values'!G$2,Allowances!$AA$2:$AE$2,0))) -> 42.548484 | H6: =H$5*(1-INDEX(Allowances!$AA$2:$AE$15,MATCH('Carbon tax values'!$B6,Allowances!$AE$2:$AE$15,0),MATCH('Carbon tax values'!H$2,Allowances!$AA$2:$AE$2,0))) -> 42.548484 | I6: =I$5*(1-INDEX(Allowances!$AA$2:$AE$15,MATCH('Carbon tax values'!$B6,Allowances!$AE$2:$AE$15,0),MATCH('Carbon tax values'!I$2,Allowances!$AA$2:$AE$2,0))) -> 42.548484 | J6: =J$5*(1-INDEX(Allowances!$AA$2:$AE$15,MATCH('Carbon tax values'!$B6,Allowances!$AE$2:$AE$15,0),MATCH('Carbon tax values'!J$2,Allowances!$AA$2:$AE$2,0))) -> 42.548484 | K6: =K$5*(1-INDEX(Allowances!$AA$2:$AE$15,MATCH('Carbon tax values'!$B6,Allowances!$AE$2:$AE$15,0),MATCH('Carbon tax values'!K$2,Allowances!$AA$2:$AE$2,0))) -> 42.548484 | L6: =L$5*(1-INDEX(Allowances!$AA$2:$AE$15,MATCH('Carbon tax values'!$B6,Allowances!$AE$2:$AE$15,0),MATCH('Carbon tax values'!L$2,Allowances!$AA$2:$AE$2,0))) -> 42.548484 | M6: =M$5*(1-INDEX(Allowances!$AA$2:$AE$15,MATCH('Carbon tax values'!$B6,Allowances!$AE$2:$AE$15,0),MATCH('Carbon tax values'!M$2,Allowances!$AA$2:$AE$2,0))) -> 42.548484 | N6: =N$5*(1-INDEX(Allowances!$AA$2:$AE$15,MATCH('Carbon tax values'!$B6,Allowances!$AE$2:$AE$15,0),MATCH('Carbon tax values'!N$2,Allowances!$AA$2:$AE$2,0))) -> 43.915284 | O6: =O$5*(1-INDEX(Allowances!$AA$2:$AE$15,MATCH('Carbon tax values'!$B6,Allowances!$AE$2:$AE$15,0),MATCH('Carbon tax values'!O$2,Allowances!$AA$2:$AE$2,0))) -> 43.915284 | P6: =P$5*(1-INDEX(Allowances!$AA$2:$AE$15,MATCH('Carbon tax values'!$B6,Allowances!$AE$2:$AE$15,0),MATCH('Carbon tax values'!P$2,Allowances!$AA$2:$AE$2,0))) -> 43.915284 | Q6: =Q$5*(1-INDEX(Allowances!$AA$2:$AE$15,MATCH('Carbon tax values'!$B6,Allowances!$AE$2:$AE$15,0),MATCH('Carbon tax values'!Q$2,Allowances!$AA$2:$AE$2,0))) -> 43.915284 | R6: =R$5*(1-INDEX(Allowances!$AA$2:$AE$15,MATCH('Carbon tax values'!$B6,Allowances!$AE$2:$AE$15,0),MATCH('Carbon tax values'!R$2,Allowances!$AA$2:$AE$2,0))) -> 43.915284 | S6: =S$5*(1-INDEX(Allowances!$AA$2:$AE$15,MATCH('Carbon tax values'!$B6,Allowances!$AE$2:$AE$15,0),MATCH('Carbon tax values'!S$2,Allowances!$AA$2:$AE$2,0))) -> 43.915284 | T6: =T$5*(1-INDEX(Allowances!$AA$2:$AE$15,MATCH('Carbon tax values'!$B6,Allowances!$AE$2:$AE$15,0),MATCH('Carbon tax values'!T$2,Allowances!$AA$2:$AE$2,0))) -> 43.915284 | U6: =U$5*(1-INDEX(Allowances!$AA$2:$AE$15,MATCH('Carbon tax values'!$B6,Allowances!$AE$2:$AE$15,0),MATCH('Carbon tax values'!U$2,Allowances!$AA$2:$AE$2,0))) -> 43.915284 | V6: =V$5*(1-INDEX(Allowances!$AA$2:$AE$15,MATCH('Carbon tax values'!$B6,Allowances!$AE$2:$AE$15,0),MATCH('Carbon tax values'!V$2,Allowances!$AA$2:$AE$2,0))) -> 43.915284 | W6: =W$5*(1-INDEX(Allowances!$AA$2:$AE$15,MATCH('Carbon tax values'!$B6,Allowances!$AE$2:$AE$15,0),MATCH('Carbon tax values'!W$2,Allowances!$AA$2:$AE$2,0))) -> 43.915284 | X6: =X$5*(1-INDEX(Allowances!$AA$2:$AE$15,MATCH('Carbon tax values'!$B6,Allowances!$AE$2:$AE$15,0),MATCH('Carbon tax values'!X$2,Allowances!$AA$2:$AE$2,0))) -> 43.915284 | Y6: =Y$5*(1-INDEX(Allowances!$AA$2:$AE$15,MATCH('Carbon tax values'!$B6,Allowances!$AE$2:$AE$15,0),MATCH('Carbon tax values'!Y$2,Allowances!$AA$2:$AE$2,0))) -> 43.915284 | Z6: =Z$5*(1-INDEX(Allowances!$AA$2:$AE$15,MATCH('Carbon tax values'!$B6,Allowances!$AE$2:$AE$15,0),MATCH('Carbon tax values'!Z$2,Allowances!$AA$2:$AE$2,0))) -> 43.915284 | AA6: =AA$5*(1-INDEX(Allowances!$AA$2:$AE$15,MATCH('Carbon tax values'!$B6,Allowances!$AE$2:$AE$15,0),MATCH('Carbon tax values'!AA$2,Allowances!$AA$2:$AE$2,0))) -> 43.915284 | AB6: =AB$5*(1-INDEX(Allowances!$AA$2:$AE$15,MATCH('Carbon tax values'!$B6,Allowances!$AE$2:$AE$15,0),MATCH('Carbon tax values'!AB$2,Allowances!$AA$2:$AE$2,0))) -> 43.915284 | AC6: =AC$5*(1-INDEX(Allowances!$AA$2:$AE$15,MATCH('Carbon tax values'!$B6,Allowances!$AE$2:$AE$15,0),MATCH('Carbon tax values'!AC$2,Allowances!$AA$2:$AE$2,0))) -> 43.915284 | AD6: =AD$5*(1-INDEX(Allowances!$AA$2:$AE$15,MATCH('Carbon tax values'!$B6,Allowances!$AE$2:$AE$15,0),MATCH('Carbon tax values'!AD$2,Allowances!$AA$2:$AE$2,0))) -> 43.915284 | AE6: =AE$5*(1-INDEX(Allowances!$AA$2:$AE$15,MATCH('Carbon tax values'!$B6,Allowances!$AE$2:$AE$15,0),MATCH('Carbon tax values'!AE$2,Allowances!$AA$2:$AE$2,0))) -> 43.915284 | AF6: =AF$5*(1-INDEX(Allowances!$AA$2:$AE$15,MATCH('Carbon tax values'!$B6,Allowances!$AE$2:$AE$15,0),MATCH('Carbon tax values'!AF$2,Allowances!$AA$2:$AE$2,0))) -> 43.915284 | AG6: =AG$5*(1-INDEX(Allowances!$AA$2:$AE$15,MATCH('Carbon tax values'!$B6,Allowances!$AE$2:$AE$15,0),MATCH('Carbon tax values'!AG$2,Allowances!$AA$2:$AE$2,0))) -> 43.915284
B7: Current Policies-Energy - other | C7: Energy - other | D7: =D$5*(1-INDEX(Allowances!$AA$2:$AE$15,MATCH('Carbon tax values'!$B7,Allowances!$AE$2:$AE$15,0),MATCH('Carbon tax values'!D$2,Allowances!$AA$2:$AE$2,0))) -> 30.82 | E7: =E$5*(1-INDEX(Allowances!$AA$2:$AE$15,MATCH('Carbon tax values'!$B7,Allowances!$AE$2:$AE$15,0),MATCH('Carbon tax values'!E$2,Allowances!$AA$2:$AE$2,0))) -> 31.4364 | F7: =F$5*(1-INDEX(Allowances!$AA$2:$AE$15,MATCH('Carbon tax values'!$B7,Allowances!$AE$2:$AE$15,0),MATCH('Carbon tax values'!F$2,Allowances!$AA$2:$AE$2,0))) -> 36.9036 | G7: =G$5*(1-INDEX(Allowances!$AA$2:$AE$15,MATCH('Carbon tax values'!$B7,Allowances!$AE$2:$AE$15,0),MATCH('Carbon tax values'!G$2,Allowances!$AA$2:$AE$2,0))) -> 36.9036 | H7: =H$5*(1-INDEX(Allowances!$AA$2:$AE$15,MATCH('Carbon tax values'!$B7,Allowances!$AE$2:$AE$15,0),MATCH('Carbon tax values'!H$2,Allowances!$AA$2:$AE$2,0))) -> 36.9036 | I7: =I$5*(1-INDEX(Allowances!$AA$2:$AE$15,MATCH('Carbon tax values'!$B7,Allowances!$AE$2:$AE$15,0),MATCH('Carbon tax values'!I$2,Allowances!$AA$2:$AE$2,0))) -> 36.9036 | J7: =J$5*(1-INDEX(Allowances!$AA$2:$AE$15,MATCH('Carbon tax values'!$B7,Allowances!$AE$2:$AE$15,0),MATCH('Carbon tax values'!J$2,Allowances!$AA$2:$AE$2,0))) -> 36.9036 | K7: =K$5*(1-INDEX(Allowances!$AA$2:$AE$15,MATCH('Carbon tax values'!$B7,Allowances!$AE$2:$AE$15,0),MATCH('Carbon tax values'!K$2,Allowances!$AA$2:$AE$2,0))) -> 36.9036 | L7: =L$5*(1-INDEX(Allowances!$AA$2:$AE$15,MATCH('Carbon tax values'!$B7,Allowances!$AE$2:$AE$15,0),MATCH('Carbon tax values'!L$2,Allowances!$AA$2:$AE$2,0))) -> 36.9036 | M7: =M$5*(1-INDEX(Allowances!$AA$2:$AE$15,MATCH('Carbon tax values'!$B7,Allowances!$AE$2:$AE$15,0),MATCH('Carbon tax values'!M$2,Allowances!$AA$2:$AE$2,0))) -> 36.9036 | N7: =N$5*(1-INDEX(Allowances!$AA$2:$AE$15,MATCH('Carbon tax values'!$B7,Allowances!$AE$2:$AE$15,0),MATCH('Carbon tax values'!N$2,Allowances!$AA$2:$AE$2,0))) -> 38.2704 | O7: =O$5*(1-INDEX(Allowances!$AA$2:$AE$15,MATCH('Carbon tax values'!$B7,Allowances!$AE$2:$AE$15,0),MATCH('Carbon tax values'!O$2,Allowances!$AA$2:$AE$2,0))) -> 38.2704 | P7: =P$5*(1-INDEX(Allowances!$AA$2:$AE$15,MATCH('Carbon tax values'!$B7,Allowances!$AE$2:$AE$15,0),MATCH('Carbon tax values'!P$2,Allowances!$AA$2:$AE$2,0))) -> 38.2704 | Q7: =Q$5*(1-INDEX(Allowances!$AA$2:$AE$15,MATCH('Carbon tax values'!$B7,Allowances!$AE$2:$AE$15,0),MATCH('Carbon tax values'!Q$2,Allowances!$AA$2:$AE$2,0))) -> 38.2704 | R7: =R$5*(1-INDEX(Allowances!$AA$2:$AE$15,MATCH('Carbon tax values'!$B7,Allowances!$AE$2:$AE$15,0),MATCH('Carbon tax values'!R$2,Allowances!$AA$2:$AE$2,0))) -> 38.2704 | S7: =S$5*(1-INDEX(Allowances!$AA$2:$AE$15,MATCH('Carbon tax values'!$B7,Allowances!$AE$2:$AE$15,0),MATCH('Carbon tax values'!S$2,Allowances!$AA$2:$AE$2,0))) -> 38.2704 | T7: =T$5*(1-INDEX(Allowances!$AA$2:$AE$15,MATCH('Carbon tax values'!$B7,Allowances!$AE$2:$AE$15,0),MATCH('Carbon tax values'!T$2,Allowances!$AA$2:$AE$2,0))) -> 38.2704 | U7: =U$5*(1-INDEX(Allowances!$AA$2:$AE$15,MATCH('Carbon tax values'!$B7,Allowances!$AE$2:$AE$15,0),MATCH('Carbon tax values'!U$2,Allowances!$AA$2:$AE$2,0))) -> 38.2704 | V7: =V$5*(1-INDEX(Allowances!$AA$2:$AE$15,MATCH('Carbon tax values'!$B7,Allowances!$AE$2:$AE$15,0),MATCH('Carbon tax values'!V$2,Allowances!$AA$2:$AE$2,0))) -> 38.2704 | W7: =W$5*(1-INDEX(Allowances!$AA$2:$AE$15,MATCH('Carbon tax values'!$B7,Allowances!$AE$2:$AE$15,0),MATCH('Carbon tax values'!W$2,Allowances!$AA$2:$AE$2,0))) -> 38.2704 | X7: =X$5*(1-INDEX(Allowances!$AA$2:$AE$15,MATCH('Carbon tax values'!$B7,Allowances!$AE$2:$AE$15,0),MATCH('Carbon tax values'!X$2,Allowances!$AA$2:$AE$2,0))) -> 38.2704 | Y7: =Y$5*(1-INDEX(Allowances!$AA$2:$AE$15,MATCH('Carbon tax values'!$B7,Allowances!$AE$2:$AE$15,0),MATCH('Carbon tax values'!Y$2,Allowances!$AA$2:$AE$2,0))) -> 38.2704 | Z7: =Z$5*(1-INDEX(Allowances!$AA$2:$AE$15,MATCH('Carbon tax values'!$B7,Allowances!$AE$2:$AE$15,0),MATCH('Carbon tax values'!Z$2,Allowances!$AA$2:$AE$2,0))) -> 38.2704 | AA7: =AA$5*(1-INDEX(Allowances!$AA$2:$AE$15,MATCH('Carbon tax values'!$B7,Allowances!$AE$2:$AE$15,0),MATCH('Carbon tax values'!AA$2,Allowances!$AA$2:$AE$2,0))) -> 38.2704 | AB7: =AB$5*(1-INDEX(Allowances!$AA$2:$AE$15,MATCH('Carbon tax values'!$B7,Allowances!$AE$2:$AE$15,0),MATCH('Carbon tax values'!AB$2,Allowances!$AA$2:$AE$2,0))) -> 38.2704 | AC7: =AC$5*(1-INDEX(Allowances!$AA$2:$AE$15,MATCH('Carbon tax values'!$B7,Allowances!$AE$2:$AE$15,0),MATCH('Carbon tax values'!AC$2,Allowances!$AA$2:$AE$2,0))) -> 38.2704 | AD7: =AD$5*(1-INDEX(Allowances!$AA$2:$AE$15,MATCH('Carbon tax values'!$B7,Allowances!$AE$2:$AE$15,0),MATCH('Carbon tax values'!AD$2,Allowances!$AA$2:$AE$2,0))) -> 38.2704 | AE7: =AE$5*(1-INDEX(Allowances!$AA$2:$AE$15,MATCH('Carbon tax values'!$B7,Allowances!$AE$2:$AE$15,0),MATCH('Carbon tax values'!AE$2,Allowances!$AA$2:$AE$2,0))) -> 38.2704 | AF7: =AF$5*(1-INDEX(Allowances!$AA$2:$AE$15,MATCH('Carbon tax values'!$B7,Allowances!$AE$2:$AE$15,0),MATCH('Carbon tax values'!AF$2,Allowances!$AA$2:$AE$2,0))) -> 38.2704 | AG7: =AG$5*(1-INDEX(Allowances!$AA$2:$AE$15,MATCH('Carbon tax values'!$B7,Allowances!$AE$2:$AE$15,0),MATCH('Carbon tax values'!AG$2,Allowances!$AA$2:$AE$2,0))) -> 38.2704
B8: Current Policies-Industrial process/Fugitive | C8: Industrial process/Fugitive | D8: =D$5*(1-INDEX(Allowances!$AA$2:$AE$15,MATCH('Carbon tax values'!$B8,Allowances!$AE$2:$AE$15,0),MATCH('Carbon tax values'!D$2,Allowances!$AA$2:$AE$2,0))) -> 17.42 | E8: =E$5*(1-INDEX(Allowances!$AA$2:$AE$15,MATCH('Carbon tax values'!$B8,Allowances!$AE$2:$AE$15,0),MATCH('Carbon tax values'!E$2,Allowances!$AA$2:$AE$2,0))) -> 17.7684 | F8: =F$5*(1-INDEX(Allowances!$AA$2:$AE$15,MATCH('Carbon tax values'!$B8,Allowances!$AE$2:$AE$15,0),MATCH('Carbon tax values'!F$2,Allowances!$AA$2:$AE$2,0))) -> 23.2356 | G8: =G$5*(1-INDEX(Allowances!$AA$2:$AE$15,MATCH('Carbon tax values'!$B8,Allowances!$AE$2:$AE$15,0),MATCH('Carbon tax values'!G$2,Allowances!$AA$2:$AE$2,0))) -> 23.2356 | H8: =H$5*(1-INDEX(Allowances!$AA$2:$AE$15,MATCH('Carbon tax values'!$B8,Allowances!$AE$2:$AE$15,0),MATCH('Carbon tax values'!H$2,Allowances!$AA$2:$AE$2,0))) -> 23.2356 | I8: =I$5*(1-INDEX(Allowances!$AA$2:$AE$15,MATCH('Carbon tax values'!$B8,Allowances!$AE$2:$AE$15,0),MATCH('Carbon tax values'!I$2,Allowances!$AA$2:$AE$2,0))) -> 23.2356 | J8: =J$5*(1-INDEX(Allowances!$AA$2:$AE$15,MATCH('Carbon tax values'!$B8,Allowances!$AE$2:$AE$15,0),MATCH('Carbon tax values'!J$2,Allowances!$AA$2:$AE$2,0))) -> 23.2356 | K8: =K$5*(1-INDEX(Allowances!$AA$2:$AE$15,MATCH('Carbon tax values'!$B8,Allowances!$AE$2:$AE$15,0),MATCH('Carbon tax values'!K$2,Allowances!$AA$2:$AE$2,0))) -> 23.2356 | L8: =L$5*(1-INDEX(Allowances!$AA$2:$AE$15,MATCH('Carbon tax values'!$B8,Allowances!$AE$2:$AE$15,0),MATCH('Carbon tax values'!L$2,Allowances!$AA$2:$AE$2,0))) -> 23.2356 | M8: =M$5*(1-INDEX(Allowances!$AA$2:$AE$15,MATCH('Carbon tax values'!$B8,Allowances!$AE$2:$AE$15,0),MATCH('Carbon tax values'!M$2,Allowances!$AA$2:$AE$2,0))) -> 23.2356 | N8: =N$5*(1-INDEX(Allowances!$AA$2:$AE$15,MATCH('Carbon tax values'!$B8,Allowances!$AE$2:$AE$15,0),MATCH('Carbon tax values'!N$2,Allowances!$AA$2:$AE$2,0))) -> 24.6024 | O8: =O$5*(1-INDEX(Allowances!$AA$2:$AE$15,MATCH('Carbon tax values'!$B8,Allowances!$AE$2:$AE$15,0),MATCH('Carbon tax values'!O$2,Allowances!$AA$2:$AE$2,0))) -> 24.6024 | P8: =P$5*(1-INDEX(Allowances!$AA$2:$AE$15,MATCH('Carbon tax values'!$B8,Allowances!$AE$2:$AE$15,0),MATCH('Carbon tax values'!P$2,Allowances!$AA$2:$AE$2,0))) -> 24.6024 | Q8: =Q$5*(1-INDEX(Allowances!$AA$2:$AE$15,MATCH('Carbon tax values'!$B8,Allowances!$AE$2:$AE$15,0),MATCH('Carbon tax values'!Q$2,Allowances!$AA$2:$AE$2,0))) -> 24.6024 | R8: =R$5*(1-INDEX(Allowances!$AA$2:$AE$15,MATCH('Carbon tax values'!$B8,Allowances!$AE$2:$AE$15,0),MATCH('Carbon tax values'!R$2,Allowances!$AA$2:$AE$2,0))) -> 24.6024 | S8: =S$5*(1-INDEX(Allowances!$AA$2:$AE$15,MATCH('Carbon tax values'!$B8,Allowances!$AE$2:$AE$15,0),MATCH('Carbon tax values'!S$2,Allowances!$AA$2:$AE$2,0))) -> 24.6024 | T8: =T$5*(1-INDEX(Allowances!$AA$2:$AE$15,MATCH('Carbon tax values'!$B8,Allowances!$AE$2:$AE$15,0),MATCH('Carbon tax values'!T$2,Allowances!$AA$2:$AE$2,0))) -> 24.6024 | U8: =U$5*(1-INDEX(Allowances!$AA$2:$AE$15,MATCH('Carbon tax values'!$B8,Allowances!$AE$2:$AE$15,0),MATCH('Carbon tax values'!U$2,Allowances!$AA$2:$AE$2,0))) -> 24.6024 | V8: =V$5*(1-INDEX(Allowances!$AA$2:$AE$15,MATCH('Carbon tax values'!$B8,Allowances!$AE$2:$AE$15,0),MATCH('Carbon tax values'!V$2,Allowances!$AA$2:$AE$2,0))) -> 24.6024 | W8: =W$5*(1-INDEX(Allowances!$AA$2:$AE$15,MATCH('Carbon tax values'!$B8,Allowances!$AE$2:$AE$15,0),MATCH('Carbon tax values'!W$2,Allowances!$AA$2:$AE$2,0))) -> 24.6024 | X8: =X$5*(1-INDEX(Allowances!$AA$2:$AE$15,MATCH('Carbon tax values'!$B8,Allowances!$AE$2:$AE$15,0),MATCH('Carbon tax values'!X$2,Allowances!$AA$2:$AE$2,0))) -> 24.6024 | Y8: =Y$5*(1-INDEX(Allowances!$AA$2:$AE$15,MATCH('Carbon tax values'!$B8,Allowances!$AE$2:$AE$15,0),MATCH('Carbon tax values'!Y$2,Allowances!$AA$2:$AE$2,0))) -> 24.6024 | Z8: =Z$5*(1-INDEX(Allowances!$AA$2:$AE$15,MATCH('Carbon tax values'!$B8,Allowances!$AE$2:$AE$15,0),MATCH('Carbon tax values'!Z$2,Allowances!$AA$2:$AE$2,0))) -> 24.6024 | AA8: =AA$5*(1-INDEX(Allowances!$AA$2:$AE$15,MATCH('Carbon tax values'!$B8,Allowances!$AE$2:$AE$15,0),MATCH('Carbon tax values'!AA$2,Allowances!$AA$2:$AE$2,0))) -> 24.6024 | AB8: =AB$5*(1-INDEX(Allowances!$AA$2:$AE$15,MATCH('Carbon tax values'!$B8,Allowances!$AE$2:$AE$15,0),MATCH('Carbon tax values'!AB$2,Allowances!$AA$2:$AE$2,0))) -> 24.6024 | AC8: =AC$5*(1-INDEX(Allowances!$AA$2:$AE$15,MATCH('Carbon tax values'!$B8,Allowances!$AE$2:$AE$15,0),MATCH('Carbon tax values'!AC$2,Allowances!$AA$2:$AE$2,0))) -> 24.6024 | AD8: =AD$5*(1-INDEX(Allowances!$AA$2:$AE$15,MATCH('Carbon tax values'!$B8,Allowances!$AE$2:$AE$15,0),MATCH('Carbon tax values'!AD$2,Allowances!$AA$2:$AE$2,0))) -> 24.6024 | AE8: =AE$5*(1-INDEX(Allowances!$AA$2:$AE$15,MATCH('Carbon tax values'!$B8,Allowances!$AE$2:$AE$15,0),MATCH('Carbon tax values'!AE$2,Allowances!$AA$2:$AE$2,0))) -> 24.6024 | AF8: =AF$5*(1-INDEX(Allowances!$AA$2:$AE$15,MATCH('Carbon tax values'!$B8,Allowances!$AE$2:$AE$15,0),MATCH('Carbon tax values'!AF$2,Allowances!$AA$2:$AE$2,0))) -> 24.6024 | AG8: =AG$5*(1-INDEX(Allowances!$AA$2:$AE$15,MATCH('Carbon tax values'!$B8,Allowances!$AE$2:$AE$15,0),MATCH('Carbon tax values'!AG$2,Allowances!$AA$2:$AE$2,0))) -> 24.6024
C9: =Assumptions!B6 -> Immediate 2ᵒC
C10: Carbon price | D10: =Assumptions!$B$10 -> 134 | E10: =D10*(1+INDEX(Increase!$A$3:$AD$7,MATCH('Carbon tax values'!$C9,Increase!$A$3:$A$7,0),MATCH('Carbon tax values'!E$3,Increase!$A$3:$AD$3,0))) -> 136.68 | F10: =E10*(1+INDEX(Increase!$A$3:$AD$7,MATCH('Carbon tax values'!$C9,Increase!$A$3:$A$7,0),MATCH('Carbon tax values'!F$3,Increase!$A$3:$AD$3,0))) -> 143.514 | G10: =F10*(1+INDEX(Increase!$A$3:$AD$7,MATCH('Carbon tax values'!$C9,Increase!$A$3:$A$7,0),MATCH('Carbon tax values'!G$3,Increase!$A$3:$AD$3,0))) -> 150.6897 | H10: =G10*(1+INDEX(Increase!$A$3:$AD$7,MATCH('Carbon tax values'!$C9,Increase!$A$3:$A$7,0),MATCH('Carbon tax values'!H$3,Increase!$A$3:$AD$3,0))) -> 158.224185 | I10: =H10*(1+INDEX(Increase!$A$3:$AD$7,MATCH('Carbon tax values'!$C9,Increase!$A$3:$A$7,0),MATCH('Carbon tax values'!I$3,Increase!$A$3:$AD$3,0))) -> 166.1353943 | J10: =I10*(1+INDEX(Increase!$A$3:$AD$7,MATCH('Carbon tax values'!$C9,Increase!$A$3:$A$7,0),MATCH('Carbon tax values'!J$3,Increase!$A$3:$AD$3,0))) -> 174.442164 | K10: =IF(Assumptions!$B$14="Combination",J10+($M$10-$J$10)/COUNT($K$3:$M$3),J10*(1+INDEX(Increase!$A$3:$AD$7,MATCH('Carbon tax values'!$C9,Increase!$A$3:$A$7,0),MATCH('Carbon tax values'!K$3,Increase!$A$3:$AD$3,0)))) -> 302.9614426 | L10: =IF(Assumptions!$B$14="Combination",K10+($M$10-$J$10)/COUNT($K$3:$M$3),K10*(1+INDEX(Increase!$A$3:$AD$7,MATCH('Carbon tax values'!$C9,Increase!$A$3:$A$7,0),MATCH('Carbon tax values'!L$3,Increase!$A$3:$AD$3,0)))) -> 431.4807213 | M10: =IF(Assumptions!B14="Combination",Assumptions!C23,L10*(1+INDEX(Increase!$A$3:$AD$7,MATCH('Carbon tax values'!$C9,Increase!$A$3:$A$7,0),MATCH('Carbon tax values'!L$3,Increase!$A$3:$AD$3,0)))) -> 560 | N10: =IF(Assumptions!$G$14="Target rate",M10+($AG$10-$M$10)/COUNT($N$3:$AG$3),M10*(1+INDEX(Increase!$A$3:$AD$7,MATCH('Carbon tax values'!$C9,Increase!$A$3:$A$7,0),MATCH('Carbon tax values'!N$3,Increase!$A$3:$AD$3,0)))) -> 674.4300521 | O10: =IF(Assumptions!$G$14="Target rate",N10+($AG$10-$M$10)/COUNT($N$3:$AG$3),N10*(1+INDEX(Increase!$A$3:$AD$7,MATCH('Carbon tax values'!$C9,Increase!$A$3:$A$7,0),MATCH('Carbon tax values'!O$3,Increase!$A$3:$AD$3,0)))) -> 788.8601042 | P10: =IF(Assumptions!$G$14="Target rate",O10+($AG$10-$M$10)/COUNT($N$3:$AG$3),O10*(1+INDEX(Increase!$A$3:$AD$7,MATCH('Carbon tax values'!$C9,Increase!$A$3:$A$7,0),MATCH('Carbon tax values'!P$3,Increase!$A$3:$AD$3,0)))) -> 903.2901563 | Q10: =IF(Assumptions!$G$14="Target rate",P10+($AG$10-$M$10)/COUNT($N$3:$AG$3),P10*(1+INDEX(Increase!$A$3:$AD$7,MATCH('Carbon tax values'!$C9,Increase!$A$3:$A$7,0),MATCH('Carbon tax values'!Q$3,Increase!$A$3:$AD$3,0)))) -> 1017.720208 | R10: =IF(Assumptions!$G$14="Target rate",Q10+($AG$10-$M$10)/COUNT($N$3:$AG$3),Q10*(1+INDEX(Increase!$A$3:$AD$7,MATCH('Carbon tax values'!$C9,Increase!$A$3:$A$7,0),MATCH('Carbon tax values'!R$3,Increase!$A$3:$AD$3,0)))) -> 1132.150261 | S10: =IF(Assumptions!$G$14="Target rate",R10+($AG$10-$M$10)/COUNT($N$3:$AG$3),R10*(1+INDEX(Increase!$A$3:$AD$7,MATCH('Carbon tax values'!$C9,Increase!$A$3:$A$7,0),MATCH('Carbon tax values'!S$3,Increase!$A$3:$AD$3,0)))) -> 1246.580313 | T10: =IF(Assumptions!$G$14="Target rate",S10+($AG$10-$M$10)/COUNT($N$3:$AG$3),S10*(1+INDEX(Increase!$A$3:$AD$7,MATCH('Carbon tax values'!$C9,Increase!$A$3:$A$7,0),MATCH('Carbon tax values'!T$3,Increase!$A$3:$AD$3,0)))) -> 1361.010365 | U10: =IF(Assumptions!$G$14="Target rate",T10+($AG$10-$M$10)/COUNT($N$3:$AG$3),T10*(1+INDEX(Increase!$A$3:$AD$7,MATCH('Carbon tax values'!$C9,Increase!$A$3:$A$7,0),MATCH('Carbon tax values'!U$3,Increase!$A$3:$AD$3,0)))) -> 1475.440417 | V10: =IF(Assumptions!$G$14="Target rate",U10+($AG$10-$M$10)/COUNT($N$3:$AG$3),U10*(1+INDEX(Increase!$A$3:$AD$7,MATCH('Carbon tax values'!$C9,Increase!$A$3:$A$7,0),MATCH('Carbon tax values'!V$3,Increase!$A$3:$AD$3,0)))) -> 1589.870469 | W10: =IF(Assumptions!$G$14="Target rate",V10+($AG$10-$M$10)/COUNT($N$3:$AG$3),V10*(1+INDEX(Increase!$A$3:$AD$7,MATCH('Carbon tax values'!$C9,Increase!$A$3:$A$7,0),MATCH('Carbon tax values'!W$3,Increase!$A$3:$AD$3,0)))) -> 1704.300521 | X10: =IF(Assumptions!$G$14="Target rate",W10+($AG$10-$M$10)/COUNT($N$3:$AG$3),W10*(1+INDEX(Increase!$A$3:$AD$7,MATCH('Carbon tax values'!$C9,Increase!$A$3:$A$7,0),MATCH('Carbon tax values'!X$3,Increase!$A$3:$AD$3,0)))) -> 1818.730573 | Y10: =IF(Assumptions!$G$14="Target rate",X10+($AG$10-$M$10)/COUNT($N$3:$AG$3),X10*(1+INDEX(Increase!$A$3:$AD$7,MATCH('Carbon tax values'!$C9,Increase!$A$3:$A$7,0),MATCH('Carbon tax values'!Y$3,Increase!$A$3:$AD$3,0)))) -> 1933.160625 | Z10: =IF(Assumptions!$G$14="Target rate",Y10+($AG$10-$M$10)/COUNT($N$3:$AG$3),Y10*(1+INDEX(Increase!$A$3:$AD$7,MATCH('Carbon tax values'!$C9,Increase!$A$3:$A$7,0),MATCH('Carbon tax values'!Z$3,Increase!$A$3:$AD$3,0)))) -> 2047.590677 | AA10: =IF(Assumptions!$G$14="Target rate",Z10+($AG$10-$M$10)/COUNT($N$3:$AG$3),Z10*(1+INDEX(Increase!$A$3:$AD$7,MATCH('Carbon tax values'!$C9,Increase!$A$3:$A$7,0),MATCH('Carbon tax values'!AA$3,Increase!$A$3:$AD$3,0)))) -> 2162.020729 | AB10: =IF(Assumptions!$G$14="Target rate",AA10+($AG$10-$M$10)/COUNT($N$3:$AG$3),AA10*(1+INDEX(Increase!$A$3:$AD$7,MATCH('Carbon tax values'!$C9,Increase!$A$3:$A$7,0),MATCH('Carbon tax values'!AB$3,Increase!$A$3:$AD$3,0)))) -> 2276.450782 | AC10: =IF(Assumptions!$G$14="Target rate",AB10+($AG$10-$M$10)/COUNT($N$3:$AG$3),AB10*(1+INDEX(Increase!$A$3:$AD$7,MATCH('Carbon tax values'!$C9,Increase!$A$3:$A$7,0),MATCH('Carbon tax values'!AC$3,Increase!$A$3:$AD$3,0)))) -> 2390.880834 | AD10: =IF(Assumptions!$G$14="Target rate",AC10+($AG$10-$M$10)/COUNT($N$3:$AG$3),AC10*(1+INDEX(Increase!$A$3:$AD$7,MATCH('Carbon tax values'!$C9,Increase!$A$3:$A$7,0),MATCH('Carbon tax values'!AD$3,Increase!$A$3:$AD$3,0)))) -> 2505.310886 | AE10: =IF(Assumptions!$G$14="Target rate",AD10+($AG$10-$M$10)/COUNT($N$3:$AG$3),AD10*(1+INDEX(Increase!$A$3:$AD$7,MATCH('Carbon tax values'!$C9,Increase!$A$3:$A$7,0),MATCH('Carbon tax values'!AE$3,Increase!$A$3:$AD$3,0)))) -> 2619.740938 | AF10: =IF(Assumptions!$G$14="Target rate",AE10+($AG$10-$M$10)/COUNT($N$3:$AG$3),AE10*(1+INDEX(Increase!$A$3:$AD$7,MATCH('Carbon tax values'!$C9,Increase!$A$3:$A$7,0),MATCH('Carbon tax values'!AF$3,Increase!$A$3:$AD$3,0)))) -> 2734.17099 | AG10: =IF(Assumptions!$G$14="Target rate",Assumptions!C35,AF10*(1+INDEX(Increase!$A$3:$AD$7,MATCH('Carbon tax values'!$C9,Increase!$A$3:$A$7,0),MATCH('Carbon tax values'!L$3,Increase!$A$3:$AD$3,0)))) -> 2848.601042
B11: =$C$9&"-"&C11 -> Immediate 2ᵒC-Energy - Power | C11: Energy - Power | D11: =D$10*(1-INDEX(Allowances!$AA$2:$AE$15,MATCH('Carbon tax values'!$B11,Allowances!$AE$2:$AE$15,0),MATCH('Carbon tax values'!D$2,Allowances!$AA$2:$AE$2,0))) -> 36.3542 | E11: =E$10*(1-INDEX(Allowances!$AA$2:$AE$15,MATCH('Carbon tax values'!$B11,Allowances!$AE$2:$AE$15,0),MATCH('Carbon tax values'!E$2,Allowances!$AA$2:$AE$2,0))) -> 37.081284 | F11: =F$10*(1-INDEX(Allowances!$AA$2:$AE$15,MATCH('Carbon tax values'!$B11,Allowances!$AE$2:$AE$15,0),MATCH('Carbon tax values'!F$2,Allowances!$AA$2:$AE$2,0))) -> 87.7301082 | G11: =G$10*(1-INDEX(Allowances!$AA$2:$AE$15,MATCH('Carbon tax values'!$B11,Allowances!$AE$2:$AE$15,0),MATCH('Carbon tax values'!G$2,Allowances!$AA$2:$AE$2,0))) -> 92.11661361 | H11: =H$10*(1-INDEX(Allowances!$AA$2:$AE$15,MATCH('Carbon tax values'!$B11,Allowances!$AE$2:$AE$15,0),MATCH('Carbon tax values'!H$2,Allowances!$AA$2:$AE$2,0))) -> 96.72244429 | I11: =I$10*(1-INDEX(Allowances!$AA$2:$AE$15,MATCH('Carbon tax values'!$B11,Allowances!$AE$2:$AE$15,0),MATCH('Carbon tax values'!I$2,Allowances!$AA$2:$AE$2,0))) -> 101.5585665 | J11: =J$10*(1-INDEX(Allowances!$AA$2:$AE$15,MATCH('Carbon tax values'!$B11,Allowances!$AE$2:$AE$15,0),MATCH('Carbon tax values'!J$2,Allowances!$AA$2:$AE$2,0))) -> 106.6364948 | K11: =K$10*(1-INDEX(Allowances!$AA$2:$AE$15,MATCH('Carbon tax values'!$B11,Allowances!$AE$2:$AE$15,0),MATCH('Carbon tax values'!K$2,Allowances!$AA$2:$AE$2,0))) -> 276.0887627 | L11: =L$10*(1-INDEX(Allowances!$AA$2:$AE$15,MATCH('Carbon tax values'!$B11,Allowances!$AE$2:$AE$15,0),MATCH('Carbon tax values'!L$2,Allowances!$AA$2:$AE$2,0))) -> 393.2083813 | M11: =M$10*(1-INDEX(Allowances!$AA$2:$AE$15,MATCH('Carbon tax values'!$B11,Allowances!$AE$2:$AE$15,0),MATCH('Carbon tax values'!M$2,Allowances!$AA$2:$AE$2,0))) -> 510.328 | N11: =N$10*(1-INDEX(Allowances!$AA$2:$AE$15,MATCH('Carbon tax values'!$B11,Allowances!$AE$2:$AE$15,0),MATCH('Carbon tax values'!N$2,Allowances!$AA$2:$AE$2,0))) -> 674.4300521 | O11: =O$10*(1-INDEX(Allowances!$AA$2:$AE$15,MATCH('Carbon tax values'!$B11,Allowances!$AE$2:$AE$15,0),MATCH('Carbon tax values'!O$2,Allowances!$AA$2:$AE$2,0))) -> 788.8601042 | P11: =P$10*(1-INDEX(Allowances!$AA$2:$AE$15,MATCH('Carbon tax values'!$B11,Allowances!$AE$2:$AE$15,0),MATCH('Carbon tax values'!P$2,Allowances!$AA$2:$AE$2,0))) -> 903.2901563 | Q11: =Q$10*(1-INDEX(Allowances!$AA$2:$AE$15,MATCH('Carbon tax values'!$B11,Allowances!$AE$2:$AE$15,0),MATCH('Carbon tax values'!Q$2,Allowances!$AA$2:$AE$2,0))) -> 1017.720208 | R11: =R$10*(1-INDEX(Allowances!$AA$2:$AE$15,MATCH('Carbon tax values'!$B11,Allowances!$AE$2:$AE$15,0),MATCH('Carbon tax values'!R$2,Allowances!$AA$2:$AE$2,0))) -> 1132.150261 | S11: =S$10*(1-INDEX(Allowances!$AA$2:$AE$15,MATCH('Carbon tax values'!$B11,Allowances!$AE$2:$AE$15,0),MATCH('Carbon tax values'!S$2,Allowances!$AA$2:$AE$2,0))) -> 1246.580313 | T11: =T$10*(1-INDEX(Allowances!$AA$2:$AE$15,MATCH('Carbon tax values'!$B11,Allowances!$AE$2:$AE$15,0),MATCH('Carbon tax values'!T$2,Allowances!$AA$2:$AE$2,0))) -> 1361.010365 | U11: =U$10*(1-INDEX(Allowances!$AA$2:$AE$15,MATCH('Carbon tax values'!$B11,Allowances!$AE$2:$AE$15,0),MATCH('Carbon tax values'!U$2,Allowances!$AA$2:$AE$2,0))) -> 1475.440417 | V11: =V$10*(1-INDEX(Allowances!$AA$2:$AE$15,MATCH('Carbon tax values'!$B11,Allowances!$AE$2:$AE$15,0),MATCH('Carbon tax values'!V$2,Allowances!$AA$2:$AE$2,0))) -> 1589.870469 | W11: =W$10*(1-INDEX(Allowances!$AA$2:$AE$15,MATCH('Carbon tax values'!$B11,Allowances!$AE$2:$AE$15,0),MATCH('Carbon tax values'!W$2,Allowances!$AA$2:$AE$2,0))) -> 1704.300521 | X11: =X$10*(1-INDEX(Allowances!$AA$2:$AE$15,MATCH('Carbon tax values'!$B11,Allowances!$AE$2:$AE$15,0),MATCH('Carbon tax values'!X$2,Allowances!$AA$2:$AE$2,0))) -> 1818.730573 | Y11: =Y$10*(1-INDEX(Allowances!$AA$2:$AE$15,MATCH('Carbon tax values'!$B11,Allowances!$AE$2:$AE$15,0),MATCH('Carbon tax values'!Y$2,Allowances!$AA$2:$AE$2,0))) -> 1933.160625 | Z11: =Z$10*(1-INDEX(Allowances!$AA$2:$AE$15,MATCH('Carbon tax values'!$B11,Allowances!$AE$2:$AE$15,0),MATCH('Carbon tax values'!Z$2,Allowances!$AA$2:$AE$2,0))) -> 2047.590677 | AA11: =AA$10*(1-INDEX(Allowances!$AA$2:$AE$15,MATCH('Carbon tax values'!$B11,Allowances!$AE$2:$AE$15,0),MATCH('Carbon tax values'!AA$2,Allowances!$AA$2:$AE$2,0))) -> 2162.020729 | AB11: =AB$10*(1-INDEX(Allowances!$AA$2:$AE$15,MATCH('Carbon tax values'!$B11,Allowances!$AE$2:$AE$15,0),MATCH('Carbon tax values'!AB$2,Allowances!$AA$2:$AE$2,0))) -> 2276.450782 | AC11: =AC$10*(1-INDEX(Allowances!$AA$2:$AE$15,MATCH('Carbon tax values'!$B11,Allowances!$AE$2:$AE$15,0),MATCH('Carbon tax values'!AC$2,Allowances!$AA$2:$AE$2,0))) -> 2390.880834 | AD11: =AD$10*(1-INDEX(Allowances!$AA$2:$AE$15,MATCH('Carbon tax values'!$B11,Allowances!$AE$2:$AE$15,0),MATCH('Carbon tax values'!AD$2,Allowances!$AA$2:$AE$2,0))) -> 2505.310886 | AE11: =AE$10*(1-INDEX(Allowances!$AA$2:$AE$15,MATCH('Carbon tax values'!$B11,Allowances!$AE$2:$AE$15,0),MATCH('Carbon tax values'!AE$2,Allowances!$AA$2:$AE$2,0))) -> 2619.740938 | AF11: =AF$10*(1-INDEX(Allowances!$AA$2:$AE$15,MATCH('Carbon tax values'!$B11,Allowances!$AE$2:$AE$15,0),MATCH('Carbon tax values'!AF$2,Allowances!$AA$2:$AE$2,0))) -> 2734.17099 | AG11: =AG$10*(1-INDEX(Allowances!$AA$2:$AE$15,MATCH('Carbon tax values'!$B11,Allowances!$AE$2:$AE$15,0),MATCH('Carbon tax values'!AG$2,Allowances!$AA$2:$AE$2,0))) -> 2848.601042
B12: Immediate 2ᵒC-Energy - other | C12: Energy - other | D12: =D$10*(1-INDEX(Allowances!$AA$2:$AE$15,MATCH('Carbon tax values'!$B12,Allowances!$AE$2:$AE$15,0),MATCH('Carbon tax values'!D$2,Allowances!$AA$2:$AE$2,0))) -> 30.82 | E12: =E$10*(1-INDEX(Allowances!$AA$2:$AE$15,MATCH('Carbon tax values'!$B12,Allowances!$AE$2:$AE$15,0),MATCH('Carbon tax values'!E$2,Allowances!$AA$2:$AE$2,0))) -> 31.4364 | F12: =F$10*(1-INDEX(Allowances!$AA$2:$AE$15,MATCH('Carbon tax values'!$B12,Allowances!$AE$2:$AE$15,0),MATCH('Carbon tax values'!F$2,Allowances!$AA$2:$AE$2,0))) -> 81.80298 | G12: =G$10*(1-INDEX(Allowances!$AA$2:$AE$15,MATCH('Carbon tax values'!$B12,Allowances!$AE$2:$AE$15,0),MATCH('Carbon tax values'!G$2,Allowances!$AA$2:$AE$2,0))) -> 85.893129 | H12: =H$10*(1-INDEX(Allowances!$AA$2:$AE$15,MATCH('Carbon tax values'!$B12,Allowances!$AE$2:$AE$15,0),MATCH('Carbon tax values'!H$2,Allowances!$AA$2:$AE$2,0))) -> 90.18778545 | I12: =I$10*(1-INDEX(Allowances!$AA$2:$AE$15,MATCH('Carbon tax values'!$B12,Allowances!$AE$2:$AE$15,0),MATCH('Carbon tax values'!I$2,Allowances!$AA$2:$AE$2,0))) -> 94.69717472 | J12: =J$10*(1-INDEX(Allowances!$AA$2:$AE$15,MATCH('Carbon tax values'!$B12,Allowances!$AE$2:$AE$15,0),MATCH('Carbon tax values'!J$2,Allowances!$AA$2:$AE$2,0))) -> 99.43203346 | K12: =K$10*(1-INDEX(Allowances!$AA$2:$AE$15,MATCH('Carbon tax values'!$B12,Allowances!$AE$2:$AE$15,0),MATCH('Carbon tax values'!K$2,Allowances!$AA$2:$AE$2,0))) -> 263.5764551 | L12: =L$10*(1-INDEX(Allowances!$AA$2:$AE$15,MATCH('Carbon tax values'!$B12,Allowances!$AE$2:$AE$15,0),MATCH('Carbon tax values'!L$2,Allowances!$AA$2:$AE$2,0))) -> 375.3882275 | M12: =M$10*(1-INDEX(Allowances!$AA$2:$AE$15,MATCH('Carbon tax values'!$B12,Allowances!$AE$2:$AE$15,0),MATCH('Carbon tax values'!M$2,Allowances!$AA$2:$AE$2,0))) -> 487.2 | N12: =N$10*(1-INDEX(Allowances!$AA$2:$AE$15,MATCH('Carbon tax values'!$B12,Allowances!$AE$2:$AE$15,0),MATCH('Carbon tax values'!N$2,Allowances!$AA$2:$AE$2,0))) -> 674.4300521 | O12: =O$10*(1-INDEX(Allowances!$AA$2:$AE$15,MATCH('Carbon tax values'!$B12,Allowances!$AE$2:$AE$15,0),MATCH('Carbon tax values'!O$2,Allowances!$AA$2:$AE$2,0))) -> 788.8601042 | P12: =P$10*(1-INDEX(Allowances!$AA$2:$AE$15,MATCH('Carbon tax values'!$B12,Allowances!$AE$2:$AE$15,0),MATCH('Carbon tax values'!P$2,Allowances!$AA$2:$AE$2,0))) -> 903.2901563 | Q12: =Q$10*(1-INDEX(Allowances!$AA$2:$AE$15,MATCH('Carbon tax values'!$B12,Allowances!$AE$2:$AE$15,0),MATCH('Carbon tax values'!Q$2,Allowances!$AA$2:$AE$2,0))) -> 1017.720208 | R12: =R$10*(1-INDEX(Allowances!$AA$2:$AE$15,MATCH('Carbon tax values'!$B12,Allowances!$AE$2:$AE$15,0),MATCH('Carbon tax values'!R$2,Allowances!$AA$2:$AE$2,0))) -> 1132.150261 | S12: =S$10*(1-INDEX(Allowances!$AA$2:$AE$15,MATCH('Carbon tax values'!$B12,Allowances!$AE$2:$AE$15,0),MATCH('Carbon tax values'!S$2,Allowances!$AA$2:$AE$2,0))) -> 1246.580313 | T12: =T$10*(1-INDEX(Allowances!$AA$2:$AE$15,MATCH('Carbon tax values'!$B12,Allowances!$AE$2:$AE$15,0),MATCH('Carbon tax values'!T$2,Allowances!$AA$2:$AE$2,0))) -> 1361.010365 | U12: =U$10*(1-INDEX(Allowances!$AA$2:$AE$15,MATCH('Carbon tax values'!$B12,Allowances!$AE$2:$AE$15,0),MATCH('Carbon tax values'!U$2,Allowances!$AA$2:$AE$2,0))) -> 1475.440417 | V12: =V$10*(1-INDEX(Allowances!$AA$2:$AE$15,MATCH('Carbon tax values'!$B12,Allowances!$AE$2:$AE$15,0),MATCH('Carbon tax values'!V$2,Allowances!$AA$2:$AE$2,0))) -> 1589.870469 | W12: =W$10*(1-INDEX(Allowances!$AA$2:$AE$15,MATCH('Carbon tax values'!$B12,Allowances!$AE$2:$AE$15,0),MATCH('Carbon tax values'!W$2,Allowances!$AA$2:$AE$2,0))) -> 1704.300521 | X12: =X$10*(1-INDEX(Allowances!$AA$2:$AE$15,MATCH('Carbon tax values'!$B12,Allowances!$AE$2:$AE$15,0),MATCH('Carbon tax values'!X$2,Allowances!$AA$2:$AE$2,0))) -> 1818.730573 | Y12: =Y$10*(1-INDEX(Allowances!$AA$2:$AE$15,MATCH('Carbon tax values'!$B12,Allowances!$AE$2:$AE$15,0),MATCH('Carbon tax values'!Y$2,Allowances!$AA$2:$AE$2,0))) -> 1933.160625 | Z12: =Z$10*(1-INDEX(Allowances!$AA$2:$AE$15,MATCH('Carbon tax values'!$B12,Allowances!$AE$2:$AE$15,0),MATCH('Carbon tax values'!Z$2,Allowances!$AA$2:$AE$2,0))) -> 2047.590677 | AA12: =AA$10*(1-INDEX(Allowances!$AA$2:$AE$15,MATCH('Carbon tax values'!$B12,Allowances!$AE$2:$AE$15,0),MATCH('Carbon tax values'!AA$2,Allowances!$AA$2:$AE$2,0))) -> 2162.020729 | AB12: =AB$10*(1-INDEX(Allowances!$AA$2:$AE$15,MATCH('Carbon tax values'!$B12,Allowances!$AE$2:$AE$15,0),MATCH('Carbon tax values'!AB$2,Allowances!$AA$2:$AE$2,0))) -> 2276.450782 | AC12: =AC$10*(1-INDEX(Allowances!$AA$2:$AE$15,MATCH('Carbon tax values'!$B12,Allowances!$AE$2:$AE$15,0),MATCH('Carbon tax values'!AC$2,Allowances!$AA$2:$AE$2,0))) -> 2390.880834 | AD12: =AD$10*(1-INDEX(Allowances!$AA$2:$AE$15,MATCH('Carbon tax values'!$B12,Allowances!$AE$2:$AE$15,0),MATCH('Carbon tax values'!AD$2,Allowances!$AA$2:$AE$2,0))) -> 2505.310886 | AE12: =AE$10*(1-INDEX(Allowances!$AA$2:$AE$15,MATCH('Carbon tax values'!$B12,Allowances!$AE$2:$AE$15,0),MATCH('Carbon tax values'!AE$2,Allowances!$AA$2:$AE$2,0))) -> 2619.740938 | AF12: =AF$10*(1-INDEX(Allowances!$AA$2:$AE$15,MATCH('Carbon tax values'!$B12,Allowances!$AE$2:$AE$15,0),MATCH('Carbon tax values'!AF$2,Allowances!$AA$2:$AE$2,0))) -> 2734.17099 | AG12: =AG$10*(1-INDEX(Allowances!$AA$2:$AE$15,MATCH('Carbon tax values'!$B12,Allowances!$AE$2:$AE$15,0),MATCH('Carbon tax values'!AG$2,Allowances!$AA$2:$AE$2,0))) -> 2848.601042
B13: Immediate 2ᵒC-Industrial process/Fugitive | C13: Industrial process/Fugitive | D13: =D$10*(1-INDEX(Allowances!$AA$2:$AE$15,MATCH('Carbon tax values'!$B13,Allowances!$AE$2:$AE$15,0),MATCH('Carbon tax values'!D$2,Allowances!$AA$2:$AE$2,0))) -> 17.42 | E13: =E$10*(1-INDEX(Allowances!$AA$2:$AE$15,MATCH('Carbon tax values'!$B13,Allowances!$AE$2:$AE$15,0),MATCH('Carbon tax values'!E$2,Allowances!$AA$2:$AE$2,0))) -> 17.7684 | F13: =F$10*(1-INDEX(Allowances!$AA$2:$AE$15,MATCH('Carbon tax values'!$B13,Allowances!$AE$2:$AE$15,0),MATCH('Carbon tax values'!F$2,Allowances!$AA$2:$AE$2,0))) -> 67.45158 | G13: =G$10*(1-INDEX(Allowances!$AA$2:$AE$15,MATCH('Carbon tax values'!$B13,Allowances!$AE$2:$AE$15,0),MATCH('Carbon tax values'!G$2,Allowances!$AA$2:$AE$2,0))) -> 70.824159 | H13: =H$10*(1-INDEX(Allowances!$AA$2:$AE$15,MATCH('Carbon tax values'!$B13,Allowances!$AE$2:$AE$15,0),MATCH('Carbon tax values'!H$2,Allowances!$AA$2:$AE$2,0))) -> 74.36536695 | I13: =I$10*(1-INDEX(Allowances!$AA$2:$AE$15,MATCH('Carbon tax values'!$B13,Allowances!$AE$2:$AE$15,0),MATCH('Carbon tax values'!I$2,Allowances!$AA$2:$AE$2,0))) -> 78.0836353 | J13: =J$10*(1-INDEX(Allowances!$AA$2:$AE$15,MATCH('Carbon tax values'!$B13,Allowances!$AE$2:$AE$15,0),MATCH('Carbon tax values'!J$2,Allowances!$AA$2:$AE$2,0))) -> 81.98781706 | K13: =K$10*(1-INDEX(Allowances!$AA$2:$AE$15,MATCH('Carbon tax values'!$B13,Allowances!$AE$2:$AE$15,0),MATCH('Carbon tax values'!K$2,Allowances!$AA$2:$AE$2,0))) -> 233.2803108 | L13: =L$10*(1-INDEX(Allowances!$AA$2:$AE$15,MATCH('Carbon tax values'!$B13,Allowances!$AE$2:$AE$15,0),MATCH('Carbon tax values'!L$2,Allowances!$AA$2:$AE$2,0))) -> 332.2401554 | M13: =M$10*(1-INDEX(Allowances!$AA$2:$AE$15,MATCH('Carbon tax values'!$B13,Allowances!$AE$2:$AE$15,0),MATCH('Carbon tax values'!M$2,Allowances!$AA$2:$AE$2,0))) -> 431.2 | N13: =N$10*(1-INDEX(Allowances!$AA$2:$AE$15,MATCH('Carbon tax values'!$B13,Allowances!$AE$2:$AE$15,0),MATCH('Carbon tax values'!N$2,Allowances!$AA$2:$AE$2,0))) -> 674.4300521 | O13: =O$10*(1-INDEX(Allowances!$AA$2:$AE$15,MATCH('Carbon tax values'!$B13,Allowances!$AE$2:$AE$15,0),MATCH('Carbon tax values'!O$2,Allowances!$AA$2:$AE$2,0))) -> 788.8601042 | P13: =P$10*(1-INDEX(Allowances!$AA$2:$AE$15,MATCH('Carbon tax values'!$B13,Allowances!$AE$2:$AE$15,0),MATCH('Carbon tax values'!P$2,Allowances!$AA$2:$AE$2,0))) -> 903.2901563 | Q13: =Q$10*(1-INDEX(Allowances!$AA$2:$AE$15,MATCH('Carbon tax values'!$B13,Allowances!$AE$2:$AE$15,0),MATCH('Carbon tax values'!Q$2,Allowances!$AA$2:$AE$2,0))) -> 1017.720208 | R13: =R$10*(1-INDEX(Allowances!$AA$2:$AE$15,MATCH('Carbon tax values'!$B13,Allowances!$AE$2:$AE$15,0),MATCH('Carbon tax values'!R$2,Allowances!$AA$2:$AE$2,0))) -> 1132.150261 | S13: =S$10*(1-INDEX(Allowances!$AA$2:$AE$15,MATCH('Carbon tax values'!$B13,Allowances!$AE$2:$AE$15,0),MATCH('Carbon tax values'!S$2,Allowances!$AA$2:$AE$2,0))) -> 1246.580313 | T13: =T$10*(1-INDEX(Allowances!$AA$2:$AE$15,MATCH('Carbon tax values'!$B13,Allowances!$AE$2:$AE$15,0),MATCH('Carbon tax values'!T$2,Allowances!$AA$2:$AE$2,0))) -> 1361.010365 | U13: =U$10*(1-INDEX(Allowances!$AA$2:$AE$15,MATCH('Carbon tax values'!$B13,Allowances!$AE$2:$AE$15,0),MATCH('Carbon tax values'!U$2,Allowances!$AA$2:$AE$2,0))) -> 1475.440417 | V13: =V$10*(1-INDEX(Allowances!$AA$2:$AE$15,MATCH('Carbon tax values'!$B13,Allowances!$AE$2:$AE$15,0),MATCH('Carbon tax values'!V$2,Allowances!$AA$2:$AE$2,0))) -> 1589.870469 | W13: =W$10*(1-INDEX(Allowances!$AA$2:$AE$15,MATCH('Carbon tax values'!$B13,Allowances!$AE$2:$AE$15,0),MATCH('Carbon tax values'!W$2,Allowances!$AA$2:$AE$2,0))) -> 1704.300521 | X13: =X$10*(1-INDEX(Allowances!$AA$2:$AE$15,MATCH('Carbon tax values'!$B13,Allowances!$AE$2:$AE$15,0),MATCH('Carbon tax values'!X$2,Allowances!$AA$2:$AE$2,0))) -> 1818.730573 | Y13: =Y$10*(1-INDEX(Allowances!$AA$2:$AE$15,MATCH('Carbon tax values'!$B13,Allowances!$AE$2:$AE$15,0),MATCH('Carbon tax values'!Y$2,Allowances!$AA$2:$AE$2,0))) -> 1933.160625 | Z13: =Z$10*(1-INDEX(Allowances!$AA$2:$AE$15,MATCH('Carbon tax values'!$B13,Allowances!$AE$2:$AE$15,0),MATCH('Carbon tax values'!Z$2,Allowances!$AA$2:$AE$2,0))) -> 2047.590677 | AA13: =AA$10*(1-INDEX(Allowances!$AA$2:$AE$15,MATCH('Carbon tax values'!$B13,Allowances!$AE$2:$AE$15,0),MATCH('Carbon tax values'!AA$2,Allowances!$AA$2:$AE$2,0))) -> 2162.020729 | AB13: =AB$10*(1-INDEX(Allowances!$AA$2:$AE$15,MATCH('Carbon tax values'!$B13,Allowances!$AE$2:$AE$15,0),MATCH('Carbon tax values'!AB$2,Allowances!$AA$2:$AE$2,0))) -> 2276.450782 | AC13: =AC$10*(1-INDEX(Allowances!$AA$2:$AE$15,MATCH('Carbon tax values'!$B13,Allowances!$AE$2:$AE$15,0),MATCH('Carbon tax values'!AC$2,Allowances!$AA$2:$AE$2,0))) -> 2390.880834 | AD13: =AD$10*(1-INDEX(Allowances!$AA$2:$AE$15,MATCH('Carbon tax values'!$B13,Allowances!$AE$2:$AE$15,0),MATCH('Carbon tax values'!AD$2,Allowances!$AA$2:$AE$2,0))) -> 2505.310886 | AE13: =AE$10*(1-INDEX(Allowances!$AA$2:$AE$15,MATCH('Carbon tax values'!$B13,Allowances!$AE$2:$AE$15,0),MATCH('Carbon tax values'!AE$2,Allowances!$AA$2:$AE$2,0))) -> 2619.740938 | AF13: =AF$10*(1-INDEX(Allowances!$AA$2:$AE$15,MATCH('Carbon tax values'!$B13,Allowances!$AE$2:$AE$15,0),MATCH('Carbon tax values'!AF$2,Allowances!$AA$2:$AE$2,0))) -> 2734.17099 | AG13: =AG$10*(1-INDEX(Allowances!$AA$2:$AE$15,MATCH('Carbon tax values'!$B13,Allowances!$AE$2:$AE$15,0),MATCH('Carbon tax values'!AG$2,Allowances!$AA$2:$AE$2,0))) -> 2848.601042
C14: =Assumptions!B7 -> Immediate 1.5ᵒC
C15: Carbon price | D15: =Assumptions!$B$10 -> 134 | E15: =D15*(1+INDEX(Increase!$A$3:$AD$7,MATCH('Carbon tax values'!$C14,Increase!$A$3:$A$7,0),MATCH('Carbon tax values'!E$3,Increase!$A$3:$AD$3,0))) -> 136.68 | F15: =E15*(1+INDEX(Increase!$A$3:$AD$7,MATCH('Carbon tax values'!$C14,Increase!$A$3:$A$7,0),MATCH('Carbon tax values'!F$3,Increase!$A$3:$AD$3,0))) -> 143.514 | G15: =F15*(1+INDEX(Increase!$A$3:$AD$7,MATCH('Carbon tax values'!$C14,Increase!$A$3:$A$7,0),MATCH('Carbon tax values'!G$3,Increase!$A$3:$AD$3,0))) -> 150.6897 | H15: =G15*(1+INDEX(Increase!$A$3:$AD$7,MATCH('Carbon tax values'!$C14,Increase!$A$3:$A$7,0),MATCH('Carbon tax values'!H$3,Increase!$A$3:$AD$3,0))) -> 158.224185 | I15: =H15*(1+INDEX(Increase!$A$3:$AD$7,MATCH('Carbon tax values'!$C14,Increase!$A$3:$A$7,0),MATCH('Carbon tax values'!I$3,Increase!$A$3:$AD$3,0))) -> 166.1353943 | J15: =I15*(1+INDEX(Increase!$A$3:$AD$7,MATCH('Carbon tax values'!$C14,Increase!$A$3:$A$7,0),MATCH('Carbon tax values'!J$3,Increase!$A$3:$AD$3,0))) -> 174.442164 | K15: =IF(Assumptions!$B$15="Combination",J15+($M$15-$J$15)/COUNT($K$3:$M$3),J15*(1+INDEX(Increase!$A$3:$AD$7,MATCH('Carbon tax values'!$C14,Increase!$A$3:$A$7,0),MATCH('Carbon tax values'!K$3,Increase!$A$3:$AD$3,0)))) -> 349.6281093 | L15: =IF(Assumptions!$B$15="Combination",K15+($M$15-$J$15)/COUNT($K$3:$M$3),K15*(1+INDEX(Increase!$A$3:$AD$7,MATCH('Carbon tax values'!$C14,Increase!$A$3:$A$7,0),MATCH('Carbon tax values'!L$3,Increase!$A$3:$AD$3,0)))) -> 524.8140547 | M15: =IF(Assumptions!B15="Combination",Assumptions!C24,L15*(1+INDEX(Increase!$A$3:$AD$7,MATCH('Carbon tax values'!$C14,Increase!$A$3:$A$7,0),MATCH('Carbon tax values'!M$3,Increase!$A$3:$AD$3,0)))) -> 700 | N15: =IF(Assumptions!$G$15="Target rate",M15+($AG$15-$M$15)/COUNT($N$3:$AG$3),M15*(1+INDEX(Increase!$A$3:$AD$7,MATCH('Carbon tax values'!$C14,Increase!$A$3:$A$7,0),MATCH('Carbon tax values'!N$3,Increase!$A$3:$AD$3,0)))) -> 915.2472177 | O15: =IF(Assumptions!$G$15="Target rate",N15+($AG$15-$M$15)/COUNT($N$3:$AG$3),N15*(1+INDEX(Increase!$A$3:$AD$7,MATCH('Carbon tax values'!$C14,Increase!$A$3:$A$7,0),MATCH('Carbon tax values'!O$3,Increase!$A$3:$AD$3,0)))) -> 1130.494435 | P15: =IF(Assumptions!$G$15="Target rate",O15+($AG$15-$M$15)/COUNT($N$3:$AG$3),O15*(1+INDEX(Increase!$A$3:$AD$7,MATCH('Carbon tax values'!$C14,Increase!$A$3:$A$7,0),MATCH('Carbon tax values'!P$3,Increase!$A$3:$AD$3,0)))) -> 1345.741653 | Q15: =IF(Assumptions!$G$15="Target rate",P15+($AG$15-$M$15)/COUNT($N$3:$AG$3),P15*(1+INDEX(Increase!$A$3:$AD$7,MATCH('Carbon tax values'!$C14,Increase!$A$3:$A$7,0),MATCH('Carbon tax values'!Q$3,Increase!$A$3:$AD$3,0)))) -> 1560.988871 | R15: =IF(Assumptions!$G$15="Target rate",Q15+($AG$15-$M$15)/COUNT($N$3:$AG$3),Q15*(1+INDEX(Increase!$A$3:$AD$7,MATCH('Carbon tax values'!$C14,Increase!$A$3:$A$7,0),MATCH('Carbon tax values'!R$3,Increase!$A$3:$AD$3,0)))) -> 1776.236089 | S15: =IF(Assumptions!$G$15="Target rate",R15+($AG$15-$M$15)/COUNT($N$3:$AG$3),R15*(1+INDEX(Increase!$A$3:$AD$7,MATCH('Carbon tax values'!$C14,Increase!$A$3:$A$7,0),MATCH('Carbon tax values'!S$3,Increase!$A$3:$AD$3,0)))) -> 1991.483306 | T15: =IF(Assumptions!$G$15="Target rate",S15+($AG$15-$M$15)/COUNT($N$3:$AG$3),S15*(1+INDEX(Increase!$A$3:$AD$7,MATCH('Carbon tax values'!$C14,Increase!$A$3:$A$7,0),MATCH('Carbon tax values'!T$3,Increase!$A$3:$AD$3,0)))) -> 2206.730524 | U15: =IF(Assumptions!$G$15="Target rate",T15+($AG$15-$M$15)/COUNT($N$3:$AG$3),T15*(1+INDEX(Increase!$A$3:$AD$7,MATCH('Carbon tax values'!$C14,Increase!$A$3:$A$7,0),MATCH('Carbon tax values'!U$3,Increase!$A$3:$AD$3,0)))) -> 2421.977742 | V15: =IF(Assumptions!$G$15="Target rate",U15+($AG$15-$M$15)/COUNT($N$3:$AG$3),U15*(1+INDEX(Increase!$A$3:$AD$7,MATCH('Carbon tax values'!$C14,Increase!$A$3:$A$7,0),MATCH('Carbon tax values'!V$3,Increase!$A$3:$AD$3,0)))) -> 2637.224959 | W15: =IF(Assumptions!$G$15="Target rate",V15+($AG$15-$M$15)/COUNT($N$3:$AG$3),V15*(1+INDEX(Increase!$A$3:$AD$7,MATCH('Carbon tax values'!$C14,Increase!$A$3:$A$7,0),MATCH('Carbon tax values'!W$3,Increase!$A$3:$AD$3,0)))) -> 2852.472177 | X15: =IF(Assumptions!$G$15="Target rate",W15+($AG$15-$M$15)/COUNT($N$3:$AG$3),W15*(1+INDEX(Increase!$A$3:$AD$7,MATCH('Carbon tax values'!$C14,Increase!$A$3:$A$7,0),MATCH('Carbon tax values'!X$3,Increase!$A$3:$AD$3,0)))) -> 3067.719395 | Y15: =IF(Assumptions!$G$15="Target rate",X15+($AG$15-$M$15)/COUNT($N$3:$AG$3),X15*(1+INDEX(Increase!$A$3:$AD$7,MATCH('Carbon tax values'!$C14,Increase!$A$3:$A$7,0),MATCH('Carbon tax values'!Y$3,Increase!$A$3:$AD$3,0)))) -> 3282.966612 | Z15: =IF(Assumptions!$G$15="Target rate",Y15+($AG$15-$M$15)/COUNT($N$3:$AG$3),Y15*(1+INDEX(Increase!$A$3:$AD$7,MATCH('Carbon tax values'!$C14,Increase!$A$3:$A$7,0),MATCH('Carbon tax values'!Z$3,Increase!$A$3:$AD$3,0)))) -> 3498.21383 | AA15: =IF(Assumptions!$G$15="Target rate",Z15+($AG$15-$M$15)/COUNT($N$3:$AG$3),Z15*(1+INDEX(Increase!$A$3:$AD$7,MATCH('Carbon tax values'!$C14,Increase!$A$3:$A$7,0),MATCH('Carbon tax values'!AA$3,Increase!$A$3:$AD$3,0)))) -> 3713.461048 | AB15: =IF(Assumptions!$G$15="Target rate",AA15+($AG$15-$M$15)/COUNT($N$3:$AG$3),AA15*(1+INDEX(Increase!$A$3:$AD$7,MATCH('Carbon tax values'!$C14,Increase!$A$3:$A$7,0),MATCH('Carbon tax values'!AB$3,Increase!$A$3:$AD$3,0)))) -> 3928.708266 | AC15: =IF(Assumptions!$G$15="Target rate",AB15+($AG$15-$M$15)/COUNT($N$3:$AG$3),AB15*(1+INDEX(Increase!$A$3:$AD$7,MATCH('Carbon tax values'!$C14,Increase!$A$3:$A$7,0),MATCH('Carbon tax values'!AC$3,Increase!$A$3:$AD$3,0)))) -> 4143.955483 | AD15: =IF(Assumptions!$G$15="Target rate",AC15+($AG$15-$M$15)/COUNT($N$3:$AG$3),AC15*(1+INDEX(Increase!$A$3:$AD$7,MATCH('Carbon tax values'!$C14,Increase!$A$3:$A$7,0),MATCH('Carbon tax values'!AD$3,Increase!$A$3:$AD$3,0)))) -> 4359.202701 | AE15: =IF(Assumptions!$G$15="Target rate",AD15+($AG$15-$M$15)/COUNT($N$3:$AG$3),AD15*(1+INDEX(Increase!$A$3:$AD$7,MATCH('Carbon tax values'!$C14,Increase!$A$3:$A$7,0),MATCH('Carbon tax values'!AE$3,Increase!$A$3:$AD$3,0)))) -> 4574.449919 | AF15: =IF(Assumptions!$G$15="Target rate",AE15+($AG$15-$M$15)/COUNT($N$3:$AG$3),AE15*(1+INDEX(Increase!$A$3:$AD$7,MATCH('Carbon tax values'!$C14,Increase!$A$3:$A$7,0),MATCH('Carbon tax values'!AF$3,Increase!$A$3:$AD$3,0)))) -> 4789.697136 | AG15: =IF(Assumptions!$G$15="Target rate",Assumptions!C36,AF15*(1+INDEX(Increase!$A$3:$AD$7,MATCH('Carbon tax values'!$C14,Increase!$A$3:$A$7,0),MATCH('Carbon tax values'!AG$3,Increase!$A$3:$AD$3,0)))) -> 5004.944354
B16: =$C$14&"-"&C16 -> Immediate 1.5ᵒC-Energy - Power | C16: Energy - Power | D16: =D$15*(1-INDEX(Allowances!$AA$2:$AE$15,MATCH('Carbon tax values'!$B16,Allowances!$AE$2:$AE$15,0),MATCH('Carbon tax values'!D$2,Allowances!$AA$2:$AE$2,0))) -> 36.3542 | E16: =E$15*(1-INDEX(Allowances!$AA$2:$AE$15,MATCH('Carbon tax values'!$B16,Allowances!$AE$2:$AE$15,0),MATCH('Carbon tax values'!E$2,Allowances!$AA$2:$AE$2,0))) -> 37.081284 | F16: =F$15*(1-INDEX(Allowances!$AA$2:$AE$15,MATCH('Carbon tax values'!$B16,Allowances!$AE$2:$AE$15,0),MATCH('Carbon tax values'!F$2,Allowances!$AA$2:$AE$2,0))) -> 87.7301082 | G16: =G$15*(1-INDEX(Allowances!$AA$2:$AE$15,MATCH('Carbon tax values'!$B16,Allowances!$AE$2:$AE$15,0),MATCH('Carbon tax values'!G$2,Allowances!$AA$2:$AE$2,0))) -> 92.11661361 | H16: =H$15*(1-INDEX(Allowances!$AA$2:$AE$15,MATCH('Carbon tax values'!$B16,Allowances!$AE$2:$AE$15,0),MATCH('Carbon tax values'!H$2,Allowances!$AA$2:$AE$2,0))) -> 96.72244429 | I16: =I$15*(1-INDEX(Allowances!$AA$2:$AE$15,MATCH('Carbon tax values'!$B16,Allowances!$AE$2:$AE$15,0),MATCH('Carbon tax values'!I$2,Allowances!$AA$2:$AE$2,0))) -> 101.5585665 | J16: =J$15*(1-INDEX(Allowances!$AA$2:$AE$15,MATCH('Carbon tax values'!$B16,Allowances!$AE$2:$AE$15,0),MATCH('Carbon tax values'!J$2,Allowances!$AA$2:$AE$2,0))) -> 106.6364948 | K16: =K$15*(1-INDEX(Allowances!$AA$2:$AE$15,MATCH('Carbon tax values'!$B16,Allowances!$AE$2:$AE$15,0),MATCH('Carbon tax values'!K$2,Allowances!$AA$2:$AE$2,0))) -> 349.6281093 | L16: =L$15*(1-INDEX(Allowances!$AA$2:$AE$15,MATCH('Carbon tax values'!$B16,Allowances!$AE$2:$AE$15,0),MATCH('Carbon tax values'!L$2,Allowances!$AA$2:$AE$2,0))) -> 524.8140547 | M16: =M$15*(1-INDEX(Allowances!$AA$2:$AE$15,MATCH('Carbon tax values'!$B16,Allowances!$AE$2:$AE$15,0),MATCH('Carbon tax values'!M$2,Allowances!$AA$2:$AE$2,0))) -> 700 | N16: =N$15*(1-INDEX(Allowances!$AA$2:$AE$15,MATCH('Carbon tax values'!$B16,Allowances!$AE$2:$AE$15,0),MATCH('Carbon tax values'!N$2,Allowances!$AA$2:$AE$2,0))) -> 915.2472177 | O16: =O$15*(1-INDEX(Allowances!$AA$2:$AE$15,MATCH('Carbon tax values'!$B16,Allowances!$AE$2:$AE$15,0),MATCH('Carbon tax values'!O$2,Allowances!$AA$2:$AE$2,0))) -> 1130.494435 | P16: =P$15*(1-INDEX(Allowances!$AA$2:$AE$15,MATCH('Carbon tax values'!$B16,Allowances!$AE$2:$AE$15,0),MATCH('Carbon tax values'!P$2,Allowances!$AA$2:$AE$2,0))) -> 1345.741653 | Q16: =Q$15*(1-INDEX(Allowances!$AA$2:$AE$15,MATCH('Carbon tax values'!$B16,Allowances!$AE$2:$AE$15,0),MATCH('Carbon tax values'!Q$2,Allowances!$AA$2:$AE$2,0))) -> 1560.988871 | R16: =R$15*(1-INDEX(Allowances!$AA$2:$AE$15,MATCH('Carbon tax values'!$B16,Allowances!$AE$2:$AE$15,0),MATCH('Carbon tax values'!R$2,Allowances!$AA$2:$AE$2,0))) -> 1776.236089 | S16: =S$15*(1-INDEX(Allowances!$AA$2:$AE$15,MATCH('Carbon tax values'!$B16,Allowances!$AE$2:$AE$15,0),MATCH('Carbon tax values'!S$2,Allowances!$AA$2:$AE$2,0))) -> 1991.483306 | T16: =T$15*(1-INDEX(Allowances!$AA$2:$AE$15,MATCH('Carbon tax values'!$B16,Allowances!$AE$2:$AE$15,0),MATCH('Carbon tax values'!T$2,Allowances!$AA$2:$AE$2,0))) -> 2206.730524 | U16: =U$15*(1-INDEX(Allowances!$AA$2:$AE$15,MATCH('Carbon tax values'!$B16,Allowances!$AE$2:$AE$15,0),MATCH('Carbon tax values'!U$2,Allowances!$AA$2:$AE$2,0))) -> 2421.977742 | V16: =V$15*(1-INDEX(Allowances!$AA$2:$AE$15,MATCH('Carbon tax values'!$B16,Allowances!$AE$2:$AE$15,0),MATCH('Carbon tax values'!V$2,Allowances!$AA$2:$AE$2,0))) -> 2637.224959 | W16: =W$15*(1-INDEX(Allowances!$AA$2:$AE$15,MATCH('Carbon tax values'!$B16,Allowances!$AE$2:$AE$15,0),MATCH('Carbon tax values'!W$2,Allowances!$AA$2:$AE$2,0))) -> 2852.472177 | X16: =X$15*(1-INDEX(Allowances!$AA$2:$AE$15,MATCH('Carbon tax values'!$B16,Allowances!$AE$2:$AE$15,0),MATCH('Carbon tax values'!X$2,Allowances!$AA$2:$AE$2,0))) -> 3067.719395 | Y16: =Y$15*(1-INDEX(Allowances!$AA$2:$AE$15,MATCH('Carbon tax values'!$B16,Allowances!$AE$2:$AE$15,0),MATCH('Carbon tax values'!Y$2,Allowances!$AA$2:$AE$2,0))) -> 3282.966612 | Z16: =Z$15*(1-INDEX(Allowances!$AA$2:$AE$15,MATCH('Carbon tax values'!$B16,Allowances!$AE$2:$AE$15,0),MATCH('Carbon tax values'!Z$2,Allowances!$AA$2:$AE$2,0))) -> 3498.21383 | AA16: =AA$15*(1-INDEX(Allowances!$AA$2:$AE$15,MATCH('Carbon tax values'!$B16,Allowances!$AE$2:$AE$15,0),MATCH('Carbon tax values'!AA$2,Allowances!$AA$2:$AE$2,0))) -> 3713.461048 | AB16: =AB$15*(1-INDEX(Allowances!$AA$2:$AE$15,MATCH('Carbon tax values'!$B16,Allowances!$AE$2:$AE$15,0),MATCH('Carbon tax values'!AB$2,Allowances!$AA$2:$AE$2,0))) -> 3928.708266 | AC16: =AC$15*(1-INDEX(Allowances!$AA$2:$AE$15,MATCH('Carbon tax values'!$B16,Allowances!$AE$2:$AE$15,0),MATCH('Carbon tax values'!AC$2,Allowances!$AA$2:$AE$2,0))) -> 4143.955483 | AD16: =AD$15*(1-INDEX(Allowances!$AA$2:$AE$15,MATCH('Carbon tax values'!$B16,Allowances!$AE$2:$AE$15,0),MATCH('Carbon tax values'!AD$2,Allowances!$AA$2:$AE$2,0))) -> 4359.202701 | AE16: =AE$15*(1-INDEX(Allowances!$AA$2:$AE$15,MATCH('Carbon tax values'!$B16,Allowances!$AE$2:$AE$15,0),MATCH('Carbon tax values'!AE$2,Allowances!$AA$2:$AE$2,0))) -> 4574.449919 | AF16: =AF$15*(1-INDEX(Allowances!$AA$2:$AE$15,MATCH('Carbon tax values'!$B16,Allowances!$AE$2:$AE$15,0),MATCH('Carbon tax values'!AF$2,Allowances!$AA$2:$AE$2,0))) -> 4789.697136 | AG16: =AG$15*(1-INDEX(Allowances!$AA$2:$AE$15,MATCH('Carbon tax values'!$B16,Allowances!$AE$2:$AE$15,0),MATCH('Carbon tax values'!AG$2,Allowances!$AA$2:$AE$2,0))) -> 5004.944354
B17: Immediate 1.5ᵒC-Energy - other | C17: Energy - other | D17: =D$15*(1-INDEX(Allowances!$AA$2:$AE$15,MATCH('Carbon tax values'!$B17,Allowances!$AE$2:$AE$15,0),MATCH('Carbon tax values'!D$2,Allowances!$AA$2:$AE$2,0))) -> 30.82 | E17: =E$15*(1-INDEX(Allowances!$AA$2:$AE$15,MATCH('Carbon tax values'!$B17,Allowances!$AE$2:$AE$15,0),MATCH('Carbon tax values'!E$2,Allowances!$AA$2:$AE$2,0))) -> 31.4364 | F17: =F$15*(1-INDEX(Allowances!$AA$2:$AE$15,MATCH('Carbon tax values'!$B17,Allowances!$AE$2:$AE$15,0),MATCH('Carbon tax values'!F$2,Allowances!$AA$2:$AE$2,0))) -> 81.80298 | G17: =G$15*(1-INDEX(Allowances!$AA$2:$AE$15,MATCH('Carbon tax values'!$B17,Allowances!$AE$2:$AE$15,0),MATCH('Carbon tax values'!G$2,Allowances!$AA$2:$AE$2,0))) -> 85.893129 | H17: =H$15*(1-INDEX(Allowances!$AA$2:$AE$15,MATCH('Carbon tax values'!$B17,Allowances!$AE$2:$AE$15,0),MATCH('Carbon tax values'!H$2,Allowances!$AA$2:$AE$2,0))) -> 90.18778545 | I17: =I$15*(1-INDEX(Allowances!$AA$2:$AE$15,MATCH('Carbon tax values'!$B17,Allowances!$AE$2:$AE$15,0),MATCH('Carbon tax values'!I$2,Allowances!$AA$2:$AE$2,0))) -> 94.69717472 | J17: =J$15*(1-INDEX(Allowances!$AA$2:$AE$15,MATCH('Carbon tax values'!$B17,Allowances!$AE$2:$AE$15,0),MATCH('Carbon tax values'!J$2,Allowances!$AA$2:$AE$2,0))) -> 99.43203346 | K17: =K$15*(1-INDEX(Allowances!$AA$2:$AE$15,MATCH('Carbon tax values'!$B17,Allowances!$AE$2:$AE$15,0),MATCH('Carbon tax values'!K$2,Allowances!$AA$2:$AE$2,0))) -> 349.6281093 | L17: =L$15*(1-INDEX(Allowances!$AA$2:$AE$15,MATCH('Carbon tax values'!$B17,Allowances!$AE$2:$AE$15,0),MATCH('Carbon tax values'!L$2,Allowances!$AA$2:$AE$2,0))) -> 524.8140547 | M17: =M$15*(1-INDEX(Allowances!$AA$2:$AE$15,MATCH('Carbon tax values'!$B17,Allowances!$AE$2:$AE$15,0),MATCH('Carbon tax values'!M$2,Allowances!$AA$2:$AE$2,0))) -> 700 | N17: =N$15*(1-INDEX(Allowances!$AA$2:$AE$15,MATCH('Carbon tax values'!$B17,Allowances!$AE$2:$AE$15,0),MATCH('Carbon tax values'!N$2,Allowances!$AA$2:$AE$2,0))) -> 915.2472177 | O17: =O$15*(1-INDEX(Allowances!$AA$2:$AE$15,MATCH('Carbon tax values'!$B17,Allowances!$AE$2:$AE$15,0),MATCH('Carbon tax values'!O$2,Allowances!$AA$2:$AE$2,0))) -> 1130.494435 | P17: =P$15*(1-INDEX(Allowances!$AA$2:$AE$15,MATCH('Carbon tax values'!$B17,Allowances!$AE$2:$AE$15,0),MATCH('Carbon tax values'!P$2,Allowances!$AA$2:$AE$2,0))) -> 1345.741653 | Q17: =Q$15*(1-INDEX(Allowances!$AA$2:$AE$15,MATCH('Carbon tax values'!$B17,Allowances!$AE$2:$AE$15,0),MATCH('Carbon tax values'!Q$2,Allowances!$AA$2:$AE$2,0))) -> 1560.988871 | R17: =R$15*(1-INDEX(Allowances!$AA$2:$AE$15,MATCH('Carbon tax values'!$B17,Allowances!$AE$2:$AE$15,0),MATCH('Carbon tax values'!R$2,Allowances!$AA$2:$AE$2,0))) -> 1776.236089 | S17: =S$15*(1-INDEX(Allowances!$AA$2:$AE$15,MATCH('Carbon tax values'!$B17,Allowances!$AE$2:$AE$15,0),MATCH('Carbon tax values'!S$2,Allowances!$AA$2:$AE$2,0))) -> 1991.483306 | T17: =T$15*(1-INDEX(Allowances!$AA$2:$AE$15,MATCH('Carbon tax values'!$B17,Allowances!$AE$2:$AE$15,0),MATCH('Carbon tax values'!T$2,Allowances!$AA$2:$AE$2,0))) -> 2206.730524 | U17: =U$15*(1-INDEX(Allowances!$AA$2:$AE$15,MATCH('Carbon tax values'!$B17,Allowances!$AE$2:$AE$15,0),MATCH('Carbon tax values'!U$2,Allowances!$AA$2:$AE$2,0))) -> 2421.977742 | V17: =V$15*(1-INDEX(Allowances!$AA$2:$AE$15,MATCH('Carbon tax values'!$B17,Allowances!$AE$2:$AE$15,0),MATCH('Carbon tax values'!V$2,Allowances!$AA$2:$AE$2,0))) -> 2637.224959 | W17: =W$15*(1-INDEX(Allowances!$AA$2:$AE$15,MATCH('Carbon tax values'!$B17,Allowances!$AE$2:$AE$15,0),MATCH('Carbon tax values'!W$2,Allowances!$AA$2:$AE$2,0))) -> 2852.472177 | X17: =X$15*(1-INDEX(Allowances!$AA$2:$AE$15,MATCH('Carbon tax values'!$B17,Allowances!$AE$2:$AE$15,0),MATCH('Carbon tax values'!X$2,Allowances!$AA$2:$AE$2,0))) -> 3067.719395 | Y17: =Y$15*(1-INDEX(Allowances!$AA$2:$AE$15,MATCH('Carbon tax values'!$B17,Allowances!$AE$2:$AE$15,0),MATCH('Carbon tax values'!Y$2,Allowances!$AA$2:$AE$2,0))) -> 3282.966612 | Z17: =Z$15*(1-INDEX(Allowances!$AA$2:$AE$15,MATCH('Carbon tax values'!$B17,Allowances!$AE$2:$AE$15,0),MATCH('Carbon tax values'!Z$2,Allowances!$AA$2:$AE$2,0))) -> 3498.21383 | AA17: =AA$15*(1-INDEX(Allowances!$AA$2:$AE$15,MATCH('Carbon tax values'!$B17,Allowances!$AE$2:$AE$15,0),MATCH('Carbon tax values'!AA$2,Allowances!$AA$2:$AE$2,0))) -> 3713.461048 | AB17: =AB$15*(1-INDEX(Allowances!$AA$2:$AE$15,MATCH('Carbon tax values'!$B17,Allowances!$AE$2:$AE$15,0),MATCH('Carbon tax values'!AB$2,Allowances!$AA$2:$AE$2,0))) -> 3928.708266 | AC17: =AC$15*(1-INDEX(Allowances!$AA$2:$AE$15,MATCH('Carbon tax values'!$B17,Allowances!$AE$2:$AE$15,0),MATCH('Carbon tax values'!AC$2,Allowances!$AA$2:$AE$2,0))) -> 4143.955483 | AD17: =AD$15*(1-INDEX(Allowances!$AA$2:$AE$15,MATCH('Carbon tax values'!$B17,Allowances!$AE$2:$AE$15,0),MATCH('Carbon tax values'!AD$2,Allowances!$AA$2:$AE$2,0))) -> 4359.202701 | AE17: =AE$15*(1-INDEX(Allowances!$AA$2:$AE$15,MATCH('Carbon tax values'!$B17,Allowances!$AE$2:$AE$15,0),MATCH('Carbon tax values'!AE$2,Allowances!$AA$2:$AE$2,0))) -> 4574.449919 | AF17: =AF$15*(1-INDEX(Allowances!$AA$2:$AE$15,MATCH('Carbon tax values'!$B17,Allowances!$AE$2:$AE$15,0),MATCH('Carbon tax values'!AF$2,Allowances!$AA$2:$AE$2,0))) -> 4789.697136 | AG17: =AG$15*(1-INDEX(Allowances!$AA$2:$AE$15,MATCH('Carbon tax values'!$B17,Allowances!$AE$2:$AE$15,0),MATCH('Carbon tax values'!AG$2,Allowances!$AA$2:$AE$2,0))) -> 5004.944354
B18: Immediate 1.5ᵒC-Industrial process/Fugitive | C18: Industrial process/Fugitive | D18: =D$15*(1-INDEX(Allowances!$AA$2:$AE$15,MATCH('Carbon tax values'!$B18,Allowances!$AE$2:$AE$15,0),MATCH('Carbon tax values'!D$2,Allowances!$AA$2:$AE$2,0))) -> 17.42 | E18: =E$15*(1-INDEX(Allowances!$AA$2:$AE$15,MATCH('Carbon tax values'!$B18,Allowances!$AE$2:$AE$15,0),MATCH('Carbon tax values'!E$2,Allowances!$AA$2:$AE$2,0))) -> 17.7684 | F18: =F$15*(1-INDEX(Allowances!$AA$2:$AE$15,MATCH('Carbon tax values'!$B18,Allowances!$AE$2:$AE$15,0),MATCH('Carbon tax values'!F$2,Allowances!$AA$2:$AE$2,0))) -> 67.45158 | G18: =G$15*(1-INDEX(Allowances!$AA$2:$AE$15,MATCH('Carbon tax values'!$B18,Allowances!$AE$2:$AE$15,0),MATCH('Carbon tax values'!G$2,Allowances!$AA$2:$AE$2,0))) -> 70.824159 | H18: =H$15*(1-INDEX(Allowances!$AA$2:$AE$15,MATCH('Carbon tax values'!$B18,Allowances!$AE$2:$AE$15,0),MATCH('Carbon tax values'!H$2,Allowances!$AA$2:$AE$2,0))) -> 74.36536695 | I18: =I$15*(1-INDEX(Allowances!$AA$2:$AE$15,MATCH('Carbon tax values'!$B18,Allowances!$AE$2:$AE$15,0),MATCH('Carbon tax values'!I$2,Allowances!$AA$2:$AE$2,0))) -> 78.0836353 | J18: =J$15*(1-INDEX(Allowances!$AA$2:$AE$15,MATCH('Carbon tax values'!$B18,Allowances!$AE$2:$AE$15,0),MATCH('Carbon tax values'!J$2,Allowances!$AA$2:$AE$2,0))) -> 81.98781706 | K18: =K$15*(1-INDEX(Allowances!$AA$2:$AE$15,MATCH('Carbon tax values'!$B18,Allowances!$AE$2:$AE$15,0),MATCH('Carbon tax values'!K$2,Allowances!$AA$2:$AE$2,0))) -> 269.2136442 | L18: =L$15*(1-INDEX(Allowances!$AA$2:$AE$15,MATCH('Carbon tax values'!$B18,Allowances!$AE$2:$AE$15,0),MATCH('Carbon tax values'!L$2,Allowances!$AA$2:$AE$2,0))) -> 404.1068221 | M18: =M$15*(1-INDEX(Allowances!$AA$2:$AE$15,MATCH('Carbon tax values'!$B18,Allowances!$AE$2:$AE$15,0),MATCH('Carbon tax values'!M$2,Allowances!$AA$2:$AE$2,0))) -> 539 | N18: =N$15*(1-INDEX(Allowances!$AA$2:$AE$15,MATCH('Carbon tax values'!$B18,Allowances!$AE$2:$AE$15,0),MATCH('Carbon tax values'!N$2,Allowances!$AA$2:$AE$2,0))) -> 915.2472177 | O18: =O$15*(1-INDEX(Allowances!$AA$2:$AE$15,MATCH('Carbon tax values'!$B18,Allowances!$AE$2:$AE$15,0),MATCH('Carbon tax values'!O$2,Allowances!$AA$2:$AE$2,0))) -> 1130.494435 | P18: =P$15*(1-INDEX(Allowances!$AA$2:$AE$15,MATCH('Carbon tax values'!$B18,Allowances!$AE$2:$AE$15,0),MATCH('Carbon tax values'!P$2,Allowances!$AA$2:$AE$2,0))) -> 1345.741653 | Q18: =Q$15*(1-INDEX(Allowances!$AA$2:$AE$15,MATCH('Carbon tax values'!$B18,Allowances!$AE$2:$AE$15,0),MATCH('Carbon tax values'!Q$2,Allowances!$AA$2:$AE$2,0))) -> 1560.988871 | R18: =R$15*(1-INDEX(Allowances!$AA$2:$AE$15,MATCH('Carbon tax values'!$B18,Allowances!$AE$2:$AE$15,0),MATCH('Carbon tax values'!R$2,Allowances!$AA$2:$AE$2,0))) -> 1776.236089 | S18: =S$15*(1-INDEX(Allowances!$AA$2:$AE$15,MATCH('Carbon tax values'!$B18,Allowances!$AE$2:$AE$15,0),MATCH('Carbon tax values'!S$2,Allowances!$AA$2:$AE$2,0))) -> 1991.483306 | T18: =T$15*(1-INDEX(Allowances!$AA$2:$AE$15,MATCH('Carbon tax values'!$B18,Allowances!$AE$2:$AE$15,0),MATCH('Carbon tax values'!T$2,Allowances!$AA$2:$AE$2,0))) -> 2206.730524 | U18: =U$15*(1-INDEX(Allowances!$AA$2:$AE$15,MATCH('Carbon tax values'!$B18,Allowances!$AE$2:$AE$15,0),MATCH('Carbon tax values'!U$2,Allowances!$AA$2:$AE$2,0))) -> 2421.977742 | V18: =V$15*(1-INDEX(Allowances!$AA$2:$AE$15,MATCH('Carbon tax values'!$B18,Allowances!$AE$2:$AE$15,0),MATCH('Carbon tax values'!V$2,Allowances!$AA$2:$AE$2,0))) -> 2637.224959 | W18: =W$15*(1-INDEX(Allowances!$AA$2:$AE$15,MATCH('Carbon tax values'!$B18,Allowances!$AE$2:$AE$15,0),MATCH('Carbon tax values'!W$2,Allowances!$AA$2:$AE$2,0))) -> 2852.472177 | X18: =X$15*(1-INDEX(Allowances!$AA$2:$AE$15,MATCH('Carbon tax values'!$B18,Allowances!$AE$2:$AE$15,0),MATCH('Carbon tax values'!X$2,Allowances!$AA$2:$AE$2,0))) -> 3067.719395 | Y18: =Y$15*(1-INDEX(Allowances!$AA$2:$AE$15,MATCH('Carbon tax values'!$B18,Allowances!$AE$2:$AE$15,0),MATCH('Carbon tax values'!Y$2,Allowances!$AA$2:$AE$2,0))) -> 3282.966612 | Z18: =Z$15*(1-INDEX(Allowances!$AA$2:$AE$15,MATCH('Carbon tax values'!$B18,Allowances!$AE$2:$AE$15,0),MATCH('Carbon tax values'!Z$2,Allowances!$AA$2:$AE$2,0))) -> 3498.21383 | AA18: =AA$15*(1-INDEX(Allowances!$AA$2:$AE$15,MATCH('Carbon tax values'!$B18,Allowances!$AE$2:$AE$15,0),MATCH('Carbon tax values'!AA$2,Allowances!$AA$2:$AE$2,0))) -> 3713.461048 | AB18: =AB$15*(1-INDEX(Allowances!$AA$2:$AE$15,MATCH('Carbon tax values'!$B18,Allowances!$AE$2:$AE$15,0),MATCH('Carbon tax values'!AB$2,Allowances!$AA$2:$AE$2,0))) -> 3928.708266 | AC18: =AC$15*(1-INDEX(Allowances!$AA$2:$AE$15,MATCH('Carbon tax values'!$B18,Allowances!$AE$2:$AE$15,0),MATCH('Carbon tax values'!AC$2,Allowances!$AA$2:$AE$2,0))) -> 4143.955483 | AD18: =AD$15*(1-INDEX(Allowances!$AA$2:$AE$15,MATCH('Carbon tax values'!$B18,Allowances!$AE$2:$AE$15,0),MATCH('Carbon tax values'!AD$2,Allowances!$AA$2:$AE$2,0))) -> 4359.202701 | AE18: =AE$15*(1-INDEX(Allowances!$AA$2:$AE$15,MATCH('Carbon tax values'!$B18,Allowances!$AE$2:$AE$15,0),MATCH('Carbon tax values'!AE$2,Allowances!$AA$2:$AE$2,0))) -> 4574.449919 | AF18: =AF$15*(1-INDEX(Allowances!$AA$2:$AE$15,MATCH('Carbon tax values'!$B18,Allowances!$AE$2:$AE$15,0),MATCH('Carbon tax values'!AF$2,Allowances!$AA$2:$AE$2,0))) -> 4789.697136 | AG18: =AG$15*(1-INDEX(Allowances!$AA$2:$AE$15,MATCH('Carbon tax values'!$B18,Allowances!$AE$2:$AE$15,0),MATCH('Carbon tax values'!AG$2,Allowances!$AA$2:$AE$2,0))) -> 5004.944354
C19: =Assumptions!B8 -> Delayed 2ᵒC
C20: Carbon price | D20: =Assumptions!$B$10 -> 134 | E20: =D20*(1+INDEX(Increase!$A$3:$AD$7,MATCH('Carbon tax values'!$C19,Increase!$A$3:$A$7,0),MATCH('Carbon tax values'!E$3,Increase!$A$3:$AD$3,0))) -> 136.68 | F20: =E20*(1+INDEX(Increase!$A$3:$AD$7,MATCH('Carbon tax values'!$C19,Increase!$A$3:$A$7,0),MATCH('Carbon tax values'!F$3,Increase!$A$3:$AD$3,0))) -> 143.514 | G20: =F20*(1+INDEX(Increase!$A$3:$AD$7,MATCH('Carbon tax values'!$C19,Increase!$A$3:$A$7,0),MATCH('Carbon tax values'!G$3,Increase!$A$3:$AD$3,0))) -> 150.6897 | H20: =G20*(1+INDEX(Increase!$A$3:$AD$7,MATCH('Carbon tax values'!$C19,Increase!$A$3:$A$7,0),MATCH('Carbon tax values'!H$3,Increase!$A$3:$AD$3,0))) -> 158.224185 | I20: =H20*(1+INDEX(Increase!$A$3:$AD$7,MATCH('Carbon tax values'!$C19,Increase!$A$3:$A$7,0),MATCH('Carbon tax values'!I$3,Increase!$A$3:$AD$3,0))) -> 166.1353943 | J20: =I20*(1+INDEX(Increase!$A$3:$AD$7,MATCH('Carbon tax values'!$C19,Increase!$A$3:$A$7,0),MATCH('Carbon tax values'!J$3,Increase!$A$3:$AD$3,0))) -> 174.442164 | K20: =IF(Assumptions!$B$16="Combination",J20+($M$20-$J$20)/COUNT($K$3:$M$3),J20*(1+INDEX(Increase!$A$3:$AD$7,MATCH('Carbon tax values'!$C19,Increase!$A$3:$A$7,0),MATCH('Carbon tax values'!K$3,Increase!$A$3:$AD$3,0)))) -> 183.1642722 | L20: =IF(Assumptions!$B$16="Combination",K20+($M$20-$J$20)/COUNT($K$3:$M$3),K20*(1+INDEX(Increase!$A$3:$AD$7,MATCH('Carbon tax values'!$C19,Increase!$A$3:$A$7,0),MATCH('Carbon tax values'!L$3,Increase!$A$3:$AD$3,0)))) -> 192.3224858 | M20: =IF(Assumptions!B16="Combination",Assumptions!C25,L20*(1+INDEX(Increase!$A$3:$AD$7,MATCH('Carbon tax values'!$C19,Increase!$A$3:$A$7,0),MATCH('Carbon tax values'!M$3,Increase!$A$3:$AD$3,0)))) -> 201.9386101 | N20: =IF(Assumptions!$G$16="Target rate",M20+($AG$20-$M$20)/COUNT($N$3:$AG$3),M20*(1+INDEX(Increase!$A$3:$AD$7,MATCH('Carbon tax values'!$C19,Increase!$A$3:$A$7,0),MATCH('Carbon tax values'!N$3,Increase!$A$3:$AD$3,0)))) -> 777.1388169 | O20: =IF(Assumptions!$G$16="Target rate",N20+($AG$20-$M$20)/COUNT($N$3:$AG$3),N20*(1+INDEX(Increase!$A$3:$AD$7,MATCH('Carbon tax values'!$C19,Increase!$A$3:$A$7,0),MATCH('Carbon tax values'!O$3,Increase!$A$3:$AD$3,0)))) -> 1352.339024 | P20: =IF(Assumptions!$G$16="Target rate",O20+($AG$20-$M$20)/COUNT($N$3:$AG$3),O20*(1+INDEX(Increase!$A$3:$AD$7,MATCH('Carbon tax values'!$C19,Increase!$A$3:$A$7,0),MATCH('Carbon tax values'!P$3,Increase!$A$3:$AD$3,0)))) -> 1927.539231 | Q20: =IF(Assumptions!$G$16="Target rate",P20+($AG$20-$M$20)/COUNT($N$3:$AG$3),P20*(1+INDEX(Increase!$A$3:$AD$7,MATCH('Carbon tax values'!$C19,Increase!$A$3:$A$7,0),MATCH('Carbon tax values'!Q$3,Increase!$A$3:$AD$3,0)))) -> 2502.739438 | R20: =IF(Assumptions!$G$16="Target rate",Q20+($AG$20-$M$20)/COUNT($N$3:$AG$3),Q20*(1+INDEX(Increase!$A$3:$AD$7,MATCH('Carbon tax values'!$C19,Increase!$A$3:$A$7,0),MATCH('Carbon tax values'!R$3,Increase!$A$3:$AD$3,0)))) -> 3077.939644 | S20: =IF(Assumptions!$G$16="Target rate",R20+($AG$20-$M$20)/COUNT($N$3:$AG$3),R20*(1+INDEX(Increase!$A$3:$AD$7,MATCH('Carbon tax values'!$C19,Increase!$A$3:$A$7,0),MATCH('Carbon tax values'!S$3,Increase!$A$3:$AD$3,0)))) -> 3653.139851 | T20: =IF(Assumptions!$G$16="Target rate",S20+($AG$20-$M$20)/COUNT($N$3:$AG$3),S20*(1+INDEX(Increase!$A$3:$AD$7,MATCH('Carbon tax values'!$C19,Increase!$A$3:$A$7,0),MATCH('Carbon tax values'!T$3,Increase!$A$3:$AD$3,0)))) -> 4228.340058 | U20: =IF(Assumptions!$G$16="Target rate",T20+($AG$20-$M$20)/COUNT($N$3:$AG$3),T20*(1+INDEX(Increase!$A$3:$AD$7,MATCH('Carbon tax values'!$C19,Increase!$A$3:$A$7,0),MATCH('Carbon tax values'!U$3,Increase!$A$3:$AD$3,0)))) -> 4803.540265 | V20: =IF(Assumptions!$G$16="Target rate",U20+($AG$20-$M$20)/COUNT($N$3:$AG$3),U20*(1+INDEX(Increase!$A$3:$AD$7,MATCH('Carbon tax values'!$C19,Increase!$A$3:$A$7,0),MATCH('Carbon tax values'!V$3,Increase!$A$3:$AD$3,0)))) -> 5378.740472 | W20: =IF(Assumptions!$G$16="Target rate",V20+($AG$20-$M$20)/COUNT($N$3:$AG$3),V20*(1+INDEX(Increase!$A$3:$AD$7,MATCH('Carbon tax values'!$C19,Increase!$A$3:$A$7,0),MATCH('Carbon tax values'!W$3,Increase!$A$3:$AD$3,0)))) -> 5953.940679 | X20: =IF(Assumptions!$G$16="Target rate",W20+($AG$20-$M$20)/COUNT($N$3:$AG$3),W20*(1+INDEX(Increase!$A$3:$AD$7,MATCH('Carbon tax values'!$C19,Increase!$A$3:$A$7,0),MATCH('Carbon tax values'!X$3,Increase!$A$3:$AD$3,0)))) -> 6529.140886 | Y20: =IF(Assumptions!$G$16="Target rate",X20+($AG$20-$M$20)/COUNT($N$3:$AG$3),X20*(1+INDEX(Increase!$A$3:$AD$7,MATCH('Carbon tax values'!$C19,Increase!$A$3:$A$7,0),MATCH('Carbon tax values'!Y$3,Increase!$A$3:$AD$3,0)))) -> 7104.341093 | Z20: =IF(Assumptions!$G$16="Target rate",Y20+($AG$20-$M$20)/COUNT($N$3:$AG$3),Y20*(1+INDEX(Increase!$A$3:$AD$7,MATCH('Carbon tax values'!$C19,Increase!$A$3:$A$7,0),MATCH('Carbon tax values'!Z$3,Increase!$A$3:$AD$3,0)))) -> 7679.5413 | AA20: =IF(Assumptions!$G$16="Target rate",Z20+($AG$20-$M$20)/COUNT($N$3:$AG$3),Z20*(1+INDEX(Increase!$A$3:$AD$7,MATCH('Carbon tax values'!$C19,Increase!$A$3:$A$7,0),MATCH('Carbon tax values'!AA$3,Increase!$A$3:$AD$3,0)))) -> 8254.741506 | AB20: =IF(Assumptions!$G$16="Target rate",AA20+($AG$20-$M$20)/COUNT($N$3:$AG$3),AA20*(1+INDEX(Increase!$A$3:$AD$7,MATCH('Carbon tax values'!$C19,Increase!$A$3:$A$7,0),MATCH('Carbon tax values'!AB$3,Increase!$A$3:$AD$3,0)))) -> 8829.941713 | AC20: =IF(Assumptions!$G$16="Target rate",AB20+($AG$20-$M$20)/COUNT($N$3:$AG$3),AB20*(1+INDEX(Increase!$A$3:$AD$7,MATCH('Carbon tax values'!$C19,Increase!$A$3:$A$7,0),MATCH('Carbon tax values'!AC$3,Increase!$A$3:$AD$3,0)))) -> 9405.14192 | AD20: =IF(Assumptions!$G$16="Target rate",AC20+($AG$20-$M$20)/COUNT($N$3:$AG$3),AC20*(1+INDEX(Increase!$A$3:$AD$7,MATCH('Carbon tax values'!$C19,Increase!$A$3:$A$7,0),MATCH('Carbon tax values'!AD$3,Increase!$A$3:$AD$3,0)))) -> 9980.342127 | AE20: =IF(Assumptions!$G$16="Target rate",AD20+($AG$20-$M$20)/COUNT($N$3:$AG$3),AD20*(1+INDEX(Increase!$A$3:$AD$7,MATCH('Carbon tax values'!$C19,Increase!$A$3:$A$7,0),MATCH('Carbon tax values'!AE$3,Increase!$A$3:$AD$3,0)))) -> 10555.54233 | AF20: =IF(Assumptions!$G$16="Target rate",AE20+($AG$20-$M$20)/COUNT($N$3:$AG$3),AE20*(1+INDEX(Increase!$A$3:$AD$7,MATCH('Carbon tax values'!$C19,Increase!$A$3:$A$7,0),MATCH('Carbon tax values'!AF$3,Increase!$A$3:$AD$3,0)))) -> 11130.74254 | AG20: =IF(Assumptions!$G$16="Target rate",Assumptions!C37,AF20*(1+INDEX(Increase!$A$3:$AD$7,MATCH('Carbon tax values'!$C19,Increase!$A$3:$A$7,0),MATCH('Carbon tax values'!AG$3,Increase!$A$3:$AD$3,0)))) -> 11705.94275
B21: =$C$19&"-"&C21 -> Delayed 2ᵒC-Energy - Power | C21: Energy - Power | D21: =D$20*(1-INDEX(Allowances!$AA$2:$AE$15,MATCH('Carbon tax values'!$B21,Allowances!$AE$2:$AE$15,0),MATCH('Carbon tax values'!D$2,Allowances!$AA$2:$AE$2,0))) -> 36.3542 | E21: =E$20*(1-INDEX(Allowances!$AA$2:$AE$15,MATCH('Carbon tax values'!$B21,Allowances!$AE$2:$AE$15,0),MATCH('Carbon tax values'!E$2,Allowances!$AA$2:$AE$2,0))) -> 37.081284 | F21: =F$20*(1-INDEX(Allowances!$AA$2:$AE$15,MATCH('Carbon tax values'!$B21,Allowances!$AE$2:$AE$15,0),MATCH('Carbon tax values'!F$2,Allowances!$AA$2:$AE$2,0))) -> 73.3787082 | G21: =G$20*(1-INDEX(Allowances!$AA$2:$AE$15,MATCH('Carbon tax values'!$B21,Allowances!$AE$2:$AE$15,0),MATCH('Carbon tax values'!G$2,Allowances!$AA$2:$AE$2,0))) -> 77.04764361 | H21: =H$20*(1-INDEX(Allowances!$AA$2:$AE$15,MATCH('Carbon tax values'!$B21,Allowances!$AE$2:$AE$15,0),MATCH('Carbon tax values'!H$2,Allowances!$AA$2:$AE$2,0))) -> 80.90002579 | I21: =I$20*(1-INDEX(Allowances!$AA$2:$AE$15,MATCH('Carbon tax values'!$B21,Allowances!$AE$2:$AE$15,0),MATCH('Carbon tax values'!I$2,Allowances!$AA$2:$AE$2,0))) -> 84.94502708 | J21: =J$20*(1-INDEX(Allowances!$AA$2:$AE$15,MATCH('Carbon tax values'!$B21,Allowances!$AE$2:$AE$15,0),MATCH('Carbon tax values'!J$2,Allowances!$AA$2:$AE$2,0))) -> 89.19227843 | K21: =K$20*(1-INDEX(Allowances!$AA$2:$AE$15,MATCH('Carbon tax values'!$B21,Allowances!$AE$2:$AE$15,0),MATCH('Carbon tax values'!K$2,Allowances!$AA$2:$AE$2,0))) -> 93.65189236 | L21: =L$20*(1-INDEX(Allowances!$AA$2:$AE$15,MATCH('Carbon tax values'!$B21,Allowances!$AE$2:$AE$15,0),MATCH('Carbon tax values'!L$2,Allowances!$AA$2:$AE$2,0))) -> 98.33448697 | M21: =M$20*(1-INDEX(Allowances!$AA$2:$AE$15,MATCH('Carbon tax values'!$B21,Allowances!$AE$2:$AE$15,0),MATCH('Carbon tax values'!M$2,Allowances!$AA$2:$AE$2,0))) -> 103.2512113 | N21: =N$20*(1-INDEX(Allowances!$AA$2:$AE$15,MATCH('Carbon tax values'!$B21,Allowances!$AE$2:$AE$15,0),MATCH('Carbon tax values'!N$2,Allowances!$AA$2:$AE$2,0))) -> 777.1388169 | O21: =O$20*(1-INDEX(Allowances!$AA$2:$AE$15,MATCH('Carbon tax values'!$B21,Allowances!$AE$2:$AE$15,0),MATCH('Carbon tax values'!O$2,Allowances!$AA$2:$AE$2,0))) -> 1352.339024 | P21: =P$20*(1-INDEX(Allowances!$AA$2:$AE$15,MATCH('Carbon tax values'!$B21,Allowances!$AE$2:$AE$15,0),MATCH('Carbon tax values'!P$2,Allowances!$AA$2:$AE$2,0))) -> 1927.539231 | Q21: =Q$20*(1-INDEX(Allowances!$AA$2:$AE$15,MATCH('Carbon tax values'!$B21,Allowances!$AE$2:$AE$15,0),MATCH('Carbon tax values'!Q$2,Allowances!$AA$2:$AE$2,0))) -> 2502.739438 | R21: =R$20*(1-INDEX(Allowances!$AA$2:$AE$15,MATCH('Carbon tax values'!$B21,Allowances!$AE$2:$AE$15,0),MATCH('Carbon tax values'!R$2,Allowances!$AA$2:$AE$2,0))) -> 3077.939644 | S21: =S$20*(1-INDEX(Allowances!$AA$2:$AE$15,MATCH('Carbon tax values'!$B21,Allowances!$AE$2:$AE$15,0),MATCH('Carbon tax values'!S$2,Allowances!$AA$2:$AE$2,0))) -> 3653.139851 | T21: =T$20*(1-INDEX(Allowances!$AA$2:$AE$15,MATCH('Carbon tax values'!$B21,Allowances!$AE$2:$AE$15,0),MATCH('Carbon tax values'!T$2,Allowances!$AA$2:$AE$2,0))) -> 4228.340058 | U21: =U$20*(1-INDEX(Allowances!$AA$2:$AE$15,MATCH('Carbon tax values'!$B21,Allowances!$AE$2:$AE$15,0),MATCH('Carbon tax values'!U$2,Allowances!$AA$2:$AE$2,0))) -> 4803.540265 | V21: =V$20*(1-INDEX(Allowances!$AA$2:$AE$15,MATCH('Carbon tax values'!$B21,Allowances!$AE$2:$AE$15,0),MATCH('Carbon tax values'!V$2,Allowances!$AA$2:$AE$2,0))) -> 5378.740472 | W21: =W$20*(1-INDEX(Allowances!$AA$2:$AE$15,MATCH('Carbon tax values'!$B21,Allowances!$AE$2:$AE$15,0),MATCH('Carbon tax values'!W$2,Allowances!$AA$2:$AE$2,0))) -> 5953.940679 | X21: =X$20*(1-INDEX(Allowances!$AA$2:$AE$15,MATCH('Carbon tax values'!$B21,Allowances!$AE$2:$AE$15,0),MATCH('Carbon tax values'!X$2,Allowances!$AA$2:$AE$2,0))) -> 6529.140886 | Y21: =Y$20*(1-INDEX(Allowances!$AA$2:$AE$15,MATCH('Carbon tax values'!$B21,Allowances!$AE$2:$AE$15,0),MATCH('Carbon tax values'!Y$2,Allowances!$AA$2:$AE$2,0))) -> 7104.341093 | Z21: =Z$20*(1-INDEX(Allowances!$AA$2:$AE$15,MATCH('Carbon tax values'!$B21,Allowances!$AE$2:$AE$15,0),MATCH('Carbon tax values'!Z$2,Allowances!$AA$2:$AE$2,0))) -> 7679.5413 | AA21: =AA$20*(1-INDEX(Allowances!$AA$2:$AE$15,MATCH('Carbon tax values'!$B21,Allowances!$AE$2:$AE$15,0),MATCH('Carbon tax values'!AA$2,Allowances!$AA$2:$AE$2,0))) -> 8254.741506 | AB21: =AB$20*(1-INDEX(Allowances!$AA$2:$AE$15,MATCH('Carbon tax values'!$B21,Allowances!$AE$2:$AE$15,0),MATCH('Carbon tax values'!AB$2,Allowances!$AA$2:$AE$2,0))) -> 8829.941713 | AC21: =AC$20*(1-INDEX(Allowances!$AA$2:$AE$15,MATCH('Carbon tax values'!$B21,Allowances!$AE$2:$AE$15,0),MATCH('Carbon tax values'!AC$2,Allowances!$AA$2:$AE$2,0))) -> 9405.14192 | AD21: =AD$20*(1-INDEX(Allowances!$AA$2:$AE$15,MATCH('Carbon tax values'!$B21,Allowances!$AE$2:$AE$15,0),MATCH('Carbon tax values'!AD$2,Allowances!$AA$2:$AE$2,0))) -> 9980.342127 | AE21: =AE$20*(1-INDEX(Allowances!$AA$2:$AE$15,MATCH('Carbon tax values'!$B21,Allowances!$AE$2:$AE$15,0),MATCH('Carbon tax values'!AE$2,Allowances!$AA$2:$AE$2,0))) -> 10555.54233 | AF21: =AF$20*(1-INDEX(Allowances!$AA$2:$AE$15,MATCH('Carbon tax values'!$B21,Allowances!$AE$2:$AE$15,0),MATCH('Carbon tax values'!AF$2,Allowances!$AA$2:$AE$2,0))) -> 11130.74254 | AG21: =AG$20*(1-INDEX(Allowances!$AA$2:$AE$15,MATCH('Carbon tax values'!$B21,Allowances!$AE$2:$AE$15,0),MATCH('Carbon tax values'!AG$2,Allowances!$AA$2:$AE$2,0))) -> 11705.94275
B22: Delayed 2ᵒC-Energy - other | C22: Energy - other | D22: =D$20*(1-INDEX(Allowances!$AA$2:$AE$15,MATCH('Carbon tax values'!$B22,Allowances!$AE$2:$AE$15,0),MATCH('Carbon tax values'!D$2,Allowances!$AA$2:$AE$2,0))) -> 30.82 | E22: =E$20*(1-INDEX(Allowances!$AA$2:$AE$15,MATCH('Carbon tax values'!$B22,Allowances!$AE$2:$AE$15,0),MATCH('Carbon tax values'!E$2,Allowances!$AA$2:$AE$2,0))) -> 31.4364 | F22: =F$20*(1-INDEX(Allowances!$AA$2:$AE$15,MATCH('Carbon tax values'!$B22,Allowances!$AE$2:$AE$15,0),MATCH('Carbon tax values'!F$2,Allowances!$AA$2:$AE$2,0))) -> 67.45158 | G22: =G$20*(1-INDEX(Allowances!$AA$2:$AE$15,MATCH('Carbon tax values'!$B22,Allowances!$AE$2:$AE$15,0),MATCH('Carbon tax values'!G$2,Allowances!$AA$2:$AE$2,0))) -> 70.824159 | H22: =H$20*(1-INDEX(Allowances!$AA$2:$AE$15,MATCH('Carbon tax values'!$B22,Allowances!$AE$2:$AE$15,0),MATCH('Carbon tax values'!H$2,Allowances!$AA$2:$AE$2,0))) -> 74.36536695 | I22: =I$20*(1-INDEX(Allowances!$AA$2:$AE$15,MATCH('Carbon tax values'!$B22,Allowances!$AE$2:$AE$15,0),MATCH('Carbon tax values'!I$2,Allowances!$AA$2:$AE$2,0))) -> 78.0836353 | J22: =J$20*(1-INDEX(Allowances!$AA$2:$AE$15,MATCH('Carbon tax values'!$B22,Allowances!$AE$2:$AE$15,0),MATCH('Carbon tax values'!J$2,Allowances!$AA$2:$AE$2,0))) -> 81.98781706 | K22: =K$20*(1-INDEX(Allowances!$AA$2:$AE$15,MATCH('Carbon tax values'!$B22,Allowances!$AE$2:$AE$15,0),MATCH('Carbon tax values'!K$2,Allowances!$AA$2:$AE$2,0))) -> 86.08720792 | L22: =L$20*(1-INDEX(Allowances!$AA$2:$AE$15,MATCH('Carbon tax values'!$B22,Allowances!$AE$2:$AE$15,0),MATCH('Carbon tax values'!L$2,Allowances!$AA$2:$AE$2,0))) -> 90.39156831 | M22: =M$20*(1-INDEX(Allowances!$AA$2:$AE$15,MATCH('Carbon tax values'!$B22,Allowances!$AE$2:$AE$15,0),MATCH('Carbon tax values'!M$2,Allowances!$AA$2:$AE$2,0))) -> 94.91114673 | N22: =N$20*(1-INDEX(Allowances!$AA$2:$AE$15,MATCH('Carbon tax values'!$B22,Allowances!$AE$2:$AE$15,0),MATCH('Carbon tax values'!N$2,Allowances!$AA$2:$AE$2,0))) -> 777.1388169 | O22: =O$20*(1-INDEX(Allowances!$AA$2:$AE$15,MATCH('Carbon tax values'!$B22,Allowances!$AE$2:$AE$15,0),MATCH('Carbon tax values'!O$2,Allowances!$AA$2:$AE$2,0))) -> 1352.339024 | P22: =P$20*(1-INDEX(Allowances!$AA$2:$AE$15,MATCH('Carbon tax values'!$B22,Allowances!$AE$2:$AE$15,0),MATCH('Carbon tax values'!P$2,Allowances!$AA$2:$AE$2,0))) -> 1927.539231 | Q22: =Q$20*(1-INDEX(Allowances!$AA$2:$AE$15,MATCH('Carbon tax values'!$B22,Allowances!$AE$2:$AE$15,0),MATCH('Carbon tax values'!Q$2,Allowances!$AA$2:$AE$2,0))) -> 2502.739438 | R22: =R$20*(1-INDEX(Allowances!$AA$2:$AE$15,MATCH('Carbon tax values'!$B22,Allowances!$AE$2:$AE$15,0),MATCH('Carbon tax values'!R$2,Allowances!$AA$2:$AE$2,0))) -> 3077.939644 | S22: =S$20*(1-INDEX(Allowances!$AA$2:$AE$15,MATCH('Carbon tax values'!$B22,Allowances!$AE$2:$AE$15,0),MATCH('Carbon tax values'!S$2,Allowances!$AA$2:$AE$2,0))) -> 3653.139851 | T22: =T$20*(1-INDEX(Allowances!$AA$2:$AE$15,MATCH('Carbon tax values'!$B22,Allowances!$AE$2:$AE$15,0),MATCH('Carbon tax values'!T$2,Allowances!$AA$2:$AE$2,0))) -> 4228.340058 | U22: =U$20*(1-INDEX(Allowances!$AA$2:$AE$15,MATCH('Carbon tax values'!$B22,Allowances!$AE$2:$AE$15,0),MATCH('Carbon tax values'!U$2,Allowances!$AA$2:$AE$2,0))) -> 4803.540265 | V22: =V$20*(1-INDEX(Allowances!$AA$2:$AE$15,MATCH('Carbon tax values'!$B22,Allowances!$AE$2:$AE$15,0),MATCH('Carbon tax values'!V$2,Allowances!$AA$2:$AE$2,0))) -> 5378.740472 | W22: =W$20*(1-INDEX(Allowances!$AA$2:$AE$15,MATCH('Carbon tax values'!$B22,Allowances!$AE$2:$AE$15,0),MATCH('Carbon tax values'!W$2,Allowances!$AA$2:$AE$2,0))) -> 5953.940679 | X22: =X$20*(1-INDEX(Allowances!$AA$2:$AE$15,MATCH('Carbon tax values'!$B22,Allowances!$AE$2:$AE$15,0),MATCH('Carbon tax values'!X$2,Allowances!$AA$2:$AE$2,0))) -> 6529.140886 | Y22: =Y$20*(1-INDEX(Allowances!$AA$2:$AE$15,MATCH('Carbon tax values'!$B22,Allowances!$AE$2:$AE$15,0),MATCH('Carbon tax values'!Y$2,Allowances!$AA$2:$AE$2,0))) -> 7104.341093 | Z22: =Z$20*(1-INDEX(Allowances!$AA$2:$AE$15,MATCH('Carbon tax values'!$B22,Allowances!$AE$2:$AE$15,0),MATCH('Carbon tax values'!Z$2,Allowances!$AA$2:$AE$2,0))) -> 7679.5413 | AA22: =AA$20*(1-INDEX(Allowances!$AA$2:$AE$15,MATCH('Carbon tax values'!$B22,Allowances!$AE$2:$AE$15,0),MATCH('Carbon tax values'!AA$2,Allowances!$AA$2:$AE$2,0))) -> 8254.741506 | AB22: =AB$20*(1-INDEX(Allowances!$AA$2:$AE$15,MATCH('Carbon tax values'!$B22,Allowances!$AE$2:$AE$15,0),MATCH('Carbon tax values'!AB$2,Allowances!$AA$2:$AE$2,0))) -> 8829.941713 | AC22: =AC$20*(1-INDEX(Allowances!$AA$2:$AE$15,MATCH('Carbon tax values'!$B22,Allowances!$AE$2:$AE$15,0),MATCH('Carbon tax values'!AC$2,Allowances!$AA$2:$AE$2,0))) -> 9405.14192 | AD22: =AD$20*(1-INDEX(Allowances!$AA$2:$AE$15,MATCH('Carbon tax values'!$B22,Allowances!$AE$2:$AE$15,0),MATCH('Carbon tax values'!AD$2,Allowances!$AA$2:$AE$2,0))) -> 9980.342127 | AE22: =AE$20*(1-INDEX(Allowances!$AA$2:$AE$15,MATCH('Carbon tax values'!$B22,Allowances!$AE$2:$AE$15,0),MATCH('Carbon tax values'!AE$2,Allowances!$AA$2:$AE$2,0))) -> 10555.54233 | AF22: =AF$20*(1-INDEX(Allowances!$AA$2:$AE$15,MATCH('Carbon tax values'!$B22,Allowances!$AE$2:$AE$15,0),MATCH('Carbon tax values'!AF$2,Allowances!$AA$2:$AE$2,0))) -> 11130.74254 | AG22: =AG$20*(1-INDEX(Allowances!$AA$2:$AE$15,MATCH('Carbon tax values'!$B22,Allowances!$AE$2:$AE$15,0),MATCH('Carbon tax values'!AG$2,Allowances!$AA$2:$AE$2,0))) -> 11705.94275
B23: Delayed 2ᵒC-Industrial process/Fugitive | C23: Industrial process/Fugitive | D23: =D$20*(1-INDEX(Allowances!$AA$2:$AE$15,MATCH('Carbon tax values'!$B23,Allowances!$AE$2:$AE$15,0),MATCH('Carbon tax values'!D$2,Allowances!$AA$2:$AE$2,0))) -> 17.42 | E23: =E$20*(1-INDEX(Allowances!$AA$2:$AE$15,MATCH('Carbon tax values'!$B23,Allowances!$AE$2:$AE$15,0),MATCH('Carbon tax values'!E$2,Allowances!$AA$2:$AE$2,0))) -> 17.7684 | F23: =F$20*(1-INDEX(Allowances!$AA$2:$AE$15,MATCH('Carbon tax values'!$B23,Allowances!$AE$2:$AE$15,0),MATCH('Carbon tax values'!F$2,Allowances!$AA$2:$AE$2,0))) -> 53.10018 | G23: =G$20*(1-INDEX(Allowances!$AA$2:$AE$15,MATCH('Carbon tax values'!$B23,Allowances!$AE$2:$AE$15,0),MATCH('Carbon tax values'!G$2,Allowances!$AA$2:$AE$2,0))) -> 55.755189 | H23: =H$20*(1-INDEX(Allowances!$AA$2:$AE$15,MATCH('Carbon tax values'!$B23,Allowances!$AE$2:$AE$15,0),MATCH('Carbon tax values'!H$2,Allowances!$AA$2:$AE$2,0))) -> 58.54294845 | I23: =I$20*(1-INDEX(Allowances!$AA$2:$AE$15,MATCH('Carbon tax values'!$B23,Allowances!$AE$2:$AE$15,0),MATCH('Carbon tax values'!I$2,Allowances!$AA$2:$AE$2,0))) -> 61.47009587 | J23: =J$20*(1-INDEX(Allowances!$AA$2:$AE$15,MATCH('Carbon tax values'!$B23,Allowances!$AE$2:$AE$15,0),MATCH('Carbon tax values'!J$2,Allowances!$AA$2:$AE$2,0))) -> 64.54360067 | K23: =K$20*(1-INDEX(Allowances!$AA$2:$AE$15,MATCH('Carbon tax values'!$B23,Allowances!$AE$2:$AE$15,0),MATCH('Carbon tax values'!K$2,Allowances!$AA$2:$AE$2,0))) -> 67.7707807 | L23: =L$20*(1-INDEX(Allowances!$AA$2:$AE$15,MATCH('Carbon tax values'!$B23,Allowances!$AE$2:$AE$15,0),MATCH('Carbon tax values'!L$2,Allowances!$AA$2:$AE$2,0))) -> 71.15931973 | M23: =M$20*(1-INDEX(Allowances!$AA$2:$AE$15,MATCH('Carbon tax values'!$B23,Allowances!$AE$2:$AE$15,0),MATCH('Carbon tax values'!M$2,Allowances!$AA$2:$AE$2,0))) -> 74.71728572 | N23: =N$20*(1-INDEX(Allowances!$AA$2:$AE$15,MATCH('Carbon tax values'!$B23,Allowances!$AE$2:$AE$15,0),MATCH('Carbon tax values'!N$2,Allowances!$AA$2:$AE$2,0))) -> 777.1388169 | O23: =O$20*(1-INDEX(Allowances!$AA$2:$AE$15,MATCH('Carbon tax values'!$B23,Allowances!$AE$2:$AE$15,0),MATCH('Carbon tax values'!O$2,Allowances!$AA$2:$AE$2,0))) -> 1352.339024 | P23: =P$20*(1-INDEX(Allowances!$AA$2:$AE$15,MATCH('Carbon tax values'!$B23,Allowances!$AE$2:$AE$15,0),MATCH('Carbon tax values'!P$2,Allowances!$AA$2:$AE$2,0))) -> 1927.539231 | Q23: =Q$20*(1-INDEX(Allowances!$AA$2:$AE$15,MATCH('Carbon tax values'!$B23,Allowances!$AE$2:$AE$15,0),MATCH('Carbon tax values'!Q$2,Allowances!$AA$2:$AE$2,0))) -> 2502.739438 | R23: =R$20*(1-INDEX(Allowances!$AA$2:$AE$15,MATCH('Carbon tax values'!$B23,Allowances!$AE$2:$AE$15,0),MATCH('Carbon tax values'!R$2,Allowances!$AA$2:$AE$2,0))) -> 3077.939644 | S23: =S$20*(1-INDEX(Allowances!$AA$2:$AE$15,MATCH('Carbon tax values'!$B23,Allowances!$AE$2:$AE$15,0),MATCH('Carbon tax values'!S$2,Allowances!$AA$2:$AE$2,0))) -> 3653.139851 | T23: =T$20*(1-INDEX(Allowances!$AA$2:$AE$15,MATCH('Carbon tax values'!$B23,Allowances!$AE$2:$AE$15,0),MATCH('Carbon tax values'!T$2,Allowances!$AA$2:$AE$2,0))) -> 4228.340058 | U23: =U$20*(1-INDEX(Allowances!$AA$2:$AE$15,MATCH('Carbon tax values'!$B23,Allowances!$AE$2:$AE$15,0),MATCH('Carbon tax values'!U$2,Allowances!$AA$2:$AE$2,0))) -> 4803.540265 | V23: =V$20*(1-INDEX(Allowances!$AA$2:$AE$15,MATCH('Carbon tax values'!$B23,Allowances!$AE$2:$AE$15,0),MATCH('Carbon tax values'!V$2,Allowances!$AA$2:$AE$2,0))) -> 5378.740472 | W23: =W$20*(1-INDEX(Allowances!$AA$2:$AE$15,MATCH('Carbon tax values'!$B23,Allowances!$AE$2:$AE$15,0),MATCH('Carbon tax values'!W$2,Allowances!$AA$2:$AE$2,0))) -> 5953.940679 | X23: =X$20*(1-INDEX(Allowances!$AA$2:$AE$15,MATCH('Carbon tax values'!$B23,Allowances!$AE$2:$AE$15,0),MATCH('Carbon tax values'!X$2,Allowances!$AA$2:$AE$2,0))) -> 6529.140886 | Y23: =Y$20*(1-INDEX(Allowances!$AA$2:$AE$15,MATCH('Carbon tax values'!$B23,Allowances!$AE$2:$AE$15,0),MATCH('Carbon tax values'!Y$2,Allowances!$AA$2:$AE$2,0))) -> 7104.341093 | Z23: =Z$20*(1-INDEX(Allowances!$AA$2:$AE$15,MATCH('Carbon tax values'!$B23,Allowances!$AE$2:$AE$15,0),MATCH('Carbon tax values'!Z$2,Allowances!$AA$2:$AE$2,0))) -> 7679.5413 | AA23: =AA$20*(1-INDEX(Allowances!$AA$2:$AE$15,MATCH('Carbon tax values'!$B23,Allowances!$AE$2:$AE$15,0),MATCH('Carbon tax values'!AA$2,Allowances!$AA$2:$AE$2,0))) -> 8254.741506 | AB23: =AB$20*(1-INDEX(Allowances!$AA$2:$AE$15,MATCH('Carbon tax values'!$B23,Allowances!$AE$2:$AE$15,0),MATCH('Carbon tax values'!AB$2,Allowances!$AA$2:$AE$2,0))) -> 8829.941713 | AC23: =AC$20*(1-INDEX(Allowances!$AA$2:$AE$15,MATCH('Carbon tax values'!$B23,Allowances!$AE$2:$AE$15,0),MATCH('Carbon tax values'!AC$2,Allowances!$AA$2:$AE$2,0))) -> 9405.14192 | AD23: =AD$20*(1-INDEX(Allowances!$AA$2:$AE$15,MATCH('Carbon tax values'!$B23,Allowances!$AE$2:$AE$15,0),MATCH('Carbon tax values'!AD$2,Allowances!$AA$2:$AE$2,0))) -> 9980.342127 | AE23: =AE$20*(1-INDEX(Allowances!$AA$2:$AE$15,MATCH('Carbon tax values'!$B23,Allowances!$AE$2:$AE$15,0),MATCH('Carbon tax values'!AE$2,Allowances!$AA$2:$AE$2,0))) -> 10555.54233 | AF23: =AF$20*(1-INDEX(Allowances!$AA$2:$AE$15,MATCH('Carbon tax values'!$B23,Allowances!$AE$2:$AE$15,0),MATCH('Carbon tax values'!AF$2,Allowances!$AA$2:$AE$2,0))) -> 11130.74254 | AG23: =AG$20*(1-INDEX(Allowances!$AA$2:$AE$15,MATCH('Carbon tax values'!$B23,Allowances!$AE$2:$AE$15,0),MATCH('Carbon tax values'!AG$2,Allowances!$AA$2:$AE$2,0))) -> 11705.94275

Sheet Assumptions
A1: Carbon tax forecast currency | B1: USD
A2: Exchange rate (ZAR/unit) | B2: 14 | C2: If ZAR above , set value to 1
A4: Scenario names | B4: Scenario names | C4: Scenario description
A5: Baseline | B5: Current Policies | C5: Current Policies
A6: Scenario 1 | B6: Immediate 2ᵒC | C6: Immediate 2ᵒC with CDR
A7: Scenario 2 | B7: Immediate 1.5ᵒC | C7: Immediate 1.5ᵒC with CDR
A8: Scenario 3 | B8: Delayed 2ᵒC | C8: Delayed 2ᵒC without CDR
A10: SA Carbon tax rate (2021) | B10: 134
A12: Forecasting carbon tax rate (2023-2030) | B12: Method | D12: Forecasting carbon tax rate (2031-2050) | G12: Method
A13: =$B$5 -> Current Policies | B13: Increase | D13: =$B$5 -> Current Policies | G13: Increase
A14: =$B$6 -> Immediate 2ᵒC | B14: Combination | D14: =$B$6 -> Immediate 2ᵒC | G14: Target rate
A15: =$B$7 -> Immediate 1.5ᵒC | B15: Combination | D15: =$B$7 -> Immediate 1.5ᵒC | G15: Target rate
A16: =$B$8 -> Delayed 2ᵒC | B16: Increase | D16: =$B$8 -> Delayed 2ᵒC | G16: Target rate
A18: 2030 carbon tax target value choice | B18: User input
A19: 2050 carbon tax target value choice | B19: Scenario
A21: Scenario: 2030 carbon tax target value | B21: ="Value"&" "&"("&$B$1&")" -> Value (USD) | C21: Value (ZAR)
A22: =$B$5 -> Current Policies | B22: =IF($B$18="Scenario",'International carbon prices'!K5,B28) -> 0 | C22: =B22*Ex_rate -> 0
A23: =$B$6 -> Immediate 2ᵒC | B23: =IF($B$18="Scenario",'International carbon prices'!K6,B29) -> 40 | C23: =B23*Ex_rate -> 560
A24: =$B$7 -> Immediate 1.5ᵒC | B24: =IF($B$18="Scenario",'International carbon prices'!K7,B30) -> 50 | C24: =B24*Ex_rate -> 700
A25: =$B$8 -> Delayed 2ᵒC | B25: =IF($B$18="Scenario",'International carbon prices'!K8,B31) -> 0 | C25: =B25*Ex_rate -> 0
A27: User-input: 2030 carbon tax value | B27: ="Value"&" "&"("&$B$1&")" -> Value (USD) | C27: Value (ZAR)
A28: =$B$5 -> Current Policies | C28: =B28*Ex_rate -> 0 | D28: Default values
A29: =$B$6 -> Immediate 2ᵒC | B29: 40 | C29: =B29*Ex_rate -> 560 | D29: IPR 2030 value = $40/t
A30: =$B$7 -> Immediate 1.5ᵒC | B30: 50 | C30: =B30*Ex_rate -> 700 | D30: IPR 2030 value = $50/t
A31: =$B$8 -> Delayed 2ᵒC | C31: =B31*Ex_rate -> 0
A33: Scenario: 2050 carbon tax target value | B33: ="Value"&" "&"("&$B$1&")" -> Value (USD) | C33: Value (ZAR)
A34: =$B$5 -> Current Policies | B34: =IF($B$19="Scenario",'International carbon prices'!AE5,B40) -> 4.469994143 | C34: =B34*Ex_rate -> 62.579918
A35: =$B$6 -> Immediate 2ᵒC | B35: =IF($B$19="Scenario",'International carbon prices'!AE6,B41) -> 203.471503 | C35: =B35*Ex_rate -> 2848.601042
A36: =$B$7 -> Immediate 1.5ᵒC | B36: =IF($B$19="Scenario",'International carbon prices'!AE7,B42) -> 357.4960253 | C36: =B36*Ex_rate -> 5004.944354
A37: =$B$8 -> Delayed 2ᵒC | B37: =IF($B$19="Scenario",'International carbon prices'!AE8,B43) -> 836.1387677 | C37: =B37*Ex_rate -> 11705.94275
A39: User-input: 2050 carbon tax value | B39: ="Value"&" "&"("&$B$1&")" -> Value (USD) | C39: Value (ZAR)
A40: =$B$5 -> Current Policies | C40: =B40*Ex_rate -> 0
A41: =$B$6 -> Immediate 2ᵒC | C41: =B41*Ex_rate -> 0
A42: =$B$7 -> Immediate 1.5ᵒC | C42: =B42*Ex_rate -> 0
A43: =$B$8 -> Delayed 2ᵒC | C43: =B43*Ex_rate -> 0

Sheet Sheet1 (hidden)
C2: Model options and data sources
C3: Approaches | D3: Choices in 'Assumptions' sheet | F3: Sources of data 2023-2030 | G3: Results
C4: Increase over time (2023-2030) | D4: B13:B16 - Increase | F4: UK PACT assumptions | G4: Carbon tax values up to 2030
F5: User's own assumptions
C6: Combination (2023-2030) (Uses 2030 target value to increase carbon tax faster than simply using increase) | D6: B13:B16 - Combination | F6: UK PACT assumptions (2023 - 2027)
F7: User's own assumptions (2023 - 2027)
E8: B18 - Scenario | F8: UK PACT assumptions: 2030 carbon tax value
F9: User's own assumptions: 2030 carbon tax value
E10: B18 - User input | F10: User-input: 2030 carbon tax value | H10: Sources of data 2031-2050 | I10: Results
C11: Increase over time (2031-2050) | D11: G13:G16 - Increase | H11: UK PACT assumptions | I11: Carbon tax values up to 2050
H12: User's own assumptions
C13: Target rate (2031-2050) | D13: G13:G16 - Target rate | E13: B19 - Scenario | H13: UK PACT assumption: 2050 value
H14: User's own assumptions: 2050 value
E15: B19 - User input | H15: User-input: 2050 carbon tax value

Sheet Increase
A1: Carbon tax Increase values | B1: UK PACT | D1: NB - if you use 'user input' please make sure to include values for every year. If you want to use scenario values for early years, please copy this from the 'UK PACT' values.
A3: Real percent increase in SA carbon tax headline rate (%) | B3: 2022 | C3: 2023 | D3: 2024 | E3: 2025 | F3: 2026 | G3: 2027 | H3: 2028 | I3: 2029 | J3: 2030 | K3: 2031 | L3: 2032 | M3: 2033 | N3: 2034 | O3: 2035 | P3: 2036 | Q3: 2037 | R3: 2038 | S3: 2039 | T3: 2040 | U3: 2041 | V3: 2042 | W3: 2043 | X3: 2044 | Y3: 2045 | Z3: 2046 | AA3: 2047 | AB3: 2048 | AC3: 2049 | AD3: 2050
A4: =Assumptions!$B$5 -> Current Policies | B4: =IF($B$1="UK PACT",B11,B17) -> 0.02 | C4: =IF($B$1="UK PACT",C11,C17) -> 0 | D4: 0 | E4: 0 | F4: 0 | G4: 0 | H4: 0 | I4: 0 | J4: 0 | K4: 0 | L4: 0 | M4: 0 | N4: 0 | O4: 0 | P4: 0 | Q4: 0 | R4: 0 | S4: 0 | T4: 0 | U4: 0 | V4: 0 | W4: 0 | X4: 0 | Y4: 0 | Z4: 0 | AA4: 0 | AB4: 0 | AC4: 0 | AD4: 0
A5: =Assumptions!$B$6 -> Immediate 2ᵒC | B5: =IF($B$1="UK PACT",B12,B18) -> 0.02 | C5: 0.05 | D5: 0.05 | E5: 0.05 | F5: 0.05 | G5: 0.05 | H5: 0.05 | I5: 0.05 | J5: 0.05 | K5: 0.05 | L5: 0.05 | M5: 0.05 | N5: 0.05 | O5: 0.05 | P5: 0.05 | Q5: 0.05 | R5: 0.05 | S5: 0.05 | T5: 0.05 | U5: 0.05 | V5: 0.05 | W5: 0.05 | X5: 0.05 | Y5: 0.05 | Z5: 0.05 | AA5: 0.05 | AB5: 0.05 | AC5: 0.05 | AD5: 0.05
A6: =Assumptions!$B$7 -> Immediate 1.5ᵒC | B6: =IF($B$1="UK PACT",B13,B19) -> 0.02 | C6: 0.05 | D6: 0.05 | E6: 0.05 | F6: 0.05 | G6: 0.05 | H6: 0.05 | I6: 0.05 | J6: 0.05 | K6: 0.05 | L6: 0.05 | M6: 0.05 | N6: 0.05 | O6: 0.05 | P6: 0.05 | Q6: 0.05 | R6: 0.05 | S6: 0.05 | T6: 0.05 | U6: 0.05 | V6: 0.05 | W6: 0.05 | X6: 0.05 | Y6: 0.05 | Z6: 0.05 | AA6: 0.05 | AB6: 0.05 | AC6: 0.05 | AD6: 0.05
A7: =Assumptions!$B$8 -> Delayed 2ᵒC | B7: =IF($B$1="UK PACT",B14,B20) -> 0.02 | C7: 0.05 | D7: 0.05 | E7: 0.05 | F7: 0.05 | G7: 0.05 | H7: 0.05 | I7: 0.05 | J7: 0.05 | K7: 0.05 | L7: 0.05 | M7: 0.05 | N7: 0.05 | O7: 0.05 | P7: 0.05 | Q7: 0.05 | R7: 0.05 | S7: 0.05 | T7: 0.05 | U7: 0.05 | V7: 0.05 | W7: 0.05 | X7: 0.05 | Y7: 0.05 | Z7: 0.05 | AA7: 0.05 | AB7: 0.05 | AC7: 0.05 | AD7: 0.05
A10: UK PACT Values | B10: 2022 | C10: 2023 | D10: 2024 | E10: 2025 | F10: 2026 | G10: 2027 | H10: 2028 | I10: 2029 | J10: 2030 | K10: 2031 | L10: 2032 | M10: 2033 | N10: 2034 | O10: 2035 | P10: 2036 | Q10: 2037 | R10: 2038 | S10: 2039 | T10: 2040 | U10: 2041 | V10: 2042 | W10: 2043 | X10: 2044 | Y10: 2045 | Z10: 2046 | AA10: 2047 | AB10: 2048 | AC10: 2049 | AD10: 2050
A11: =Assumptions!$B$5 -> Current Policies | B11: 0.02 | C11: 0 | D11: 0 | E11: 0 | F11: 0 | G11: 0 | H11: 0 | I11: 0 | J11: 0 | K11: 0 | L11: 0 | M11: 0 | N11: 0 | O11: 0 | P11: 0 | Q11: 0 | R11: 0 | S11: 0 | T11: 0 | U11: 0 | V11: 0 | W11: 0 | X11: 0 | Y11: 0 | Z11: 0 | AA11: 0 | AB11: 0 | AC11: 0 | AD11: 0
A12: =Assumptions!$B$6 -> Immediate 2ᵒC | B12: 0.02 | C12: 0.05 | D12: 0.05 | E12: 0.05 | F12: 0.05 | G12: 0.05 | H12: 0.05 | I12: 0.05 | J12: 0.05 | K12: 0.05 | L12: 0.05 | M12: 0.05 | N12: 0.05 | O12: 0.05 | P12: 0.05 | Q12: 0.05 | R12: 0.05 | S12: 0.05 | T12: 0.05 | U12: 0.05 | V12: 0.05 | W12: 0.05 | X12: 0.05 | Y12: 0.05 | Z12: 0.05 | AA12: 0.05 | AB12: 0.05 | AC12: 0.05 | AD12: 0.05
A13: =Assumptions!$B$7 -> Immediate 1.5ᵒC | B13: 0.02 | C13: 0.05 | D13: 0.05 | E13: 0.05 | F13: 0.05 | G13: 0.05 | H13: 0.05 | I13: 0.05 | J13: 0.05 | K13: 0.05 | L13: 0.05 | M13: 0.05 | N13: 0.05 | O13: 0.05 | P13: 0.05 | Q13: 0.05 | R13: 0.05 | S13: 0.05 | T13: 0.05 | U13: 0.05 | V13: 0.05 | W13: 0.05 | X13: 0.05 | Y13: 0.05 | Z13: 0.05 | AA13: 0.05 | AB13: 0.05 | AC13: 0.05 | AD13: 0.05
A14: =Assumptions!$B$8 -> Delayed 2ᵒC | B14: 0.02 | C14: 0.05 | D14: 0.05 | E14: 0.05 | F14: 0.05 | G14: 0.05 | H14: 0.05 | I14: 0.05 | J14: 0.05 | K14: 0.05 | L14: 0.05 | M14: 0.05 | N14: 0.05 | O14: 0.05 | P14: 0.05 | Q14: 0.05 | R14: 0.05 | S14: 0.05 | T14: 0.05 | U14: 0.05 | V14: 0.05 | W14: 0.05 | X14: 0.05 | Y14: 0.05 | Z14: 0.05 | AA14: 0.05 | AB14: 0.05 | AC14: 0.05 | AD14: 0.05
A16: User-defined values | B16: 2022 | C16: 2023 | D16: 2024 | E16: 2025 | F16: 2026 | G16: 2027 | H16: 2028 | I16: 2029 | J16: 2030 | K16: 2031 | L16: 2032 | M16: 2033 | N16: 2034 | O16: 2035 | P16: 2036 | Q16: 2037 | R16: 2038 | S16: 2039 | T16: 2040 | U16: 2041 | V16: 2042 | W16: 2043 | X16: 2044 | Y16: 2045 | Z16: 2046 | AA16: 2047 | AB16: 2048 | AC16: 2049 | AD16: 2050
A17: =Assumptions!$B$5 -> Current Policies
A18: =Assumptions!$B$6 -> Immediate 2ᵒC
A19: =Assumptions!$B$7 -> Immediate 1.5ᵒC
A20: =Assumptions!$B$8 -> Delayed 2ᵒC

Sheet International carbon prices
A1: Global carbon price data | B1: UK PACT | C1: UK PACT values were obtained from the relevant NGFS (2020) scenarios
A2: Currency | B2: =Assumptions!B1 -> USD | C2: NB - if you use 'user input' please make sure to include values for every year. If you want to use scenario values for early years, please copy this from the 'UK PACT' values.
A4: Carbon Price (USD) | B4: 2021 | C4: 2022 | D4: 2023 | E4: 2024 | F4: 2025 | G4: 2026 | H4: 2027 | I4: 2028 | J4: 2029 | K4: 2030 | L4: 2031 | M4: 2032 | N4: 2033 | O4: 2034 | P4: 2035 | Q4: 2036 | R4: 2037 | S4: 2038 | T4: 2039 | U4: 2040 | V4: 2041 | W4: 2042 | X4: 2043 | Y4: 2044 | Z4: 2045 | AA4: 2046 | AB4: 2047 | AC4: 2048 | AD4: 2049 | AE4: 2050
A5: =Assumptions!$B$5 -> Current Policies | B5: =IF($B$1="UK PACT",B11,B17) -> 2.13291531 | C5: =IF($B$1="UK PACT",C11,C17) -> 2.15445931 | D5: 2.17600331 | E5: 2.197547309 | F5: 2.219091309 | G5: 2.277847671 | H5: 2.336604034 | I5: 2.395360396 | J5: 2.454116759 | K5: 2.512873121 | L5: 2.587107928 | M5: 2.661342734 | N5: 2.735577541 | O5: 2.809812347 | P5: 2.884047153 | Q5: 2.97535098 | R5: 3.066654806 | S5: 3.157958632 | T5: 3.249262459 | U5: 3.340566285 | V5: 3.446422698 | W5: 3.55227911 | X5: 3.658135522 | Y5: 3.763991935 | Z5: 3.869848347 | AA5: 3.989877506 | AB5: 4.109906665 | AC5: 4.229935825 | AD5: 4.349964984 | AE5: 4.469994143
A6: =Assumptions!$B$6 -> Immediate 2ᵒC | B6: =IF($B$1="UK PACT",B12,B18) -> 3.696902852 | C6: 11.23507709 | D6: 18.77325133 | E6: 26.31142557 | F6: 33.84959981 | G6: 39.90169508 | H6: 45.95379034 | I6: 52.0058856 | J6: 58.05798086 | K6: 64.11007612 | L6: 70.18225538 | M6: 76.25443463 | N6: 82.32661389 | O6: 88.39879314 | P6: 94.4709724 | Q6: 100.5591524 | R6: 106.6473324 | S6: 112.7355123 | T6: 118.8236923 | U6: 124.9118723 | V6: 131.8143324 | W6: 138.7167924 | X6: 145.6192525 | Y6: 152.5217126 | Z6: 159.4241727 | AA6: 168.2336387 | AB6: 177.0431048 | AC6: 185.8525709 | AD6: 194.6620369 | AE6: 203.471503
A7: =Assumptions!$B$7 -> Immediate 1.5ᵒC | B7: 3.696902852 | C7: 17.15424647 | D7: 30.61159009 | E7: 44.06893371 | F7: 57.52627733 | G7: 68.30395097 | H7: 79.08162462 | I7: 89.85929827 | J7: 100.6369719 | K7: 111.4146456 | L7: 122.2068481 | M7: 132.9990505 | N7: 143.791253 | O7: 154.5834555 | P7: 165.375658 | Q7: 176.1919803 | R7: 187.0083026 | S7: 197.8246249 | T7: 208.6409471 | U7: 219.4572694 | V7: 231.5859833 | W7: 243.7146972 | X7: 255.8434111 | Y7: 267.972125 | Z7: 280.1008388 | AA7: 295.5798761 | AB7: 311.0589134 | AC7: 326.5379507 | AD7: 342.016988 | AE7: 357.4960253
A8: =Assumptions!$B$8 -> Delayed 2ᵒC | B8: 2.13291531 | C8: 5.623696094 | D8: 9.114476878 | E8: 12.60525766 | F8: 16.09603845 | G8: 16.26067496 | H8: 16.42531148 | I8: 16.58994799 | J8: 16.75458451 | K8: 16.91922102 | L8: 57.84168623 | M8: 98.76415144 | N8: 139.6866166 | O8: 180.6090819 | P8: 221.5315471 | Q8: 262.6150878 | R8: 303.6986285 | S8: 344.7821693 | T8: 385.86571 | U8: 426.9492507 | V8: 467.9773587 | W8: 509.0054666 | X8: 550.0335746 | Y8: 591.0616826 | Z8: 632.0897905 | AA8: 672.8995859 | AB8: 713.7093814 | AC8: 754.5191768 | AD8: 795.3289722 | AE8: 836.1387677
A10: Carbon Price (USD) - UK PACT | B10: 2021 | C10: 2022 | D10: 2023 | E10: 2024 | F10: 2025 | G10: 2026 | H10: 2027 | I10: 2028 | J10: 2029 | K10: 2030 | L10: 2031 | M10: 2032 | N10: 2033 | O10: 2034 | P10: 2035 | Q10: 2036 | R10: 2037 | S10: 2038 | T10: 2039 | U10: 2040 | V10: 2041 | W10: 2042 | X10: 2043 | Y10: 2044 | Z10: 2045 | AA10: 2046 | AB10: 2047 | AC10: 2048 | AD10: 2049 | AE10: 2050
A11: =Assumptions!$B$5 -> Current Policies | B11: 2.13291531 | C11: 2.15445931 | D11: 2.17600331 | E11: 2.197547309 | F11: 2.219091309 | G11: 2.277847671 | H11: 2.336604034 | I11: 2.395360396 | J11: 2.454116759 | K11: 2.512873121 | L11: 2.587107928 | M11: 2.661342734 | N11: 2.735577541 | O11: 2.809812347 | P11: 2.884047153 | Q11: 2.97535098 | R11: 3.066654806 | S11: 3.157958632 | T11: 3.249262459 | U11: 3.340566285 | V11: 3.446422698 | W11: 3.55227911 | X11: 3.658135522 | Y11: 3.763991935 | Z11: 3.869848347 | AA11: 3.989877506 | AB11: 4.109906665 | AC11: 4.229935825 | AD11: 4.349964984 | AE11: 4.469994143
A12: =Assumptions!$B$6 -> Immediate 2ᵒC | B12: 3.696902852 | C12: 11.23507709 | D12: 18.77325133 | E12: 26.31142557 | F12: 33.84959981 | G12: 39.90169508 | H12: 45.95379034 | I12: 52.0058856 | J12: 58.05798086 | K12: 64.11007612 | L12: 70.18225538 | M12: 76.25443463 | N12: 82.32661389 | O12: 88.39879314 | P12: 94.4709724 | Q12: 100.5591524 | R12: 106.6473324 | S12: 112.7355123 | T12: 118.8236923 | U12: 124.9118723 | V12: 131.8143324 | W12: 138.7167924 | X12: 145.6192525 | Y12: 152.5217126 | Z12: 159.4241727 | AA12: 168.2336387 | AB12: 177.0431048 | AC12: 185.8525709 | AD12: 194.6620369 | AE12: 203.471503
A13: =Assumptions!$B$7 -> Immediate 1.5ᵒC | B13: 3.696902852 | C13: 17.15424647 | D13: 30.61159009 | E13: 44.06893371 | F13: 57.52627733 | G13: 68.30395097 | H13: 79.08162462 | I13: 89.85929827 | J13: 100.6369719 | K13: 111.4146456 | L13: 122.2068481 | M13: 132.9990505 | N13: 143.791253 | O13: 154.5834555 | P13: 165.375658 | Q13: 176.1919803 | R13: 187.0083026 | S13: 197.8246249 | T13: 208.6409471 | U13: 219.4572694 | V13: 231.5859833 | W13: 243.7146972 | X13: 255.8434111 | Y13: 267.972125 | Z13: 280.1008388 | AA13: 295.5798761 | AB13: 311.0589134 | AC13: 326.5379507 | AD13: 342.016988 | AE13: 357.4960253
A14: =Assumptions!$B$8 -> Delayed 2ᵒC | B14: 2.13291531 | C14: 5.623696094 | D14: 9.114476878 | E14: 12.60525766 | F14: 16.09603845 | G14: 16.26067496 | H14: 16.42531148 | I14: 16.58994799 | J14: 16.75458451 | K14: 16.91922102 | L14: 57.84168623 | M14: 98.76415144 | N14: 139.6866166 | O14: 180.6090819 | P14: 221.5315471 | Q14: 262.6150878 | R14: 303.6986285 | S14: 344.7821693 | T14: 385.86571 | U14: 426.9492507 | V14: 467.9773587 | W14: 509.0054666 | X14: 550.0335746 | Y14: 591.0616826 | Z14: 632.0897905 | AA14: 672.8995859 | AB14: 713.7093814 | AC14: 754.5191768 | AD14: 795.3289722 | AE14: 836.1387677
A16: Carbon Price (user defined) | B16: 2021 | C16: 2022 | D16: 2023 | E16: 2024 | F16: 2025 | G16: 2026 | H16: 2027 | I16: 2028 | J16: 2029 | K16: 2030 | L16: 2031 | M16: 2032 | N16: 2033 | O16: 2034 | P16: 2035 | Q16: 2036 | R16: 2037 | S16: 2038 | T16: 2039 | U16: 2040 | V16: 2041 | W16: 2042 | X16: 2043 | Y16: 2044 | Z16: 2045 | AA16: 2046 | AB16: 2047 | AC16: 2048 | AD16: 2049 | AE16: 2050
A17: =Assumptions!$B$5 -> Current Policies
A18: =Assumptions!$B$6 -> Immediate 2ᵒC
A19: =Assumptions!$B$7 -> Immediate 1.5ᵒC
A20: =Assumptions!$B$8 -> Delayed 2ᵒC

Sheet Carbon tax values FIXED
C3: Carbon Price (ZAR) | D3: 2021 | E3: 2022 | F3: 2023 | G3: 2024 | H3: 2025 | I3: 2026 | J3: 2027 | K3: 2028 | L3: 2029 | M3: 2030 | N3: 2031 | O3: 2032 | P3: 2033 | Q3: 2034 | R3: 2035 | S3: 2036 | T3: 2037 | U3: 2038 | V3: 2039 | W3: 2040 | X3: 2041 | Y3: 2042 | Z3: 2043 | AA3: 2044 | AB3: 2045 | AC3: 2046 | AD3: 2047 | AE3: 2048 | AF3: 2049 | AG3: 2050
C4: Current Policies
C5: Carbon price | D5: 134 | E5: 136.68 | F5: 136.68 | G5: 136.68 | H5: 136.68 | I5: 136.68 | J5: 136.68 | K5: 136.68 | L5: 136.68 | M5: 136.68 | N5: 136.68 | O5: 136.68 | P5: 136.68 | Q5: 136.68 | R5: 136.68 | S5: 136.68 | T5: 136.68 | U5: 136.68 | V5: 136.68 | W5: 136.68 | X5: 136.68 | Y5: 136.68 | Z5: 136.68 | AA5: 136.68 | AB5: 136.68 | AC5: 136.68 | AD5: 136.68 | AE5: 136.68 | AF5: 136.68 | AG5: 136.68
C6: Energy - Power | D6: 36.3542 | E6: 37.081284 | F6: 42.548484 | G6: 42.548484 | H6: 42.548484 | I6: 42.548484 | J6: 42.548484 | K6: 42.548484 | L6: 42.548484 | M6: 42.548484 | N6: 43.915284 | O6: 43.915284 | P6: 43.915284 | Q6: 43.915284 | R6: 43.915284 | S6: 43.915284 | T6: 43.915284 | U6: 43.915284 | V6: 43.915284 | W6: 43.915284 | X6: 43.915284 | Y6: 43.915284 | Z6: 43.915284 | AA6: 43.915284 | AB6: 43.915284 | AC6: 43.915284 | AD6: 43.915284 | AE6: 43.915284 | AF6: 43.915284 | AG6: 43.915284
C7: Energy - other | D7: 30.82 | E7: 31.4364 | F7: 36.9036 | G7: 36.9036 | H7: 36.9036 | I7: 36.9036 | J7: 36.9036 | K7: 36.9036 | L7: 36.9036 | M7: 36.9036 | N7: 38.2704 | O7: 38.2704 | P7: 38.2704 | Q7: 38.2704 | R7: 38.2704 | S7: 38.2704 | T7: 38.2704 | U7: 38.2704 | V7: 38.2704 | W7: 38.2704 | X7: 38.2704 | Y7: 38.2704 | Z7: 38.2704 | AA7: 38.2704 | AB7: 38.2704 | AC7: 38.2704 | AD7: 38.2704 | AE7: 38.2704 | AF7: 38.2704 | AG7: 38.2704
C8: Industrial process/Fugitive | D8: 17.42 | E8: 17.7684 | F8: 23.2356 | G8: 23.2356 | H8: 23.2356 | I8: 23.2356 | J8: 23.2356 | K8: 23.2356 | L8: 23.2356 | M8: 23.2356 | N8: 24.6024 | O8: 24.6024 | P8: 24.6024 | Q8: 24.6024 | R8: 24.6024 | S8: 24.6024 | T8: 24.6024 | U8: 24.6024 | V8: 24.6024 | W8: 24.6024 | X8: 24.6024 | Y8: 24.6024 | Z8: 24.6024 | AA8: 24.6024 | AB8: 24.6024 | AC8: 24.6024 | AD8: 24.6024 | AE8: 24.6024 | AF8: 24.6024 | AG8: 24.6024
C9: Immediate 2ᵒC
C10: Carbon price | D10: 134 | E10: 136.68 | F10: 143.514 | G10: 150.6897 | H10: 158.224185 | I10: 166.1353943 | J10: 174.442164 | K10: 302.9614426 | L10: 431.4807213 | M10: 560 | N10: 674.4300521 | O10: 788.8601042 | P10: 903.2901563 | Q10: 1017.720208 | R10: 1132.150261 | S10: 1246.580313 | T10: 1361.010365 | U10: 1475.440417 | V10: 1589.870469 | W10: 1704.300521 | X10: 1818.730573 | Y10: 1933.160625 | Z10: 2047.590677 | AA10: 2162.020729 | AB10: 2276.450782 | AC10: 2390.880834 | AD10: 2505.310886 | AE10: 2619.740938 | AF10: 2734.17099 | AG10: 2848.601042
C11: Energy - Power | D11: 36.3542 | E11: 37.081284 | F11: 87.7301082 | G11: 92.11661361 | H11: 96.72244429 | I11: 101.5585665 | J11: 106.6364948 | K11: 276.0887627 | L11: 393.2083813 | M11: 510.328 | N11: 674.4300521 | O11: 788.8601042 | P11: 903.2901563 | Q11: 1017.720208 | R11: 1132.150261 | S11: 1246.580313 | T11: 1361.010365 | U11: 1475.440417 | V11: 1589.870469 | W11: 1704.300521 | X11: 1818.730573 | Y11: 1933.160625 | Z11: 2047.590677 | AA11: 2162.020729 | AB11: 2276.450782 | AC11: 2390.880834 | AD11: 2505.310886 | AE11: 2619.740938 | AF11: 2734.17099 | AG11: 2848.601042
C12: Energy - other | D12: 30.82 | E12: 31.4364 | F12: 81.80298 | G12: 85.893129 | H12: 90.18778545 | I12: 94.69717472 | J12: 99.43203346 | K12: 263.5764551 | L12: 375.3882275 | M12: 487.2 | N12: 674.4300521 | O12: 788.8601042 | P12: 903.2901563 | Q12: 1017.720208 | R12: 1132.150261 | S12: 1246.580313 | T12: 1361.010365 | U12: 1475.440417 | V12: 1589.870469 | W12: 1704.300521 | X12: 1818.730573 | Y12: 1933.160625 | Z12: 2047.590677 | AA12: 2162.020729 | AB12: 2276.450782 | AC12: 2390.880834 | AD12: 2505.310886 | AE12: 2619.740938 | AF12: 2734.17099 | AG12: 2848.601042
C13: Industrial process/Fugitive | D13: 17.42 | E13: 17.7684 | F13: 67.45158 | G13: 70.824159 | H13: 74.36536695 | I13: 78.0836353 | J13: 81.98781706 | K13: 233.2803108 | L13: 332.2401554 | M13: 431.2 | N13: 674.4300521 | O13: 788.8601042 | P13: 903.2901563 | Q13: 1017.720208 | R13: 1132.150261 | S13: 1246.580313 | T13: 1361.010365 | U13: 1475.440417 | V13: 1589.870469 | W13: 1704.300521 | X13: 1818.730573 | Y13: 1933.160625 | Z13: 2047.590677 | AA13: 2162.020729 | AB13: 2276.450782 | AC13: 2390.880834 | AD13: 2505.310886 | AE13: 2619.740938 | AF13: 2734.17099 | AG13: 2848.601042
C14: Immediate 1.5ᵒC
C15: Carbon price | D15: 134 | E15: 136.68 | F15: 143.514 | G15: 150.6897 | H15: 158.224185 | I15: 166.1353943 | J15: 174.442164 | K15: 349.6281093 | L15: 524.8140547 | M15: 700 | N15: 915.2472177 | O15: 1130.494435 | P15: 1345.741653 | Q15: 1560.988871 | R15: 1776.236089 | S15: 1991.483306 | T15: 2206.730524 | U15: 2421.977742 | V15: 2637.224959 | W15: 2852.472177 | X15: 3067.719395 | Y15: 3282.966612 | Z15: 3498.21383 | AA15: 3713.461048 | AB15: 3928.708266 | AC15: 4143.955483 | AD15: 4359.202701 | AE15: 4574.449919 | AF15: 4789.697136 | AG15: 5004.944354
C16: Energy - Power | D16: 36.3542 | E16: 37.081284 | F16: 87.7301082 | G16: 92.11661361 | H16: 96.72244429 | I16: 101.5585665 | J16: 106.6364948 | K16: 349.6281093 | L16: 524.8140547 | M16: 700 | N16: 915.2472177 | O16: 1130.494435 | P16: 1345.741653 | Q16: 1560.988871 | R16: 1776.236089 | S16: 1991.483306 | T16: 2206.730524 | U16: 2421.977742 | V16: 2637.224959 | W16: 2852.472177 | X16: 3067.719395 | Y16: 3282.966612 | Z16: 3498.21383 | AA16: 3713.461048 | AB16: 3928.708266 | AC16: 4143.955483 | AD16: 4359.202701 | AE16: 4574.449919 | AF16: 4789.697136 | AG16: 5004.944354
C17: Energy - other | D17: 30.82 | E17: 31.4364 | F17: 81.80298 | G17: 85.893129 | H17: 90.18778545 | I17: 94.69717472 | J17: 99.43203346 | K17: 349.6281093 | L17: 524.8140547 | M17: 700 | N17: 915.2472177 | O17: 1130.494435 | P17: 1345.741653 | Q17: 1560.988871 | R17: 1776.236089 | S17: 1991.483306 | T17: 2206.730524 | U17: 2421.977742 | V17: 2637.224959 | W17: 2852.472177 | X17: 3067.719395 | Y17: 3282.966612 | Z17: 3498.21383 | AA17: 3713.461048 | AB17: 3928.708266 | AC17: 4143.955483 | AD17: 4359.202701 | AE17: 4574.449919 | AF17: 4789.697136 | AG17: 5004.944354
C18: Industrial process/Fugitive | D18: 17.42 | E18: 17.7684 | F18: 67.45158 | G18: 70.824159 | H18: 74.36536695 | I18: 78.0836353 | J18: 81.98781706 | K18: 269.2136442 | L18: 404.1068221 | M18: 539 | N18: 915.2472177 | O18: 1130.494435 | P18: 1345.741653 | Q18: 1560.988871 | R18: 1776.236089 | S18: 1991.483306 | T18: 2206.730524 | U18: 2421.977742 | V18: 2637.224959 | W18: 2852.472177 | X18: 3067.719395 | Y18: 3282.966612 | Z18: 3498.21383 | AA18: 3713.461048 | AB18: 3928.708266 | AC18: 4143.955483 | AD18: 4359.202701 | AE18: 4574.449919 | AF18: 4789.697136 | AG18: 5004.944354
C19: Delayed 2ᵒC
C20: Carbon price | D20: 134 | E20: 136.68 | F20: 143.514 | G20: 150.6897 | H20: 158.224185 | I20: 166.1353943 | J20: 174.442164 | K20: 183.1642722 | L20: 192.3224858 | M20: 201.9386101 | N20: 777.1388169 | O20: 1352.339024 | P20: 1927.539231 | Q20: 2502.739438 | R20: 3077.939644 | S20: 3653.139851 | T20: 4228.340058 | U20: 4803.540265 | V20: 5378.740472 | W20: 5953.940679 | X20: 6529.140886 | Y20: 7104.341093 | Z20: 7679.5413 | AA20: 8254.741506 | AB20: 8829.941713 | AC20: 9405.14192 | AD20: 9980.342127 | AE20: 10555.54233 | AF20: 11130.74254 | AG20: 11705.94275
C21: Energy - Power | D21: 36.3542 | E21: 37.081284 | F21: 73.3787082 | G21: 77.04764361 | H21: 80.90002579 | I21: 84.94502708 | J21: 89.19227843 | K21: 93.65189236 | L21: 98.33448697 | M21: 103.2512113 | N21: 777.1388169 | O21: 1352.339024 | P21: 1927.539231 | Q21: 2502.739438 | R21: 3077.939644 | S21: 3653.139851 | T21: 4228.340058 | U21: 4803.540265 | V21: 5378.740472 | W21: 5953.940679 | X21: 6529.140886 | Y21: 7104.341093 | Z21: 7679.5413 | AA21: 8254.741506 | AB21: 8829.941713 | AC21: 9405.14192 | AD21: 9980.342127 | AE21: 10555.54233 | AF21: 11130.74254 | AG21: 11705.94275
C22: Energy - other | D22: 30.82 | E22: 31.4364 | F22: 67.45158 | G22: 70.824159 | H22: 74.36536695 | I22: 78.0836353 | J22: 81.98781706 | K22: 86.08720792 | L22: 90.39156831 | M22: 94.91114673 | N22: 777.1388169 | O22: 1352.339024 | P22: 1927.539231 | Q22: 2502.739438 | R22: 3077.939644 | S22: 3653.139851 | T22: 4228.340058 | U22: 4803.540265 | V22: 5378.740472 | W22: 5953.940679 | X22: 6529.140886 | Y22: 7104.341093 | Z22: 7679.5413 | AA22: 8254.741506 | AB22: 8829.941713 | AC22: 9405.14192 | AD22: 9980.342127 | AE22: 10555.54233 | AF22: 11130.74254 | AG22: 11705.94275
C23: Industrial process/Fugitive | D23: 17.42 | E23: 17.7684 | F23: 53.10018 | G23: 55.755189 | H23: 58.54294845 | I23: 61.47009587 | J23: 64.54360067 | K23: 67.7707807 | L23: 71.15931973 | M23: 74.71728572 | N23: 777.1388169 | O23: 1352.339024 | P23: 1927.539231 | Q23: 2502.739438 | R23: 3077.939644 | S23: 3653.139851 | T23: 4228.340058 | U23: 4803.540265 | V23: 5378.740472 | W23: 5953.940679 | X23: 6529.140886 | Y23: 7104.341093 | Z23: 7679.5413 | AA23: 8254.741506 | AB23: 8829.941713 | AC23: 9405.14192 | AD23: 9980.342127 | AE23: 10555.54233 | AF23: 11130.74254 | AG23: 11705.94275

Sheet Allowances
A1: Allowance values | B1: UK PACT
AA2: Phase_1 | AB2: Phase_2 | AC2: Phase_2a | AD2: Beyond
A3: Scenario | B3: Type of emissions | C3: Basic Allowance 2021-2022 | D3: Basic Allowance 2023-2027 | E3: Basic Allowance 2028-2030 | F3: Basic Allowance 2031-2050 | G3: Industrial/ Fugitive 2021-2022 | H3: Industrial/ Fugitive 2023-2027 | I3: Industrial/ Fugitive 2028-2030 | J3: Industrial/ Fugitive 2031-2050 | K3: Trade exposure 2021-2022 | L3: Trade exposure 2023-2027 | M3: Trade exposure 2028-2030 | N3: Trade exposure 2031-2050 | O3: Performance 2021-2022 | P3: Performance 2023-2027 | Q3: Performance 2028-2030 | R3: Performance 2031-2050 | S3: Carbon budget 2021-2022 | T3: Carbon budget 2023-2027 | U3: Carbon budget 2028-2030 | V3: Carbon budget 2031-2050 | W3: Offsets 2021-2022 | X3: Offsets 2023-2027 | Y3: Offsets 2028-2030 | Z3: Offsets 2031-2050 | AA3: Total allowances 2021-2022 | AB3: Total allowances 2023-2027 | AC3: Total allowances 2028-2030 | AD3: Total allowances 2031-2050 | AE3: =B3&" "&"by"&" "&A3 -> Type of emissions by Scenario
A4: =Assumptions!$B$5 -> Current Policies | B4: Energy - Power | C4: =IF($B$1="UK PACT",C18,C32) -> 0.6 | D4: =IF($B$1="UK PACT",D18,D32) -> 0.6 | E4: 0.6 | F4: 0.6 | G4: 0 | H4: 0 | I4: 0 | J4: 0 | K4: 0.0487 | L4: 0.0487 | M4: 0.0487 | N4: 0.0487 | O4: 0.02 | P4: 0.01 | Q4: 0.01 | R4: 0 | S4: 0.05 | T4: 0 | U4: 0 | V4: 0 | W4: 0.01 | X4: 0.03 | Y4: 0.03 | Z4: 0.03 | AA4: =C4+G4+K4+O4+S4+W4 -> 0.7287 | AB4: =D4+H4+L4+P4+T4+X4 -> 0.6887 | AC4: =E4+I4+M4+Q4+U4+Y4 -> 0.6887 | AD4: =F4+J4+N4+R4+V4+Z4 -> 0.6787 | AE4: =A4&"-"&B4 -> Current Policies-Energy - Power
A5: =Assumptions!$B$5 -> Current Policies | B5: Energy - other | C5: =IF($B$1="UK PACT",C19,C33) -> 0.6 | D5: 0.6 | E5: 0.6 | F5: 0.6 | G5: 0 | H5: 0 | I5: 0 | J5: 0 | K5: 0.09 | L5: 0.09 | M5: 0.09 | N5: 0.09 | O5: 0.02 | P5: 0.01 | Q5: 0.01 | R5: 0 | S5: 0.05 | T5: 0 | U5: 0 | V5: 0 | W5: 0.01 | X5: 0.03 | Y5: 0.03 | Z5: 0.03 | AA5: =C5+G5+K5+O5+S5+W5 -> 0.77 | AB5: =D5+H5+L5+P5+T5+X5 -> 0.73 | AC5: =E5+I5+M5+Q5+U5+Y5 -> 0.73 | AD5: =F5+J5+N5+R5+V5+Z5 -> 0.72 | AE5: =A5&"-"&B5 -> Current Policies-Energy - other
A6: =Assumptions!$B$5 -> Current Policies | B6: Industrial process/Fugitive | C6: =IF($B$1="UK PACT",C20,C34) -> 0.6 | D6: 0.6 | E6: 0.6 | F6: 0.6 | G6: 0.1 | H6: 0.1 | I6: 0.1 | J6: 0.1 | K6: 0.09 | L6: 0.09 | M6: 0.09 | N6: 0.09 | O6: 0.02 | P6: 0.01 | Q6: 0.01 | R6: 0 | S6: 0.05 | T6: 0 | U6: 0 | V6: 0 | W6: 0.01 | X6: 0.03 | Y6: 0.03 | Z6: 0.03 | AA6: 0.87 | AB6: 0.83 | AC6: 0.83 | AD6: 0.82 | AE6: Current Policies-Industrial process/Fugitive
A7: =Assumptions!$B$6 -> Immediate 2ᵒC | B7: Energy - Power | C7: =IF($B$1="UK PACT",C21,C35) -> 0.6 | D7: 0.3 | E7: 0 | F7: 0 | G7: 0 | H7: 0 | I7: 0 | J7: 0 | K7: 0.0487 | L7: 0.0487 | M7: 0.0487 | N7: 0 | O7: 0.02 | P7: 0.01 | Q7: 0.01 | R7: 0 | S7: 0.05 | T7: 0 | U7: 0 | V7: 0 | W7: 0.01 | X7: 0.03 | Y7: 0.03 | Z7: 0 | AA7: 0.7287 | AB7: 0.3887 | AC7: =E7+I7+M7+Q7+U7+Y7 -> 0.0887 | AD7: 0 | AE7: Immediate 2ᵒC-Energy - Power
A8: =Assumptions!$B$6 -> Immediate 2ᵒC | B8: Energy - other | C8: =IF($B$1="UK PACT",C22,C36) -> 0.6 | D8: 0.3 | E8: 0 | F8: 0 | G8: 0 | H8: 0 | I8: 0 | J8: 0 | K8: 0.09 | L8: 0.09 | M8: 0.09 | N8: 0 | O8: 0.02 | P8: 0.01 | Q8: 0.01 | R8: 0 | S8: 0.05 | T8: 0 | U8: 0 | V8: 0 | W8: 0.01 | X8: 0.03 | Y8: 0.03 | Z8: 0 | AA8: 0.77 | AB8: 0.43 | AC8: 0.13 | AD8: 0 | AE8: Immediate 2ᵒC-Energy - other
A9: =Assumptions!$B$6 -> Immediate 2ᵒC | B9: Industrial process/Fugitive | C9: =IF($B$1="UK PACT",C23,C37) -> 0.6 | D9: 0.3 | E9: 0 | F9: 0 | G9: 0.1 | H9: 0.1 | I9: 0.1 | J9: 0 | K9: 0.09 | L9: 0.09 | M9: 0.09 | N9: 0 | O9: 0.02 | P9: 0.01 | Q9: 0.01 | R9: 0 | S9: 0.05 | T9: 0 | U9: 0 | V9: 0 | W9: 0.01 | X9: 0.03 | Y9: 0.03 | Z9: 0 | AA9: 0.87 | AB9: 0.53 | AC9: 0.23 | AD9: 0 | AE9: Immediate 2ᵒC-Industrial process/Fugitive
A10: =Assumptions!$B$7 -> Immediate 1.5ᵒC | B10: Energy - Power | C10: =IF($B$1="UK PACT",C24,C38) -> 0.6 | D10: 0.3 | E10: 0 | F10: 0 | G10: 0 | H10: 0 | I10: 0 | J10: 0 | K10: 0.0487 | L10: 0.0487 | M10: 0 | N10: 0 | O10: 0.02 | P10: 0.01 | Q10: 0 | R10: 0 | S10: 0.05 | T10: 0 | U10: 0 | V10: 0 | W10: 0.01 | X10: 0.03 | Y10: 0 | Z10: 0 | AA10: 0.7287 | AB10: 0.3887 | AC10: 0 | AD10: 0 | AE10: Immediate 1.5ᵒC-Energy - Power
A11: =Assumptions!$B$7 -> Immediate 1.5ᵒC | B11: Energy - other | C11: =IF($B$1="UK PACT",C25,C39) -> 0.6 | D11: 0.3 | E11: 0 | F11: 0 | G11: 0 | H11: 0 | I11: 0 | J11: 0 | K11: 0.09 | L11: 0.09 | M11: 0 | N11: 0 | O11: 0.02 | P11: 0.01 | Q11: 0 | R11: 0 | S11: 0.05 | T11: 0 | U11: 0 | V11: 0 | W11: 0.01 | X11: 0.03 | Y11: 0 | Z11: 0 | AA11: 0.77 | AB11: 0.43 | AC11: 0 | AD11: 0 | AE11: Immediate 1.5ᵒC-Energy - other
A12: =Assumptions!$B$7 -> Immediate 1.5ᵒC | B12: Industrial process/Fugitive | C12: =IF($B$1="UK PACT",C26,C40) -> 0.6 | D12: 0.3 | E12: 0 | F12: 0 | G12: 0.1 | H12: 0.1 | I12: 0.1 | J12: 0 | K12: 0.09 | L12: 0.09 | M12: 0.09 | N12: 0 | O12: 0.02 | P12: 0.01 | Q12: 0.01 | R12: 0 | S12: 0.05 | T12: 0 | U12: 0 | V12: 0 | W12: 0.01 | X12: 0.03 | Y12: 0.03 | Z12: 0 | AA12: 0.87 | AB12: 0.53 | AC12: 0.23 | AD12: 0 | AE12: Immediate 1.5ᵒC-Industrial process/Fugitive
A13: =Assumptions!$B$8 -> Delayed 2ᵒC | B13: Energy - Power | C13: =IF($B$1="UK PACT",C27,C41) -> 0.6 | D13: 0.4 | E13: 0.4 | F13: 0 | G13: 0 | H13: 0 | I13: 0 | J13: 0 | K13: 0.0487 | L13: 0.0487 | M13: 0.0487 | N13: 0 | O13: 0.02 | P13: 0.01 | Q13: 0.01 | R13: 0 | S13: 0.05 | T13: 0 | U13: 0 | V13: 0 | W13: 0.01 | X13: 0.03 | Y13: 0.03 | Z13: 0 | AA13: 0.7287 | AB13: 0.4887 | AC13: 0.4887 | AD13: 0 | AE13: Delayed 2ᵒC-Energy - Power
A14: =Assumptions!$B$8 -> Delayed 2ᵒC | B14: Energy - other | C14: =IF($B$1="UK PACT",C28,C42) -> 0.6 | D14: 0.4 | E14: 0.4 | F14: 0 | G14: 0 | H14: 0 | I14: 0 | J14: 0 | K14: 0.09 | L14: 0.09 | M14: 0.09 | N14: 0 | O14: 0.02 | P14: 0.01 | Q14: 0.01 | R14: 0 | S14: 0.05 | T14: 0 | U14: 0 | V14: 0 | W14: 0.01 | X14: 0.03 | Y14: 0.03 | Z14: 0 | AA14: 0.77 | AB14: 0.53 | AC14: 0.53 | AD14: 0 | AE14: Delayed 2ᵒC-Energy - other
A15: =Assumptions!$B$8 -> Delayed 2ᵒC | B15: Industrial process/Fugitive | C15: =IF($B$1="UK PACT",C29,C43) -> 0.6 | D15: 0.4 | E15: 0.4 | F15: 0 | G15: 0.1 | H15: 0.1 | I15: 0.1 | J15: 0 | K15: 0.09 | L15: 0.09 | M15: 0.09 | N15: 0 | O15: 0.02 | P15: 0.01 | Q15: 0.01 | R15: 0 | S15: 0.05 | T15: 0 | U15: 0 | V15: 0 | W15: 0.01 | X15: 0.03 | Y15: 0.03 | Z15: 0 | AA15: 0.87 | AB15: 0.63 | AC15: 0.63 | AD15: 0 | AE15: Delayed 2ᵒC-Industrial process/Fugitive
A17: Scenario | B17: Type of emissions | C17: Basic Allowance 2021-2022 | D17: Basic Allowance 2023-2027 | E17: Basic Allowance 2028-2030 | F17: Basic Allowance 2031-2050 | G17: Industrial/ Fugitive 2021-2022 | H17: Industrial/ Fugitive 2023-2027 | I17: Industrial/ Fugitive 2028-2030 | J17: Industrial/ Fugitive 2031-2050 | K17: Trade exposure 2021-2022 | L17: Trade exposure 2023-2027 | M17: Trade exposure 2028-2030 | N17: Trade exposure 2031-2050 | O17: Performance 2021-2022 | P17: Performance 2023-2027 | Q17: Performance 2028-2030 | R17: Performance 2031-2050 | S17: Carbon budget 2021-2022 | T17: Carbon budget 2023-2027 | U17: Carbon budget 2028-2030 | V17: Carbon budget 2031-2050 | W17: Offsets 2021-2022 | X17: Offsets 2023-2027 | Y17: Offsets 2028-2030 | Z17: Offsets 2031-2050
A18: =Assumptions!$B$5 -> Current Policies | B18: Energy - Power | C18: 0.6 | D18: 0.6 | E18: 0.6 | F18: 0.6 | G18: 0 | H18: 0 | I18: 0 | J18: 0 | K18: 0.0487 | L18: 0.0487 | M18: 0.0487 | N18: 0.0487 | O18: 0.02 | P18: 0.01 | Q18: 0.01 | R18: 0 | S18: 0.05 | T18: 0 | U18: 0 | V18: 0 | W18: 0.01 | X18: 0.03 | Y18: 0.03 | Z18: 0.03
A19: =Assumptions!$B$5 -> Current Policies | B19: Energy - other | C19: 0.6 | D19: 0.6 | E19: 0.6 | F19: 0.6 | G19: 0 | H19: 0 | I19: 0 | J19: 0 | K19: 0.09 | L19: 0.09 | M19: 0.09 | N19: 0.09 | O19: 0.02 | P19: 0.01 | Q19: 0.01 | R19: 0 | S19: 0.05 | T19: 0 | U19: 0 | V19: 0 | W19: 0.01 | X19: 0.03 | Y19: 0.03 | Z19: 0.03
A20: =Assumptions!$B$5 -> Current Policies | B20: Industrial process/Fugitive | C20: 0.6 | D20: 0.6 | E20: 0.6 | F20: 0.6 | G20: 0.1 | H20: 0.1 | I20: 0.1 | J20: 0.1 | K20: 0.09 | L20: 0.09 | M20: 0.09 | N20: 0.09 | O20: 0.02 | P20: 0.01 | Q20: 0.01 | R20: 0 | S20: 0.05 | T20: 0 | U20: 0 | V20: 0 | W20: 0.01 | X20: 0.03 | Y20: 0.03 | Z20: 0.03
A21: =Assumptions!$B$6 -> Immediate 2ᵒC | B21: Energy - Power | C21: 0.6 | D21: 0.3 | E21: 0 | F21: 0 | G21: 0 | H21: 0 | I21: 0 | J21: 0 | K21: 0.0487 | L21: 0.0487 | M21: 0.0487 | N21: 0 | O21: 0.02 | P21: 0.01 | Q21: 0.01 | R21: 0 | S21: 0.05 | T21: 0 | U21: 0 | V21: 0 | W21: 0.01 | X21: 0.03 | Y21: 0.03 | Z21: 0
A22: =Assumptions!$B$6 -> Immediate 2ᵒC | B22: Energy - other | C22: 0.6 | D22: 0.3 | E22: 0 | F22: 0 | G22: 0 | H22: 0 | I22: 0 | J22: 0 | K22: 0.09 | L22: 0.09 | M22: 0.09 | N22: 0 | O22: 0.02 | P22: 0.01 | Q22: 0.01 | R22: 0 | S22: 0.05 | T22: 0 | U22: 0 | V22: 0 | W22: 0.01 | X22: 0.03 | Y22: 0.03 | Z22: 0
A23: =Assumptions!$B$6 -> Immediate 2ᵒC | B23: Industrial process/Fugitive | C23: 0.6 | D23: 0.3 | E23: 0 | F23: 0 | G23: 0.1 | H23: 0.1 | I23: 0.1 | J23: 0 | K23: 0.09 | L23: 0.09 | M23: 0.09 | N23: 0 | O23: 0.02 | P23: 0.01 | Q23: 0.01 | R23: 0 | S23: 0.05 | T23: 0 | U23: 0 | V23: 0 | W23: 0.01 | X23: 0.03 | Y23: 0.03 | Z23: 0
A24: =Assumptions!$B$7 -> Immediate 1.5ᵒC | B24: Energy - Power | C24: 0.6 | D24: 0.3 | E24: 0 | F24: 0 | G24: 0 | H24: 0 | I24: 0 | J24: 0 | K24: 0.0487 | L24: 0.0487 | M24: 0 | N24: 0 | O24: 0.02 | P24: 0.01 | Q24: 0 | R24: 0 | S24: 0.05 | T24: 0 | U24: 0 | V24: 0 | W24: 0.01 | X24: 0.03 | Y24: 0 | Z24: 0
A25: =Assumptions!$B$7 -> Immediate 1.5ᵒC | B25: Energy - other | C25: 0.6 | D25: 0.3 | E25: 0 | F25: 0 | G25: 0 | H25: 0 | I25: 0 | J25: 0 | K25: 0.09 | L25: 0.09 | M25: 0 | N25: 0 | O25: 0.02 | P25: 0.01 | Q25: 0 | R25: 0 | S25: 0.05 | T25: 0 | U25: 0 | V25: 0 | W25: 0.01 | X25: 0.03 | Y25: 0 | Z25: 0
A26: =Assumptions!$B$7 -> Immediate 1.5ᵒC | B26: Industrial process/Fugitive | C26: 0.6 | D26: 0.3 | E26: 0 | F26: 0 | G26: 0.1 | H26: 0.1 | I26: 0.1 | J26: 0 | K26: 0.09 | L26: 0.09 | M26: 0.09 | N26: 0 | O26: 0.02 | P26: 0.01 | Q26: 0.01 | R26: 0 | S26: 0.05 | T26: 0 | U26: 0 | V26: 0 | W26: 0.01 | X26: 0.03 | Y26: 0.03 | Z26: 0
A27: =Assumptions!$B$8 -> Delayed 2ᵒC | B27: Energy - Power | C27: 0.6 | D27: 0.4 | E27: 0.4 | F27: 0 | G27: 0 | H27: 0 | I27: 0 | J27: 0 | K27: 0.0487 | L27: 0.0487 | M27: 0.0487 | N27: 0 | O27: 0.02 | P27: 0.01 | Q27: 0.01 | R27: 0 | S27: 0.05 | T27: 0 | U27: 0 | V27: 0 | W27: 0.01 | X27: 0.03 | Y27: 0.03 | Z27: 0
A28: =Assumptions!$B$8 -> Delayed 2ᵒC | B28: Energy - other | C28: 0.6 | D28: 0.4 | E28: 0.4 | F28: 0 | G28: 0 | H28: 0 | I28: 0 | J28: 0 | K28: 0.09 | L28: 0.09 | M28: 0.09 | N28: 0 | O28: 0.02 | P28: 0.01 | Q28: 0.01 | R28: 0 | S28: 0.05 | T28: 0 | U28: 0 | V28: 0 | W28: 0.01 | X28: 0.03 | Y28: 0.03 | Z28: 0
A29: =Assumptions!$B$8 -> Delayed 2ᵒC | B29: Industrial process/Fugitive | C29: 0.6 | D29: 0.4 | E29: 0.4 | F29: 0 | G29: 0.1 | H29: 0.1 | I29: 0.1 | J29: 0 | K29: 0.09 | L29: 0.09 | M29: 0.09 | N29: 0 | O29: 0.02 | P29: 0.01 | Q29: 0.01 | R29: 0 | S29: 0.05 | T29: 0 | U29: 0 | V29: 0 | W29: 0.01 | X29: 0.03 | Y29: 0.03 | Z29: 0
A31: Scenario | B31: Type of emissions | C31: Basic Allowance 2021-2022 | D31: Basic Allowance 2023-2027 | E31: Basic Allowance 2028-2030 | F31: Basic Allowance 2031-2050 | G31: Industrial/ Fugitive 2021-2022 | H31: Industrial/ Fugitive 2023-2027 | I31: Industrial/ Fugitive 2028-2030 | J31: Industrial/ Fugitive 2031-2050 | K31: Trade exposure 2021-2022 | L31: Trade exposure 2023-2027 | M31: Trade exposure 2028-2030 | N31: Trade exposure 2031-2050 | O31: Performance 2021-2022 | P31: Performance 2023-2027 | Q31: Performance 2028-2030 | R31: Performance 2031-2050 | S31: Carbon budget 2021-2022 | T31: Carbon budget 2023-2027 | U31: Carbon budget 2028-2030 | V31: Carbon budget 2031-2050 | W31: Offsets 2021-2022 | X31: Offsets 2023-2027 | Y31: Offsets 2028-2030 | Z31: Offsets 2031-2050 | AA31: Total allowances 2021-2022 | AB31: Total allowances 2023-2027 | AC31: Total allowances 2028-2030 | AD31: Total allowances 2031-2050 | AE31: =B31&" "&"by"&" "&A31 -> Type of emissions by Scenario
A32: =Assumptions!$B$5 -> Current Policies | B32: Energy - Power | AA32: =C32+G32+K32+O32+S32+W32 -> 0 | AB32: =D32+H32+L32+P32+T32+X32 -> 0 | AC32: =E32+I32+M32+Q32+U32+Y32 -> 0 | AD32: =F32+J32+N32+R32+V32+Z32 -> 0 | AE32: =A32&"-"&B32 -> Current Policies-Energy - Power
A33: =Assumptions!$B$5 -> Current Policies | B33: Energy - other | AA33: =C33+G33+K33+O33+S33+W33 -> 0 | AB33: =D33+H33+L33+P33+T33+X33 -> 0 | AC33: =E33+I33+M33+Q33+U33+Y33 -> 0 | AD33: =F33+J33+N33+R33+V33+Z33 -> 0 | AE33: =A33&"-"&B33 -> Current Policies-Energy - other
A34: =Assumptions!$B$5 -> Current Policies | B34: Industrial process/Fugitive | AA34: 0 | AB34: 0 | AC34: 0 | AD34: 0 | AE34: Current Policies-Industrial process/Fugitive
A35: =Assumptions!$B$6 -> Immediate 2ᵒC | B35: Energy - Power | AA35: 0 | AB35: 0 | AC35: 0 | AD35: 0 | AE35: Immediate 2ᵒC-Energy - Power
A36: =Assumptions!$B$6 -> Immediate 2ᵒC | B36: Energy - other | AA36: 0 | AB36: 0 | AC36: 0 | AD36: 0 | AE36: Immediate 2ᵒC-Energy - other
A37: =Assumptions!$B$6 -> Immediate 2ᵒC | B37: Industrial process/Fugitive | AA37: 0 | AB37: 0 | AC37: 0 | AD37: 0 | AE37: Immediate 2ᵒC-Industrial process/Fugitive
A38: =Assumptions!$B$7 -> Immediate 1.5ᵒC | B38: Energy - Power | AA38: 0 | AB38: 0 | AC38: 0 | AD38: 0 | AE38: Immediate 1.5ᵒC-Energy - Power
A39: =Assumptions!$B$7 -> Immediate 1.5ᵒC | B39: Energy - other | AA39: 0 | AB39: 0 | AC39: 0 | AD39: 0 | AE39: Immediate 1.5ᵒC-Energy - other
A40: =Assumptions!$B$7 -> Immediate 1.5ᵒC | B40: Industrial process/Fugitive | AA40: 0 | AB40: 0 | AC40: 0 | AD40: 0 | AE40: Immediate 1.5ᵒC-Industrial process/Fugitive
A41: =Assumptions!$B$8 -> Delayed 2ᵒC | B41: Energy - Power | AA41: 0 | AB41: 0 | AC41: 0 | AD41: 0 | AE41: Delayed 2ᵒC-Energy - Power
A42: =Assumptions!$B$8 -> Delayed 2ᵒC | B42: Energy - other | AA42: 0 | AB42: 0 | AC42: 0 | AD42: 0 | AE42: Delayed 2ᵒC-Energy - other
A43: =Assumptions!$B$8 -> Delayed 2ᵒC | B43: Industrial process/Fugitive | AA43: 0 | AB43: 0 | AC43: 0 | AD43: 0 | AE43: Delayed 2ᵒC-Industrial process/Fugitive
